Body,BodyName,InvoiceDate,ClearanceDate,UniqueReference,SupplierName,SupplierRefNo,Amount,DepartmentExpenseArea,ExpenseType,ExpenseCode,ExtendedDescription,AccountHolder,MerchantCategory
http://statistics.data.gov.uk/id/local-authority/43UM,WOKING BOROUGH COUNCIL,01/06/2022,01/06/2022,GPC/00019316,AHMED CASH & CARRY,PROCUREMENT CARD,99.00,CORPORATE STRATEGY - HOUSEHOLD SUPPORT FUND,HSF ENERGY/WATER CHILDREN,G255,ENERGY BILL PAYMENT,PALLAVI SHARAN,GROCERY STORES
http://statistics.data.gov.uk/id/local-authority/43UM,WOKING BOROUGH COUNCIL,18/05/2022,01/06/2022,0000477962/001,ALLSTAR BUSINESS SOLUTIONS LTD,01500600,185.15,INDEPENDENT LIVING SERVICES - MEALS ON WHEELS,PETROL,F200,PETROL,INDEPENDENT LIVING SERVICES,UTILITIES
http://statistics.data.gov.uk/id/local-authority/43UM,WOKING BOROUGH COUNCIL,01/06/2022,01/06/2022,GPC/00019307,ARGOS LTD,PROCUREMENT CARD,249.98,HOUSING SERVICES - AFGHAN REFUGEE,PURCHASE OF EQUIPMENT,Q510,AFGHAN FAMILY MOBILE PHONES FROM ARGOS,HINA ASHRAF,DISCOUNT STORES
http://statistics.data.gov.uk/id/local-authority/43UM,WOKING BOROUGH COUNCIL,01/06/2022,01/06/2022,GPC/00019315,ASDA STORES 4823,PROCUREMENT CARD,5.10,INDEPENDENT LIVING SERVICES - PARKVIEW,PROVISIONS,G410,JUICE FOR EVENT,DONNA GREGORY,GROCERY STORES
http://statistics.data.gov.uk/id/local-authority/43UM,WOKING BOROUGH COUNCIL,01/06/2022,01/06/2022,GPC/00019297,ASDA WOKING,PROCUREMENT CARD,170.00,HOUSING SERVICES - AFGHAN REFUGEE,UTILITIES,Q506,FOR AFGHAN FAMILY RESETTLMENT PROGRAMME,HINA ASHRAF,FINANCIAL INST/AUTO CASH
http://statistics.data.gov.uk/id/local-authority/43UM,WOKING BOROUGH COUNCIL,01/06/2022,01/06/2022,GPC/00019317,GIBBS AND DANDY,PROCUREMENT CARD,1.23,ASSET MANAGEMENT - FACILITIES MANAGEMENT,FACILITIES MANAGEMENT REPAIRS,D908,DECORATIVE PARTS FOR MIDAS HOUSE,MR D JONES,LUMBER/BUILD SUPPLY STORES
http://statistics.data.gov.uk/id/local-authority/43UM,WOKING BOROUGH COUNCIL,01/06/2022,01/06/2022,GPC/00019317,GIBBS AND DANDY,PROCUREMENT CARD,2.29,ASSET MANAGEMENT - FACILITIES MANAGEMENT,FACILITIES MANAGEMENT REPAIRS,D908,DECORATIVE PARTS FOR MIDAS HOUSE,MR D JONES,LUMBER/BUILD SUPPLY STORES
http://statistics.data.gov.uk/id/local-authority/43UM,WOKING BOROUGH COUNCIL,01/06/2022,01/06/2022,GPC/00019317,GIBBS AND DANDY,PROCUREMENT CARD,9.32,ASSET MANAGEMENT - FACILITIES MANAGEMENT,FACILITIES MANAGEMENT REPAIRS,D908,DECORATIVE PARTS FOR MIDAS HOUSE,MR D JONES,LUMBER/BUILD SUPPLY STORES
http://statistics.data.gov.uk/id/local-authority/43UM,WOKING BOROUGH COUNCIL,01/06/2022,01/06/2022,GPC/00019309,GORDON FILLING STATION,PROCUREMENT CARD,8.79,INDEPENDENT LIVING SERVICES - FAMILY CENTRES,TRAINING,H465,PROFESSIONALS LUNCH,NICOLA NORMAN,SERVICE STATIONS
http://statistics.data.gov.uk/id/local-authority/43UM,WOKING BOROUGH COUNCIL,01/06/2022,01/06/2022,GPC/00019298,IMPULSE CONVENIENCE LTD,PROCUREMENT CARD,1.60,INDEPENDENT LIVING SERVICES - FAMILY SUPPORT PROGRAMME,PARKING COSTS,F510,PARKING,PALLAVI SHARAN,GROCERY STORES
http://statistics.data.gov.uk/id/local-authority/43UM,WOKING BOROUGH COUNCIL,11/05/2022,01/06/2022,0000478134/001,LLOYDS BANK PLC,00018000,671.71,FINANCIAL SERVICES - CORPORATE MANAGEMENT (FINANCE),BANK CHARGES,H625,BANK CHARGES,FINANCIAL SERVICES,FINANCIAL SERVICES
http://statistics.data.gov.uk/id/local-authority/43UM,WOKING BOROUGH COUNCIL,01/06/2022,01/06/2022,GPC/00019302,RICHARD & JOANNES,PROCUREMENT CARD,20.83,INDEPENDENT LIVING SERVICES - ST MARY'S DAY CENTRE,VOLUNTEER EXPENSES,H313,FLOWERS FOR VOLUNTEER HELPER,MR JONNY MOLES,FLORISTS
http://statistics.data.gov.uk/id/local-authority/43UM,WOKING BOROUGH COUNCIL,01/06/2022,01/06/2022,GPC/00019293,SAINSBURYS PETROL,PROCUREMENT CARD,38.75,INDEPENDENT LIVING SERVICES - MEALS ON WHEELS,PETROL,F200,PETROL FOR MOW,CARMELA STRONG,SERVICE STATIONS
http://statistics.data.gov.uk/id/local-authority/43UM,WOKING BOROUGH COUNCIL,01/06/2022,01/06/2022,GPC/00019306,TESCO PFS 3381,PROCUREMENT CARD,109.29,HOUSING SERVICES - HOME IMPS & BEN AGENCY,TRAVEL EXPENSES-OFFICERS,F600,FUEL FOR HP VAN.,JASON BALCHIN,SERVICE STATIONS
http://statistics.data.gov.uk/id/local-authority/43UM,WOKING BOROUGH COUNCIL,01/06/2022,01/06/2022,GPC/00019314,TESCO PFS 3381,PROCUREMENT CARD,16.19,HOUSING SERVICES - HOME IMPS & BEN AGENCY,TRAVEL EXPENSES-OFFICERS,F600,SUBSISTENCE,JASON BALCHIN,SERVICE STATIONS
http://statistics.data.gov.uk/id/local-authority/43UM,WOKING BOROUGH COUNCIL,01/06/2022,01/06/2022,GPC/00019311,TUCKER-FRENCH.COM,PROCUREMENT CARD,40.23,LEISURE SERVICES - SHEERWATER LEISURE CENTRE,R&M BUILDINGS - CONTRACTORS,D100,TOILET PARTS FOR EASTWOOD LEISURE CENTRE,MR D JONES,HEATING PLUMBING AIR CONDITIONING
http://statistics.data.gov.uk/id/local-authority/43UM,WOKING BOROUGH COUNCIL,01/06/2022,01/06/2022,GPC/00019312,W M MORRISON STORE,PROCUREMENT CARD,9.99,FINANCIAL SERVICES - BROCKHILL SOCIAL FUND,MISCELLANEOUS EXPENSES,X827,PIMMS,MRS M CHILCOTT,GROCERY STORES
http://statistics.data.gov.uk/id/local-authority/43UM,WOKING BOROUGH COUNCIL,01/06/2022,01/06/2022,GPC/00019304,W M MORRISON STORE,PROCUREMENT CARD,148.75,INDEPENDENT LIVING SERVICES - PARKVIEW,PROMOTIONS & GRANTS,H467,PLATTERS FOR EVENT,DONNA GREGORY,GROCERY STORES
http://statistics.data.gov.uk/id/local-authority/43UM,WOKING BOROUGH COUNCIL,01/06/2022,01/06/2022,GPC/00019294,WAITROSE 181,PROCUREMENT CARD,25.80,INDEPENDENT LIVING SERVICES - FAMILY SUPPORT PROGRAMME,PROVISIONS,G410,"CATERING PERFORMANCE MONITORING 2 OF 2
30 PEOPLE",HILARY LOBB,GROCERY STORES
http://statistics.data.gov.uk/id/local-authority/43UM,WOKING BOROUGH COUNCIL,01/06/2022,01/06/2022,GPC/00019292,WIGHTMAN & PARRISH LTD,PROCUREMENT CARD,166.10,INDEPENDENT LIVING SERVICES - BROCKHILL EXTRA CARE,CLEANING MATERIALS,D920,CHEMICALS AND CLEANING SUPPLIES,FAYE MCCOMBE,LAB/MED/HOSPITAL EQUIPMENT
http://statistics.data.gov.uk/id/local-authority/43UM,WOKING BOROUGH COUNCIL,01/06/2022,01/06/2022,GPC/00019295,WIGHTMAN & PARRISH LTD,PROCUREMENT CARD,39.87,INDEPENDENT LIVING SERVICES - BROCKHILL EXTRA CARE,CLEANING MATERIALS,D920,NAPKINS FOR BROCKHILL,FAYE MCCOMBE,LAB/MED/HOSPITAL EQUIPMENT
http://statistics.data.gov.uk/id/local-authority/43UM,WOKING BOROUGH COUNCIL,01/06/2022,01/06/2022,GPC/00019303,WP-DIRECTORY OF SO,PROCUREMENT CARD,349.00,NEIGHBOURHOOD SERVICES - KICKSTART PROGRAMME,TRAINING FEE,P459,KICKSTARTER APPRENTICE SCHEME TRAINING,DONNA DRUMMOND,CHARITABLE/SOC SERVICE ORGS
http://statistics.data.gov.uk/id/local-authority/43UM,WOKING BOROUGH COUNCIL,01/06/2022,01/06/2022,GPC/00019310,WWW.SCREWFIX.COM,PROCUREMENT CARD,94.97,LEISURE SERVICES - SHEERWATER LEISURE CENTRE,R&M BUILDINGS - CONTRACTORS,D100,TOILET SEAT FOR EASTWOOD LEISURE CENTRE,MR D JONES,LUMBER/BUILD SUPPLY STORES
http://statistics.data.gov.uk/id/local-authority/43UM,WOKING BOROUGH COUNCIL,03/06/2022,03/06/2022,GPC/00019300,CLEARCHECK.CO.UK,PROCUREMENT CARD,8.00,CORPORATE MANAGEMENT GROUP - STAFF TRAINING/GENERAL COSTS,CRIMINAL RECORDS BUREAU FEES,H642,DBS ONLINE FEE,MRS SARAH REED,PROFESSIONAL SERVICES - DEF
http://statistics.data.gov.uk/id/local-authority/43UM,WOKING BOROUGH COUNCIL,03/06/2022,03/06/2022,GPC/00019301,TESCO STORES 5528,PROCUREMENT CARD,6.00,INDEPENDENT LIVING SERVICES - SOCIAL PRESCRIBING,EQUIPMENT,G100,ACCIDENTAL PURCHASE,GARY CORDERY,GROCERY STORES
http://statistics.data.gov.uk/id/local-authority/43UM,WOKING BOROUGH COUNCIL,05/06/2022,05/06/2022,GPC/00019308,BOOKERECOMM,PROCUREMENT CARD,10.99,INDEPENDENT LIVING SERVICES - MEALS SERVICE - BROCKHILL,PROVISIONS,G410,GROCERIES FOR KITCHENS,REBECCA STEVENS,CATERERS
http://statistics.data.gov.uk/id/local-authority/43UM,WOKING BOROUGH COUNCIL,05/06/2022,05/06/2022,GPC/00019308,BOOKERECOMM,PROCUREMENT CARD,12.85,INDEPENDENT LIVING SERVICES - MEALS SERVICE - BROCKHILL,PROVISIONS,G410,GROCERIES FOR KITCHENS,REBECCA STEVENS,CATERERS
http://statistics.data.gov.uk/id/local-authority/43UM,WOKING BOROUGH COUNCIL,05/06/2022,05/06/2022,GPC/00019308,BOOKERECOMM,PROCUREMENT CARD,19.24,INDEPENDENT LIVING SERVICES - MEALS SERVICE - ST MARYS,PROVISIONS,G410,GROCERIES FOR KITCHENS,REBECCA STEVENS,CATERERS
http://statistics.data.gov.uk/id/local-authority/43UM,WOKING BOROUGH COUNCIL,05/06/2022,05/06/2022,GPC/00019308,BOOKERECOMM,PROCUREMENT CARD,11.36,INDEPENDENT LIVING SERVICES - MEALS SERVICE -THE VYNE,PROVISIONS,G410,GROCERIES FOR KITCHENS,REBECCA STEVENS,CATERERS
http://statistics.data.gov.uk/id/local-authority/43UM,WOKING BOROUGH COUNCIL,05/06/2022,05/06/2022,GPC/00019308,BOOKERECOMM,PROCUREMENT CARD,14.95,INDEPENDENT LIVING SERVICES - MEALS SERVICE -THE VYNE,PROVISIONS,G410,GROCERIES FOR KITCHENS,REBECCA STEVENS,CATERERS
http://statistics.data.gov.uk/id/local-authority/43UM,WOKING BOROUGH COUNCIL,05/06/2022,05/06/2022,GPC/00019308,BOOKERECOMM,PROCUREMENT CARD,8.99,INDEPENDENT LIVING SERVICES - MEALS ON WHEELS,PROVISIONS,G410,GROCERIES FOR KITCHENS,REBECCA STEVENS,CATERERS
http://statistics.data.gov.uk/id/local-authority/43UM,WOKING BOROUGH COUNCIL,05/06/2022,05/06/2022,GPC/00019308,BOOKERECOMM,PROCUREMENT CARD,47.49,INDEPENDENT LIVING SERVICES - MEALS ON WHEELS,PROVISIONS,G410,GROCERIES FOR KITCHENS,REBECCA STEVENS,CATERERS
http://statistics.data.gov.uk/id/local-authority/43UM,WOKING BOROUGH COUNCIL,05/06/2022,05/06/2022,GPC/00019308,BOOKERECOMM,PROCUREMENT CARD,26.53,INDEPENDENT LIVING SERVICES - MEALS SERVICE - HALE END COURT,PROVISIONS,G410,GROCERIES FOR KITCHENS,REBECCA STEVENS,CATERERS
http://statistics.data.gov.uk/id/local-authority/43UM,WOKING BOROUGH COUNCIL,05/06/2022,05/06/2022,GPC/00019308,BOOKERECOMM,PROCUREMENT CARD,42.11,INDEPENDENT LIVING SERVICES - MEALS SERVICE - HALE END COURT,PROVISIONS,G410,GROCERIES FOR KITCHENS,REBECCA STEVENS,CATERERS
http://statistics.data.gov.uk/id/local-authority/43UM,WOKING BOROUGH COUNCIL,05/06/2022,05/06/2022,GPC/00019296,STARBUCKS,PROCUREMENT CARD,7.75,CORPORATE STRATEGY - CELEBRATE WOKING - MARKETING/PROMO 14,MAIN CONTRACTOR,Q200,REFRESHMENTS FOR BAND AT JUBILE,RIETTE THOMAS,FAST FOOD RESTAURANTS
http://statistics.data.gov.uk/id/local-authority/43UM,WOKING BOROUGH COUNCIL,05/06/2022,05/06/2022,GPC/00019305,STARBUCKS,PROCUREMENT CARD,16.12,CORPORATE STRATEGY - CELEBRATE WOKING - MARKETING/PROMO 14,MAIN CONTRACTOR,Q200,REFRESHMENTS FOR THE BAND,RIETTE THOMAS,FAST FOOD RESTAURANTS
http://statistics.data.gov.uk/id/local-authority/43UM,WOKING BOROUGH COUNCIL,06/06/2022,06/06/2022,GPC/00019325,AMZNMKTPLACE,PROCUREMENT CARD,18.75,ASSET MANAGEMENT - FACILITIES MANAGEMENT,FACILITIES MANAGEMENT REPAIRS,D908,POWER SUPPLY FOR IT RACK DEPOT,MR D JONES,MISC SPECIALITY RETAIL
http://statistics.data.gov.uk/id/local-authority/43UM,WOKING BOROUGH COUNCIL,06/06/2022,06/06/2022,GPC/00019327,AMZNMKTPLACE,PROCUREMENT CARD,22.96,INDEPENDENT LIVING SERVICES - FAMILY CENTRES,EQUIPMENT,G100,MAGNETIC BOARD - SYTH BUNGALOW,KESARA CHEENA,MISC SPECIALITY RETAIL
http://statistics.data.gov.uk/id/local-authority/43UM,WOKING BOROUGH COUNCIL,06/06/2022,06/06/2022,GPC/00019337,AMZNMKTPLACE,PROCUREMENT CARD,42.77,INDEPENDENT LIVING SERVICES - FAMILY CENTRES,EQUIPMENT,G100,MOBILO MOB - SYTH BUNGALOW,KESARA CHEENA,MISC SPECIALITY RETAIL
http://statistics.data.gov.uk/id/local-authority/43UM,WOKING BOROUGH COUNCIL,06/06/2022,06/06/2022,GPC/00019335,AMZNMKTPLACE,PROCUREMENT CARD,3.04,INDEPENDENT LIVING SERVICES - FAMILY CENTRES,PROVISIONS,G410,CRAFT - PROVISIONS SYTH,KESARA CHEENA,MISC SPECIALITY RETAIL
http://statistics.data.gov.uk/id/local-authority/43UM,WOKING BOROUGH COUNCIL,06/06/2022,06/06/2022,GPC/00019322,AMZNMKTPLACE,PROCUREMENT CARD,3.14,INDEPENDENT LIVING SERVICES - FAMILY CENTRES,PROVISIONS,G410,FAMILY ROOM SYTH BUNGALOW,KESARA CHEENA,MISC SPECIALITY RETAIL
http://statistics.data.gov.uk/id/local-authority/43UM,WOKING BOROUGH COUNCIL,06/06/2022,06/06/2022,GPC/00019338,AMZNMKTPLACE,PROCUREMENT CARD,4.16,INDEPENDENT LIVING SERVICES - FAMILY CENTRES,PROVISIONS,G410,NITAAR GLITTER FOAM STICKERS - SYTHWOOD BUNGALOW,KESARA CHEENA,MISC SPECIALITY RETAIL
http://statistics.data.gov.uk/id/local-authority/43UM,WOKING BOROUGH COUNCIL,06/06/2022,06/06/2022,GPC/00019318,AMZNMKTPLACE,PROCUREMENT CARD,9.98,INDEPENDENT LIVING SERVICES - FAMILY CENTRES,PROVISIONS,G410,PROVISIONS FOR SYTHWOOD FAMILY CENTRE,KESARA CHEENA,MISC SPECIALITY RETAIL
http://statistics.data.gov.uk/id/local-authority/43UM,WOKING BOROUGH COUNCIL,06/06/2022,06/06/2022,GPC/00019318,AMZNMKTPLACE,PROCUREMENT CARD,16.66,INDEPENDENT LIVING SERVICES - FAMILY CENTRES,PROVISIONS,G410,PROVISIONS FOR SYTHWOOD FAMILY CENTRE,KESARA CHEENA,MISC SPECIALITY RETAIL
http://statistics.data.gov.uk/id/local-authority/43UM,WOKING BOROUGH COUNCIL,06/06/2022,06/06/2022,GPC/00019321,AMZNMKTPLACE,PROCUREMENT CARD,9.14,INDEPENDENT LIVING SERVICES - FAMILY CENTRES,PROVISIONS,G410,PROVISIONS SYTHWOOD BUNGALOW,KESARA CHEENA,MISC SPECIALITY RETAIL
http://statistics.data.gov.uk/id/local-authority/43UM,WOKING BOROUGH COUNCIL,06/06/2022,06/06/2022,GPC/00019340,ARGOS LTD,PROCUREMENT CARD,-25.00,ASSET MANAGEMENT - CIVIC OFFICES,CONSUMABLES,G630,CREDIT NOTE FOR KETTLES,MOLLY DOYLE,DISCOUNT STORES
http://statistics.data.gov.uk/id/local-authority/43UM,WOKING BOROUGH COUNCIL,06/06/2022,06/06/2022,GPC/00019319,ARGOS LTD,PROCUREMENT CARD,202.92,HOUSING SERVICES - HOMELESSNESS DIRECTRTE FUNDING,RENT IN ADV. AFEO,H824,MARK SMITH HOUSHOLD GOODS,JANICE GOONERY,DISCOUNT STORES
http://statistics.data.gov.uk/id/local-authority/43UM,WOKING BOROUGH COUNCIL,06/06/2022,06/06/2022,GPC/00019331,ASDA  STORES 4775,PROCUREMENT CARD,47.00,ASSET MANAGEMENT - CIVIC OFFICES,CONSUMABLES,G630,3 X KETTLES FOR CIVIC OFFICES,MOLLY DOYLE,GROCERY STORES
http://statistics.data.gov.uk/id/local-authority/43UM,WOKING BOROUGH COUNCIL,06/06/2022,06/06/2022,GPC/00019336,ASDA STORES 4823,PROCUREMENT CARD,35.30,INDEPENDENT LIVING SERVICES - PARKVIEW,PROVISIONS,G410,ITEMS FOR CAFE,DONNA GREGORY,GROCERY STORES
http://statistics.data.gov.uk/id/local-authority/43UM,WOKING BOROUGH COUNCIL,06/06/2022,06/06/2022,GPC/00019347,MFG GOLDSWORTH PARK SERVI,PROCUREMENT CARD,58.66,NEIGHBOURHOOD SERVICES - SURREY HEATH ON STREET PARKING,PETROL,F200,FUEL FOR CEO VEHICLE,RICHARD TAYLOR,SERVICE STATIONS
http://statistics.data.gov.uk/id/local-authority/43UM,WOKING BOROUGH COUNCIL,06/06/2022,06/06/2022,GPC/00019324,NYA*BFT AUTOMATION,PROCUREMENT CARD,5.92,CORPORATE STRATEGY - WOMENS SUPPORT CENTRE SURREY,PARKING COSTS,F510,CAR PARK UNI APPRENTICESHIP,ABI MEICHTRY,MISC FOOD STORES - DEFAULT
http://statistics.data.gov.uk/id/local-authority/43UM,WOKING BOROUGH COUNCIL,06/06/2022,06/06/2022,GPC/00019323,SAINSBURYS S/MKTS,PROCUREMENT CARD,13.25,INDEPENDENT LIVING SERVICES - MEALS SERVICE - BROCKHILL,PROVISIONS,G410,FLANS MILK & BREAD FOR KITCHENS,FAYE MCCOMBE,GROCERY STORES
http://statistics.data.gov.uk/id/local-authority/43UM,WOKING BOROUGH COUNCIL,06/06/2022,06/06/2022,GPC/00019333,SCREWFIX DIR LTD,PROCUREMENT CARD,9.99,ASSET MANAGEMENT - PUBLIC CONVENIENCES,VANDALISM REPAIRS,D130,SASHLOCK FOR BYFLEET PUBLIC TOILETS,MR D JONES,LUMBER/BUILD SUPPLY STORES
http://statistics.data.gov.uk/id/local-authority/43UM,WOKING BOROUGH COUNCIL,06/06/2022,06/06/2022,GPC/00019329,TESCO STORE 2160,PROCUREMENT CARD,40.00,INDEPENDENT LIVING SERVICES - SOCIAL PRESCRIBING,MISC GRANTS,P410,JUBILEE FOOD,MONICA MEIGHAN,GROCERY STORES
http://statistics.data.gov.uk/id/local-authority/43UM,WOKING BOROUGH COUNCIL,06/06/2022,06/06/2022,GPC/00019342,THE HAVEN CAFE AT MOORCR,PROCUREMENT CARD,12.46,INDEPENDENT LIVING SERVICES - MOORCROFT,VOLUNTEER EXPENSES,H313,MEETING,RICHARD BUCKENHAM,FAST FOOD RESTAURANTS
http://statistics.data.gov.uk/id/local-authority/43UM,WOKING BOROUGH COUNCIL,06/06/2022,06/06/2022,GPC/00019332,WICKES STAINES,PROCUREMENT CARD,14.25,HOUSING SERVICES - HOME IMPS & BEN AGENCY,HANDYPERSON MATERIALS,G201,HANDYMAN MATERIALS,JASON BALCHIN,LUMBER/BUILD SUPPLY STORES
http://statistics.data.gov.uk/id/local-authority/43UM,WOKING BOROUGH COUNCIL,06/06/2022,06/06/2022,GPC/00019341,WICKES STAINES,PROCUREMENT CARD,109.46,HOUSING SERVICES - HOME IMPS & BEN AGENCY,HANDYPERSON MATERIALS,G201,HANDYMAN MATERIALS,JASON BALCHIN,LUMBER/BUILD SUPPLY STORES
http://statistics.data.gov.uk/id/local-authority/43UM,WOKING BOROUGH COUNCIL,06/06/2022,06/06/2022,GPC/00019343,WP-DIRECTORY OF SO,PROCUREMENT CARD,249.00,NEIGHBOURHOOD SERVICES - KICKSTART PROGRAMME,TRAINING FEE,P459,KICKSTARTER APPRENTICE SCHEME TRAINING,DONNA DRUMMOND,CHARITABLE/SOC SERVICE ORGS
http://statistics.data.gov.uk/id/local-authority/43UM,WOKING BOROUGH COUNCIL,06/06/2022,06/06/2022,GPC/00019326,WWW.MONEYCLAIM.GOV,PROCUREMENT CARD,70.00,CORPORATE STRATEGY - LEGAL,COURT COSTS,H620,SUBMISSION OF ONLINE MONEY CLAIM,JEEVAN MARWAHA,GOV'T SERV - DEFAULT
http://statistics.data.gov.uk/id/local-authority/43UM,WOKING BOROUGH COUNCIL,06/06/2022,06/06/2022,GPC/00019339,WWW.MONEYCLAIM.GOV,PROCUREMENT CARD,83.00,CORPORATE STRATEGY - LEGAL,COURT COSTS,H620,SUBMISSION OF WARRANT ONLINE,JEEVAN MARWAHA,GOV'T SERV - DEFAULT
http://statistics.data.gov.uk/id/local-authority/43UM,WOKING BOROUGH COUNCIL,06/06/2022,06/06/2022,GPC/00019330,WWW.SCREWFIX.COM,PROCUREMENT CARD,33.32,NEIGHBOURHOOD SERVICES - CPZ WBC FROM 25/7/05,EQUIPMENT,G100,MEASURING TAPE FOR LINES,RICHARD TAYLOR,LUMBER/BUILD SUPPLY STORES
http://statistics.data.gov.uk/id/local-authority/43UM,WOKING BOROUGH COUNCIL,07/06/2022,07/06/2022,GPC/00019361,AMZNBUSINESS,PROCUREMENT CARD,29.16,INDEPENDENT LIVING SERVICES - HALE END COURT,EVENTS EXPENSES,G418,DART BOARD,RIANNA MEME,MISC SPECIALITY RETAIL
http://statistics.data.gov.uk/id/local-authority/43UM,WOKING BOROUGH COUNCIL,07/06/2022,07/06/2022,GPC/00019351,AMZNMKTPLACE,PROCUREMENT CARD,24.70,NEIGHBOURHOOD SERVICES - HOUSING STANDARDS & LICENSING,STATIONERY,G620,1000 X KEY TAGS FOR HOUSING,MOLLY DOYLE,MISC SPECIALITY RETAIL
http://statistics.data.gov.uk/id/local-authority/43UM,WOKING BOROUGH COUNCIL,07/06/2022,07/06/2022,GPC/00019344,AMZNMKTPLACE,PROCUREMENT CARD,36.65,HOUSING SERVICES - HOME IMPS & BEN AGENCY,HANDYPERSON MATERIALS,G201,EQUIPMENT FOR WISH FLAT,MYCROFT HUNTER,MISC SPECIALITY RETAIL
http://statistics.data.gov.uk/id/local-authority/43UM,WOKING BOROUGH COUNCIL,07/06/2022,07/06/2022,GPC/00019334,AMZNMKTPLACE,PROCUREMENT CARD,33.33,INDEPENDENT LIVING SERVICES - FAMILY CENTRES,EQUIPMENT,G100,MAGNETIC BUILDING STICKS - SYTH,KESARA CHEENA,MISC SPECIALITY RETAIL
http://statistics.data.gov.uk/id/local-authority/43UM,WOKING BOROUGH COUNCIL,07/06/2022,07/06/2022,GPC/00019348,AMZNMKTPLACE,PROCUREMENT CARD,11.91,INDEPENDENT LIVING SERVICES - FAMILY CENTRES,EQUIPMENT,G100,SAND TRAYS - SYTH BUNGALOW,KESARA CHEENA,MISC SPECIALITY RETAIL
http://statistics.data.gov.uk/id/local-authority/43UM,WOKING BOROUGH COUNCIL,07/06/2022,07/06/2022,GPC/00019320,AMZNMKTPLACE,PROCUREMENT CARD,6.94,INDEPENDENT LIVING SERVICES - FAMILY CENTRES,PROVISIONS,G410,PROVISIONS SYTHWOOD BUNGALOW,KESARA CHEENA,MISC SPECIALITY RETAIL
http://statistics.data.gov.uk/id/local-authority/43UM,WOKING BOROUGH COUNCIL,07/06/2022,07/06/2022,GPC/00019320,AMZNMKTPLACE,PROCUREMENT CARD,8.32,INDEPENDENT LIVING SERVICES - FAMILY CENTRES,PROVISIONS,G410,PROVISIONS SYTHWOOD BUNGALOW,KESARA CHEENA,MISC SPECIALITY RETAIL
http://statistics.data.gov.uk/id/local-authority/43UM,WOKING BOROUGH COUNCIL,07/06/2022,07/06/2022,GPC/00019358,AO RETAIL LIMITED,PROCUREMENT CARD,186.75,HOUSING SERVICES - LETS RENT SCHEME,WTERMAN HSE FLOODG FOOD,H155,SETTING UP HOME MS,JANET COURTNEY,HOUSEHOLD APPLIANCE STORES
http://statistics.data.gov.uk/id/local-authority/43UM,WOKING BOROUGH COUNCIL,07/06/2022,07/06/2022,GPC/00019359,ARGOS LTD,PROCUREMENT CARD,149.98,ASSET MANAGEMENT - FACILITIES MANAGEMENT,FACILITIES MANAGEMENT REPAIRS,D908,TEAM CAMERAS,MR R D SMITH,DISCOUNT STORES
http://statistics.data.gov.uk/id/local-authority/43UM,WOKING BOROUGH COUNCIL,07/06/2022,07/06/2022,GPC/00019357,ARGOS LTD,PROCUREMENT CARD,145.82,HOUSING SERVICES - LETS RENT SCHEME,WTERMAN HSE FLOODG FOOD,H155,SETTING UP HOME MS,JANET COURTNEY,DISCOUNT STORES
http://statistics.data.gov.uk/id/local-authority/43UM,WOKING BOROUGH COUNCIL,07/06/2022,07/06/2022,GPC/00019362,BRITISH HEART FOUNDATION,PROCUREMENT CARD,130.00,HOUSING SERVICES - LETS RENT SCHEME,WTERMAN HSE FLOODG FOOD,H155,SETTING UP HOME MS,JANET COURTNEY,CHARITABLE/SOC SERVICE ORGS
http://statistics.data.gov.uk/id/local-authority/43UM,WOKING BOROUGH COUNCIL,07/06/2022,07/06/2022,GPC/00019345,C BREWER & SONS,PROCUREMENT CARD,40.28,HOUSING SERVICES - HOME IMPS & BEN AGENCY,HANDYPERSON MATERIALS,G201,HANDYMAN MATERIALS,JASON BALCHIN,LUMBER/BUILD SUPPLY STORES
http://statistics.data.gov.uk/id/local-authority/43UM,WOKING BOROUGH COUNCIL,07/06/2022,07/06/2022,GPC/00019356,MEMORY WALK,PROCUREMENT CARD,269.77,INDEPENDENT LIVING SERVICES - HALE END COURT,EVENTS EXPENSES,G418,DEMENTIA WEEK FUNDRASING,RIANNA MEME,CHARITABLE/SOC SERVICE ORGS
http://statistics.data.gov.uk/id/local-authority/43UM,WOKING BOROUGH COUNCIL,07/06/2022,07/06/2022,GPC/00019350,ONE STOP 1445,PROCUREMENT CARD,9.45,INDEPENDENT LIVING SERVICES - FAMILY SUPPORT PROGRAMME,FAMILY ENABLING (FSP PROJECT),H137,SUPPLIES FOR TALKING TEENS PARENTING COURSE,PALLAVI SHARAN,GROCERY STORES
http://statistics.data.gov.uk/id/local-authority/43UM,WOKING BOROUGH COUNCIL,07/06/2022,07/06/2022,GPC/00019353,SWRAILWAYSELFSERVE,PROCUREMENT CARD,24.40,HOUSING SERVICES - HOUSING OPTIONS,EQUIPMENT,G100,TRAIN TICKETS,SARAH PARSONS,PASSENGER RAILWAYS
http://statistics.data.gov.uk/id/local-authority/43UM,WOKING BOROUGH COUNCIL,07/06/2022,07/06/2022,GPC/00019355,TESCO STORES 5706,PROCUREMENT CARD,8.05,INDEPENDENT LIVING SERVICES - MEALS ON WHEELS,PROVISIONS,G410,EGGS FOR MOW,FAYE MCCOMBE,GROCERY STORES
http://statistics.data.gov.uk/id/local-authority/43UM,WOKING BOROUGH COUNCIL,07/06/2022,07/06/2022,GPC/00019346,THE HAVEN CAFE AT MOORCR,PROCUREMENT CARD,9.00,INDEPENDENT LIVING SERVICES - MOORCROFT,VOLUNTEER EXPENSES,H313,SUPPORT MEETING,RICHARD BUCKENHAM,FAST FOOD RESTAURANTS
http://statistics.data.gov.uk/id/local-authority/43UM,WOKING BOROUGH COUNCIL,07/06/2022,07/06/2022,GPC/00019354,TRAVELODGE GB0000,PROCUREMENT CARD,549.05,HOUSING SERVICES - HOUSING OPTIONS,BED & BREAKFAST EXPENDITURE,H786,BED AND BREAKFAST,ANGELLA KENTARO,TRAVELODGE
http://statistics.data.gov.uk/id/local-authority/43UM,WOKING BOROUGH COUNCIL,07/06/2022,07/06/2022,GPC/00019360,TRAVELODGE GB0000,PROCUREMENT CARD,549.05,HOUSING SERVICES - HOUSING OPTIONS,BED & BREAKFAST EXPENDITURE,H786,BED AND BREAKFAST,ANGELLA KENTARO,TRAVELODGE
http://statistics.data.gov.uk/id/local-authority/43UM,WOKING BOROUGH COUNCIL,07/06/2022,07/06/2022,GPC/00019349,WAITROSE 181,PROCUREMENT CARD,3.40,INDEPENDENT LIVING SERVICES - BROCKHILL EXTRA CARE,STEP DOWN,H300,ITEMS FOR STEPDOWN,OVIDIU MITROFAN,GROCERY STORES
http://statistics.data.gov.uk/id/local-authority/43UM,WOKING BOROUGH COUNCIL,07/06/2022,07/06/2022,GPC/00019352,WILKO RETAIL LIMITED,PROCUREMENT CARD,54.58,HOUSING SERVICES - LETS RENT SCHEME,WTERMAN HSE FLOODG FOOD,H155,SETTING UP HOME MS,JANET COURTNEY,MISC GEN MERCHANDISE - DEF
http://statistics.data.gov.uk/id/local-authority/43UM,WOKING BOROUGH COUNCIL,23/05/2022,08/06/2022,0000478155/001,1ST BYFLEET SCOUT GROUP,40601200,500.04,ASSET MANAGEMENT - PROPERTY SERVICES,R&M BUILDINGS - CONTRACTORS,D100,R&M BUILDINGS - CONTRACTORS,ASSET MANAGEMENT,FACILITIES & MANAGEMENT SERVICES
http://statistics.data.gov.uk/id/local-authority/43UM,WOKING BOROUGH COUNCIL,08/06/2022,08/06/2022,GPC/00019368,3C_*WOKING BOROUGH COUNC,PROCUREMENT CARD,5.25,INDEPENDENT LIVING SERVICES - FAMILY CENTRES,PROCUREMENT CARD,H990,PARKING,NICOLA NORMAN,AUTO PARKING LOTS/GARAGES
http://statistics.data.gov.uk/id/local-authority/43UM,WOKING BOROUGH COUNCIL,27/05/2022,08/06/2022,0000478264/001,ABC UMBRELLA LTD,41031700,937.50,REVENUES AND BENEFITS - COUNCIL TAX,TEMPORARY STAFF,A110,TEMPORARY STAFF,REVENUES AND BENEFITS,HUMAN RESOURCES
http://statistics.data.gov.uk/id/local-authority/43UM,WOKING BOROUGH COUNCIL,26/05/2022,08/06/2022,0000478170/001,ACTIVE FACILITY SOLUTIONS LIMITED,40630000,950.00,HOUSING SERVICES - DISABLED FACILITIES GRANTS,MANDATORY GRANTS,Q712,MANDATORY GRANTS,HOUSING SERVICES,WORKS (CONSTRUCTION REPAIR MAINTENANCE)
http://statistics.data.gov.uk/id/local-authority/43UM,WOKING BOROUGH COUNCIL,04/05/2022,08/06/2022,0000478235/001,ACTIVE FACILITY SOLUTIONS LIMITED,40630000,"2,885.00",HOUSING SERVICES - DISABLED FACILITIES GRANTS,MANDATORY GRANTS,Q712,MANDATORY GRANTS,HOUSING SERVICES,WORKS (CONSTRUCTION REPAIR MAINTENANCE)
http://statistics.data.gov.uk/id/local-authority/43UM,WOKING BOROUGH COUNCIL,28/05/2022,08/06/2022,0000478478/001,AFFINITY WATER,01095900,28.21,HOUSING SERVICES - LANDLORDS EXPENSES,WATER,D700,WATER,HOUSING SERVICES,UTILITIES
http://statistics.data.gov.uk/id/local-authority/43UM,WOKING BOROUGH COUNCIL,31/05/2022,08/06/2022,0000478431/001,AKW MEDI-CARE LIMITED,01281500,571.95,HOUSING SERVICES - HOME IMPS & BEN AGENCY,HANDYPERSON MATERIALS,G201,HANDYPERSON MATERIALS,HOUSING SERVICES,HEALTHCARE
http://statistics.data.gov.uk/id/local-authority/43UM,WOKING BOROUGH COUNCIL,23/05/2022,08/06/2022,0000478229/001,ALPHABET (GB) LIMITED,00015200,96.00,CORPORATE MANAGEMENT GROUP - LEASED CAR DEDUCTIONS,RECOVERABLE COSTS,T162,RECOVERABLE COSTS,CORPORATE MANAGEMENT GROUP,VEHICLE MANAGEMENT
http://statistics.data.gov.uk/id/local-authority/43UM,WOKING BOROUGH COUNCIL,23/05/2022,08/06/2022,0000478229/003,ALPHABET (GB) LIMITED,00015200,9.60,CORPORATE MANAGEMENT GROUP - LEASED CAR DEDUCTIONS,RECOVERABLE COSTS,T162,RECOVERABLE COSTS,CORPORATE MANAGEMENT GROUP,VEHICLE MANAGEMENT
http://statistics.data.gov.uk/id/local-authority/43UM,WOKING BOROUGH COUNCIL,26/05/2022,08/06/2022,0000478277/001,ALPHABET (GB) LIMITED,00015200,72.00,HOUSING SERVICES - HOME IMPS & BEN AGENCY,VEHICLE LEASING COSTS,F400,VEHICLE LEASING COSTS,HOUSING SERVICES,VEHICLE MANAGEMENT
http://statistics.data.gov.uk/id/local-authority/43UM,WOKING BOROUGH COUNCIL,08/06/2022,08/06/2022,GPC/00019366,AMZNMKTPLACE,PROCUREMENT CARD,4.16,INDEPENDENT LIVING SERVICES - HALE END COURT,PROVISIONS,G410,LIFT KEY X2,RIANNA MEME,MISC SPECIALITY RETAIL
http://statistics.data.gov.uk/id/local-authority/43UM,WOKING BOROUGH COUNCIL,28/04/2022,08/06/2022,0000478221/001,AQUANEED LIMITED,01623100,"7,429.74",HOUSING SERVICES - DISABLED FACILITIES GRANTS,MANDATORY GRANTS,Q712,MANDATORY GRANTS,HOUSING SERVICES,BUILDING CONSTRUCTION MATERIALS
http://statistics.data.gov.uk/id/local-authority/43UM,WOKING BOROUGH COUNCIL,03/06/2022,08/06/2022,0000478345/001,ARTICLE SEVEN,00942800,206.25,INFORMATION TECHNOLOGY - I.T.S. ICT,PC & SERVER SYSTEMS SOFTWARE,G193,PC & SERVER SYSTEMS SOFTWARE,INFORMATION TECHNOLOGY,FACILITIES & MANAGEMENT SERVICES
http://statistics.data.gov.uk/id/local-authority/43UM,WOKING BOROUGH COUNCIL,26/05/2022,08/06/2022,0000478249/001,ASSOCIATION OF ELECTORAL ADMINISTRATORS,00583500,"2,075.00",CORPORATE STRATEGY - BOROUGH ELECTIONS,ELECTIONS TRAINING,H283,ELECTIONS TRAINING,CORPORATE STRATEGY,HUMAN RESOURCES
http://statistics.data.gov.uk/id/local-authority/43UM,WOKING BOROUGH COUNCIL,25/05/2022,08/06/2022,0000478200/001,BBF FIELDING LIMITED,00114900,"7,500.00",ASSET MANAGEMENT - PROPERTY SERVICES,CONSULTANTS,H670,CONSULTANTS,ASSET MANAGEMENT,WORKS (CONSTRUCTION REPAIR MAINTENANCE)
http://statistics.data.gov.uk/id/local-authority/43UM,WOKING BOROUGH COUNCIL,01/02/2022,08/06/2022,0000478089/003,BDI SECURITIES,40768200,155.45,NEIGHBOURHOOD SERVICES - WOKING PARK LEISURE CAR PARKS,CASH COLLECTION SERVICE,H600,CASH COLLECTION SERVICE,NEIGHBOURHOOD SERVICES,FINANCIAL SERVICES
http://statistics.data.gov.uk/id/local-authority/43UM,WOKING BOROUGH COUNCIL,01/03/2022,08/06/2022,0000478090/003,BDI SECURITIES,40768200,156.88,NEIGHBOURHOOD SERVICES - WOKING PARK LEISURE CAR PARKS,CASH COLLECTION SERVICE,H600,CASH COLLECTION SERVICE,NEIGHBOURHOOD SERVICES,FINANCIAL SERVICES
http://statistics.data.gov.uk/id/local-authority/43UM,WOKING BOROUGH COUNCIL,01/02/2022,08/06/2022,0000478089/001,BDI SECURITIES,40768200,"1,518.86",NEIGHBOURHOOD SERVICES - CAR PARKS ADMIN&OPERATIONAL EX,CASH COLLECTION SERVICE,H600,CASH COLLECTION SERVICE,NEIGHBOURHOOD SERVICES,FINANCIAL SERVICES
http://statistics.data.gov.uk/id/local-authority/43UM,WOKING BOROUGH COUNCIL,01/03/2022,08/06/2022,0000478090/001,BDI SECURITIES,40768200,"1,531.09",NEIGHBOURHOOD SERVICES - CAR PARKS ADMIN&OPERATIONAL EX,CASH COLLECTION SERVICE,H600,CASH COLLECTION SERVICE,NEIGHBOURHOOD SERVICES,FINANCIAL SERVICES
http://statistics.data.gov.uk/id/local-authority/43UM,WOKING BOROUGH COUNCIL,01/02/2022,08/06/2022,0000478089/002,BDI SECURITIES,40768200,488.58,NEIGHBOURHOOD SERVICES - CPZ WBC FROM 25/7/05,CASH COLLECTION SERVICE,H600,CASH COLLECTION SERVICE,NEIGHBOURHOOD SERVICES,FINANCIAL SERVICES
http://statistics.data.gov.uk/id/local-authority/43UM,WOKING BOROUGH COUNCIL,01/03/2022,08/06/2022,0000478090/002,BDI SECURITIES,40768200,493.06,NEIGHBOURHOOD SERVICES - CPZ WBC FROM 25/7/05,CASH COLLECTION SERVICE,H600,CASH COLLECTION SERVICE,NEIGHBOURHOOD SERVICES,FINANCIAL SERVICES
http://statistics.data.gov.uk/id/local-authority/43UM,WOKING BOROUGH COUNCIL,11/04/2022,08/06/2022,0000478150/001,BENTLEY MOBILITY SERVICES LTD,40462300,"3,415.00",HOUSING SERVICES - DISABLED FACILITIES GRANTS,MANDATORY GRANTS,Q712,MANDATORY GRANTS,HOUSING SERVICES,WORKS (CONSTRUCTION REPAIR MAINTENANCE)
http://statistics.data.gov.uk/id/local-authority/43UM,WOKING BOROUGH COUNCIL,23/05/2022,08/06/2022,0000478233/001,BENTLEY MOBILITY SERVICES LTD,40462300,320.00,HOUSING SERVICES - DISABLED FACILITIES GRANTS,MANDATORY GRANTS,Q712,MANDATORY GRANTS,HOUSING SERVICES,WORKS (CONSTRUCTION REPAIR MAINTENANCE)
http://statistics.data.gov.uk/id/local-authority/43UM,WOKING BOROUGH COUNCIL,24/05/2022,08/06/2022,0000478232/001,BLITZ CORPORATION LTD,41031400,421.54,NEIGHBOURHOOD SERVICES - SPORTS DEVELOPMENT,NEW EQUIPMENT,G105,NEW EQUIPMENT,NEIGHBOURHOOD SERVICES,SOCIAL COMMUNITY CARE SUP & SERV (ADULT)
http://statistics.data.gov.uk/id/local-authority/43UM,WOKING BOROUGH COUNCIL,10/06/2022,08/06/2022,0000478144/001,BOOM! CREDIT UNION,40344200,716.00,CORPORATE STRATEGY - SURREY SAVE CREDIT UNION,PAYMENTS OVER,S340,PAYMENTS OVER,CORPORATE STRATEGY,FINANCIAL SERVICES
http://statistics.data.gov.uk/id/local-authority/43UM,WOKING BOROUGH COUNCIL,22/05/2022,08/06/2022,0000478284/001,BRISTOW & SUTOR,40257600,3.00,REVENUES AND BENEFITS - RENT ALLOWANCES,DEBT COLLECTION AGENCY COMMISS,H910,DEBT COLLECTION AGENCY COMMISS,REVENUES AND BENEFITS,FINANCIAL SERVICES
http://statistics.data.gov.uk/id/local-authority/43UM,WOKING BOROUGH COUNCIL,22/05/2022,08/06/2022,0000478242/001,BRISTOW & SUTOR,40257600,13.80,HOUSING SERVICES - HOUSING OPTIONS,DEBT COLLECTION AGENCY COMMISS,H910,DEBT COLLECTION AGENCY COMMISS,HOUSING SERVICES,FINANCIAL SERVICES
http://statistics.data.gov.uk/id/local-authority/43UM,WOKING BOROUGH COUNCIL,20/05/2022,08/06/2022,0000478234/001,BRITISH GAS,01736300,97.55,HOUSING SERVICES - LANDLORDS EXPENSES,GAS,D420,GAS,HOUSING SERVICES,UTILITIES
http://statistics.data.gov.uk/id/local-authority/43UM,WOKING BOROUGH COUNCIL,03/05/2022,08/06/2022,0000477526/001,BRITISH GAS BUSINESS,00065700,176.87,ASSET MANAGEMENT - HIF WTC 6 GUILDFORD RD OPP PUR,OTHER CONSULTANTS,Q430,OTHER CONSULTANTS,ASSET MANAGEMENT,UTILITIES
http://statistics.data.gov.uk/id/local-authority/43UM,WOKING BOROUGH COUNCIL,21/04/2022,08/06/2022,0000478149/001,CAPITA BUSINESS SERVICES LTD,00585800,"5,638.02",REVENUES AND BENEFITS - COUNCIL TAX LOCAL SCHEME,SET UP COSTS,H476,SET UP COSTS,REVENUES AND BENEFITS,CONSULTANCY
http://statistics.data.gov.uk/id/local-authority/43UM,WOKING BOROUGH COUNCIL,16/05/2022,08/06/2022,0000477935/001,CHARLES PUGH (WINDSCREENS) LTD,40486500,230.26,ASSET MANAGEMENT - LEASED CAR INSURANCE,GARAGE REPAIR COSTS,T167,GARAGE REPAIR COSTS,ASSET MANAGEMENT,VEHICLE MANAGEMENT
http://statistics.data.gov.uk/id/local-authority/43UM,WOKING BOROUGH COUNCIL,16/05/2022,08/06/2022,0000478103/001,CHARLES PUGH (WINDSCREENS) LTD,40486500,-230.26,ASSET MANAGEMENT - LEASED CAR INSURANCE,GARAGE REPAIR COSTS,T167,GARAGE REPAIR COSTS,ASSET MANAGEMENT,VEHICLE MANAGEMENT
http://statistics.data.gov.uk/id/local-authority/43UM,WOKING BOROUGH COUNCIL,16/05/2022,08/06/2022,0000478395/001,CHARLES PUGH (WINDSCREENS) LTD,40486500,50.00,ASSET MANAGEMENT - LEASED CAR INSURANCE,GARAGE REPAIR COSTS,T167,GARAGE REPAIR COSTS,ASSET MANAGEMENT,VEHICLE MANAGEMENT
http://statistics.data.gov.uk/id/local-authority/43UM,WOKING BOROUGH COUNCIL,31/05/2022,08/06/2022,0000478419/001,CHASE INVENTORY SERVICES LIMITED,40239800,85.00,HOUSING SERVICES - TENANCY SUPPORT SCHEME,PROPERTY INSPECTIONS,H772,PROPERTY INSPECTIONS,HOUSING SERVICES,CONSULTANCY
http://statistics.data.gov.uk/id/local-authority/43UM,WOKING BOROUGH COUNCIL,31/05/2022,08/06/2022,0000478420/001,CHASE INVENTORY SERVICES LIMITED,40239800,85.00,HOUSING SERVICES - TENANCY SUPPORT SCHEME,PROPERTY INSPECTIONS,H772,PROPERTY INSPECTIONS,HOUSING SERVICES,CONSULTANCY
http://statistics.data.gov.uk/id/local-authority/43UM,WOKING BOROUGH COUNCIL,31/05/2022,08/06/2022,0000478421/001,CHASE INVENTORY SERVICES LIMITED,40239800,85.00,HOUSING SERVICES - TENANCY SUPPORT SCHEME,PROPERTY INSPECTIONS,H772,PROPERTY INSPECTIONS,HOUSING SERVICES,CONSULTANCY
http://statistics.data.gov.uk/id/local-authority/43UM,WOKING BOROUGH COUNCIL,21/04/2022,08/06/2022,0000478460/001,CITIZENS ADVICE WOKING,00013200,"60,125.00",CORPORATE STRATEGY - GRANTS TO ORGANISATION,GRANTS,H100,GRANTS,CORPORATE STRATEGY,FINANCIAL SERVICES
http://statistics.data.gov.uk/id/local-authority/43UM,WOKING BOROUGH COUNCIL,31/05/2022,08/06/2022,0000478405/001,COMPLETE IT SYSTEMS LIMITED,40591300,769.00,INFORMATION TECHNOLOGY - ICT GENERAL REPLACEMENT 2022/23,ADDITIONAL EQUIPMENT,Q020,ADDITIONAL EQUIPMENT,INFORMATION TECHNOLOGY,INFORMATION COMMUNICATION TECHNOLOGY
http://statistics.data.gov.uk/id/local-authority/43UM,WOKING BOROUGH COUNCIL,26/05/2022,08/06/2022,0000478192/001,CONFERO COLLECTIONS LTD,40406000,0.69,REVENUES AND BENEFITS - COUNCIL TAX,DEBT COLLECTION AGENCY COMMISS,H910,DEBT COLLECTION AGENCY COMMISS,REVENUES AND BENEFITS,CONSULTANCY
http://statistics.data.gov.uk/id/local-authority/43UM,WOKING BOROUGH COUNCIL,19/05/2022,08/06/2022,0000478176/001,DAVITT JONES BOULD LTD - SOLICITORS,01490800,"2,892.70",CORPORATE STRATEGY - LEGAL,AD HOC WORK,H781,AD HOC WORK,CORPORATE STRATEGY,LEGAL SERVICES
http://statistics.data.gov.uk/id/local-authority/43UM,WOKING BOROUGH COUNCIL,19/05/2022,08/06/2022,0000478177/001,DAVITT JONES BOULD LTD - SOLICITORS,01490800,659.10,CORPORATE STRATEGY - LEGAL,AD HOC WORK,H781,AD HOC WORK,CORPORATE STRATEGY,LEGAL SERVICES
http://statistics.data.gov.uk/id/local-authority/43UM,WOKING BOROUGH COUNCIL,19/05/2022,08/06/2022,0000478178/001,DAVITT JONES BOULD LTD - SOLICITORS,01490800,"2,180.10",CORPORATE STRATEGY - LEGAL,AD HOC WORK,H781,AD HOC WORK,CORPORATE STRATEGY,LEGAL SERVICES
http://statistics.data.gov.uk/id/local-authority/43UM,WOKING BOROUGH COUNCIL,19/05/2022,08/06/2022,0000478179/001,DAVITT JONES BOULD LTD - SOLICITORS,01490800,101.40,CORPORATE STRATEGY - LEGAL,AD HOC WORK,H781,AD HOC WORK,CORPORATE STRATEGY,LEGAL SERVICES
http://statistics.data.gov.uk/id/local-authority/43UM,WOKING BOROUGH COUNCIL,19/05/2022,08/06/2022,0000478180/001,DAVITT JONES BOULD LTD - SOLICITORS,01490800,"1,166.10",CORPORATE STRATEGY - LEGAL,AD HOC WORK,H781,AD HOC WORK,CORPORATE STRATEGY,LEGAL SERVICES
http://statistics.data.gov.uk/id/local-authority/43UM,WOKING BOROUGH COUNCIL,19/05/2022,08/06/2022,0000478181/001,DAVITT JONES BOULD LTD - SOLICITORS,01490800,50.70,CORPORATE STRATEGY - LEGAL,AD HOC WORK,H781,AD HOC WORK,CORPORATE STRATEGY,LEGAL SERVICES
http://statistics.data.gov.uk/id/local-authority/43UM,WOKING BOROUGH COUNCIL,28/05/2022,08/06/2022,0000478473/001,E.ON ENERGY SOLUTIONS LIMITED,40941500,100.95,ASSET MANAGEMENT - HIF WTC 6 GUILDFORD RD OPP PUR,OTHER CONSULTANTS,Q430,OTHER CONSULTANTS,ASSET MANAGEMENT,UTILITIES
http://statistics.data.gov.uk/id/local-authority/43UM,WOKING BOROUGH COUNCIL,17/02/2022,08/06/2022,0000474847/001,EDF ENERGY CUSTOMERS PLC,01451600,500.75,HOUSING SERVICES - LANDLORDS EXPENSES,ELECTRICITY,D400,ELECTRICITY,HOUSING SERVICES,UTILITIES
http://statistics.data.gov.uk/id/local-authority/43UM,WOKING BOROUGH COUNCIL,26/05/2022,08/06/2022,0000478296/001,EDF ENERGY CUSTOMERS PLC,01451600,66.81,HOUSING SERVICES - LANDLORDS EXPENSES,ELECTRICITY,D400,ELECTRICITY,HOUSING SERVICES,UTILITIES
http://statistics.data.gov.uk/id/local-authority/43UM,WOKING BOROUGH COUNCIL,31/05/2022,08/06/2022,0000478366/001,EMCOR GROUP (UK) PLC,00004600,"1,672.53",INFORMATION TECHNOLOGY - I.T.S. ICT,EXPORT HOUSE CHARGES,G131,EXPORT HOUSE CHARGES,INFORMATION TECHNOLOGY,WORKS (CONSTRUCTION REPAIR MAINTENANCE)
http://statistics.data.gov.uk/id/local-authority/43UM,WOKING BOROUGH COUNCIL,31/05/2022,08/06/2022,0000478483/001,EMCOR GROUP (UK) PLC,00004600,829.40,INFORMATION TECHNOLOGY - I.T.S. ICT,EXPORT HOUSE CHARGES,G131,EXPORT HOUSE CHARGES,INFORMATION TECHNOLOGY,WORKS (CONSTRUCTION REPAIR MAINTENANCE)
http://statistics.data.gov.uk/id/local-authority/43UM,WOKING BOROUGH COUNCIL,31/05/2022,08/06/2022,0000478483/002,EMCOR GROUP (UK) PLC,00004600,41.47,INFORMATION TECHNOLOGY - I.T.S. ICT,EXPORT HOUSE CHARGES,G131,EXPORT HOUSE CHARGES,INFORMATION TECHNOLOGY,WORKS (CONSTRUCTION REPAIR MAINTENANCE)
http://statistics.data.gov.uk/id/local-authority/43UM,WOKING BOROUGH COUNCIL,31/05/2022,08/06/2022,0000478372/001,EUROFFICE LTD,40943900,21.10,ASSET MANAGEMENT - CIVIC OFFICES,VENDING SERVICES,G420,VENDING SERVICES,ASSET MANAGEMENT,STATIONERY
http://statistics.data.gov.uk/id/local-authority/43UM,WOKING BOROUGH COUNCIL,31/05/2022,08/06/2022,0000478372/002,EUROFFICE LTD,40943900,49.38,ASSET MANAGEMENT - CIVIC OFFICES,VENDING SERVICES,G420,VENDING SERVICES,ASSET MANAGEMENT,STATIONERY
http://statistics.data.gov.uk/id/local-authority/43UM,WOKING BOROUGH COUNCIL,20/05/2022,08/06/2022,0000478206/001,FAITH RECRUITMENT,01709500,668.48,CORPORATE STRATEGY - CUSTOMER SERVICES,TEMPORARY STAFF,A110,TEMPORARY STAFF,CORPORATE STRATEGY,HUMAN RESOURCES
http://statistics.data.gov.uk/id/local-authority/43UM,WOKING BOROUGH COUNCIL,20/05/2022,08/06/2022,0000478207/001,FAITH RECRUITMENT,01709500,668.48,CORPORATE STRATEGY - CUSTOMER SERVICES,TEMPORARY STAFF,A110,TEMPORARY STAFF,CORPORATE STRATEGY,HUMAN RESOURCES
http://statistics.data.gov.uk/id/local-authority/43UM,WOKING BOROUGH COUNCIL,27/05/2022,08/06/2022,0000478411/001,FAITH RECRUITMENT,01709500,668.48,CORPORATE STRATEGY - CUSTOMER SERVICES,TEMPORARY STAFF,A110,TEMPORARY STAFF,CORPORATE STRATEGY,HUMAN RESOURCES
http://statistics.data.gov.uk/id/local-authority/43UM,WOKING BOROUGH COUNCIL,13/05/2022,08/06/2022,0000477990/001,FAITH RECRUITMENT,01709500,41.37,NEIGHBOURHOOD SERVICES - PARKING SERVICES,TEMPORARY STAFF,A110,TEMPORARY STAFF,NEIGHBOURHOOD SERVICES,HUMAN RESOURCES
http://statistics.data.gov.uk/id/local-authority/43UM,WOKING BOROUGH COUNCIL,13/05/2022,08/06/2022,0000477991/001,FAITH RECRUITMENT,01709500,663.38,NEIGHBOURHOOD SERVICES - PARKING SERVICES,TEMPORARY STAFF,A110,TEMPORARY STAFF,NEIGHBOURHOOD SERVICES,HUMAN RESOURCES
http://statistics.data.gov.uk/id/local-authority/43UM,WOKING BOROUGH COUNCIL,13/05/2022,08/06/2022,0000477992/001,FAITH RECRUITMENT,01709500,41.37,NEIGHBOURHOOD SERVICES - PARKING SERVICES,TEMPORARY STAFF,A110,TEMPORARY STAFF,NEIGHBOURHOOD SERVICES,HUMAN RESOURCES
http://statistics.data.gov.uk/id/local-authority/43UM,WOKING BOROUGH COUNCIL,13/05/2022,08/06/2022,0000477997/001,FAITH RECRUITMENT,01709500,663.38,NEIGHBOURHOOD SERVICES - PARKING SERVICES,TEMPORARY STAFF,A110,TEMPORARY STAFF,NEIGHBOURHOOD SERVICES,HUMAN RESOURCES
http://statistics.data.gov.uk/id/local-authority/43UM,WOKING BOROUGH COUNCIL,20/05/2022,08/06/2022,0000478204/001,FAITH RECRUITMENT,01709500,663.38,NEIGHBOURHOOD SERVICES - PARKING SERVICES,TEMPORARY STAFF,A110,TEMPORARY STAFF,NEIGHBOURHOOD SERVICES,HUMAN RESOURCES
http://statistics.data.gov.uk/id/local-authority/43UM,WOKING BOROUGH COUNCIL,20/05/2022,08/06/2022,0000478205/001,FAITH RECRUITMENT,01709500,41.37,NEIGHBOURHOOD SERVICES - PARKING SERVICES,TEMPORARY STAFF,A110,TEMPORARY STAFF,NEIGHBOURHOOD SERVICES,HUMAN RESOURCES
http://statistics.data.gov.uk/id/local-authority/43UM,WOKING BOROUGH COUNCIL,20/05/2022,08/06/2022,0000478210/001,FAITH RECRUITMENT,01709500,663.38,NEIGHBOURHOOD SERVICES - PARKING SERVICES,TEMPORARY STAFF,A110,TEMPORARY STAFF,NEIGHBOURHOOD SERVICES,HUMAN RESOURCES
http://statistics.data.gov.uk/id/local-authority/43UM,WOKING BOROUGH COUNCIL,20/05/2022,08/06/2022,0000478211/001,FAITH RECRUITMENT,01709500,41.37,NEIGHBOURHOOD SERVICES - PARKING SERVICES,TEMPORARY STAFF,A110,TEMPORARY STAFF,NEIGHBOURHOOD SERVICES,HUMAN RESOURCES
http://statistics.data.gov.uk/id/local-authority/43UM,WOKING BOROUGH COUNCIL,20/05/2022,08/06/2022,0000478208/001,FAITH RECRUITMENT,01709500,509.44,PLANNING SERVICES - DEVELOPMENT CONTROL,TEMPORARY STAFF,A110,TEMPORARY STAFF,PLANNING SERVICES,HUMAN RESOURCES
http://statistics.data.gov.uk/id/local-authority/43UM,WOKING BOROUGH COUNCIL,20/05/2022,08/06/2022,0000478209/001,FAITH RECRUITMENT,01709500,41.37,PLANNING SERVICES - DEVELOPMENT CONTROL,TEMPORARY STAFF,A110,TEMPORARY STAFF,PLANNING SERVICES,HUMAN RESOURCES
http://statistics.data.gov.uk/id/local-authority/43UM,WOKING BOROUGH COUNCIL,27/05/2022,08/06/2022,0000478412/001,FAITH RECRUITMENT,01709500,41.37,PLANNING SERVICES - DEVELOPMENT CONTROL,TEMPORARY STAFF,A110,TEMPORARY STAFF,PLANNING SERVICES,HUMAN RESOURCES
http://statistics.data.gov.uk/id/local-authority/43UM,WOKING BOROUGH COUNCIL,30/05/2022,08/06/2022,0000478283/001,FARNBOROUGH CONTRACTING SERVICES,40501900,550.00,NEIGHBOURHOOD SERVICES - HEATHSIDE CRESCENT,R&M BUILDINGS - CONTRACTORS,D100,R&M BUILDINGS - CONTRACTORS,NEIGHBOURHOOD SERVICES,WORKS (CONSTRUCTION REPAIR MAINTENANCE)
http://statistics.data.gov.uk/id/local-authority/43UM,WOKING BOROUGH COUNCIL,30/05/2022,08/06/2022,0000478282/001,FARNBOROUGH CONTRACTING SERVICES,40501900,980.62,NEIGHBOURHOOD SERVICES - VICTORIA WAY CAR PARK,R&M REACTIVE MAINTENANCE,D107,R&M REACTIVE MAINTENANCE,NEIGHBOURHOOD SERVICES,WORKS (CONSTRUCTION REPAIR MAINTENANCE)
http://statistics.data.gov.uk/id/local-authority/43UM,WOKING BOROUGH COUNCIL,30/04/2022,08/06/2022,0000478330/001,FATMA MEHMET,40663600,389.80,CORPORATE STRATEGY - WAVS,INTERPRETATION & TRANSLATION,H636,INTERPRETATION & TRANSLATION,CORPORATE STRATEGY,CONSULTANCY
http://statistics.data.gov.uk/id/local-authority/43UM,WOKING BOROUGH COUNCIL,01/06/2022,08/06/2022,0000478388/001,FLYING UMBRELLA,41022200,800.00,REVENUES AND BENEFITS - BENEFIT SERVICES,TEMPORARY STAFF,A110,TEMPORARY STAFF,REVENUES AND BENEFITS,HUMAN RESOURCES
http://statistics.data.gov.uk/id/local-authority/43UM,WOKING BOROUGH COUNCIL,30/05/2022,08/06/2022,0000478300/001,FRANCIS TOWNSEND,41010300,175.00,NEIGHBOURHOOD SERVICES - SPORTS DEVELOPMENT,ADVERTISING,H400,ADVERTISING,NEIGHBOURHOOD SERVICES,ARTS & LEISURE SERVICES
http://statistics.data.gov.uk/id/local-authority/43UM,WOKING BOROUGH COUNCIL,23/05/2022,08/06/2022,0000478060/001,FRAZERS SURVEYORS LTD,00076400,175.00,HOUSING SERVICES - SALE COUNCIL HOUSES,OTHER CONSULTANTS,Q430,OTHER CONSULTANTS,HOUSING SERVICES,HOUSING MANAGEMENT
http://statistics.data.gov.uk/id/local-authority/43UM,WOKING BOROUGH COUNCIL,31/03/2022,08/06/2022,0000476600/001,FREEDOM LEISURE,40296500,39.01,LEISURE SERVICES - SHEERWATER LEISURE CENTRE,NEW EQUIPMENT,G105,NEW EQUIPMENT,LEISURE SERVICES,HUMAN RESOURCES
http://statistics.data.gov.uk/id/local-authority/43UM,WOKING BOROUGH COUNCIL,22/03/2022,08/06/2022,0000476006/001,FREEDOM LEISURE,40296500,"7,288.00",BUILDING SERVICES - L.M.C. - HOE VALLEY SCHOOL,GROUNDS MAINT-MAIN CONTRACTOR,D202,GROUNDS MAINT-MAIN CONTRACTOR,BUILDING SERVICES,HUMAN RESOURCES
http://statistics.data.gov.uk/id/local-authority/43UM,WOKING BOROUGH COUNCIL,30/04/2022,08/06/2022,0000477434/001,FREEDOM LEISURE,40296500,"2,141.57",BUILDING SERVICES - L.M.C. - HOE VALLEY SCHOOL,GROUNDS MAINT-MAIN CONTRACTOR,D202,GROUNDS MAINT-MAIN CONTRACTOR,BUILDING SERVICES,HUMAN RESOURCES
http://statistics.data.gov.uk/id/local-authority/43UM,WOKING BOROUGH COUNCIL,30/05/2022,08/06/2022,0000478517/001,FRONTLINE PROTECTION SGD LTD,40542500,525.00,HOUSING SERVICES - 121 CHERTSEY ROAD,CARETAKING/SECURITY,D995,CARETAKING/SECURITY,HOUSING SERVICES,FACILITIES & MANAGEMENT SERVICES
http://statistics.data.gov.uk/id/local-authority/43UM,WOKING BOROUGH COUNCIL,15/05/2022,08/06/2022,0000478261/001,GARY LEA,40308200,620.00,CORPORATE STRATEGY - BOROUGH ELECTIONS,CONVEY EQUIPMENT - POLLING,G176,CONVEY EQUIPMENT - POLLING,CORPORATE STRATEGY,FINANCIAL SERVICES
http://statistics.data.gov.uk/id/local-authority/43UM,WOKING BOROUGH COUNCIL,27/05/2022,08/06/2022,0000478276/001,GARY LEA,40308200,190.00,ASSET MANAGEMENT - THE LODGE CEMETERY PALES BROOK,R&M BUILDINGS - CONTRACTORS,D100,R&M BUILDINGS - CONTRACTORS,ASSET MANAGEMENT,FINANCIAL SERVICES
http://statistics.data.gov.uk/id/local-authority/43UM,WOKING BOROUGH COUNCIL,16/05/2022,08/06/2022,0000477965/001,GORENDANG CIC,40989500,406.00,HOUSING SERVICES - SYRIAN REFUGEE FAMILES,MISCELLANEOUS EXPENSES,Q660,MISCELLANEOUS EXPENSES,HOUSING SERVICES,CATERING
http://statistics.data.gov.uk/id/local-authority/43UM,WOKING BOROUGH COUNCIL,31/05/2022,08/06/2022,0000478347/001,GRANICUS,01464200,"15,795.00",INFORMATION TECHNOLOGY - I.T.S. ICT,HOSTED SYSTEMS,G198,HOSTED SYSTEMS,INFORMATION TECHNOLOGY,INFORMATION COMMUNICATION TECHNOLOGY
http://statistics.data.gov.uk/id/local-authority/43UM,WOKING BOROUGH COUNCIL,31/05/2022,08/06/2022,0000478347/002,GRANICUS,01464200,"1,150.00",INFORMATION TECHNOLOGY - I.T.S. ICT,HOSTED SYSTEMS,G198,HOSTED SYSTEMS,INFORMATION TECHNOLOGY,INFORMATION COMMUNICATION TECHNOLOGY
http://statistics.data.gov.uk/id/local-authority/43UM,WOKING BOROUGH COUNCIL,13/05/2022,08/06/2022,0000477805/003,GRAVITAS RECRUITMENT GROUP LIMITED,40721300,590.00,INFORMATION TECHNOLOGY - MICROSOFT 365 IMPLEMENTATION,SERVICES,Q053,SERVICES,INFORMATION TECHNOLOGY,HUMAN RESOURCES
http://statistics.data.gov.uk/id/local-authority/43UM,WOKING BOROUGH COUNCIL,13/05/2022,08/06/2022,0000477805/001,GRAVITAS RECRUITMENT GROUP LIMITED,40721300,"1,770.00",INFORMATION TECHNOLOGY - HMST2022 PROPERTY CPL ICT SOLN,SERVICES,Q053,SERVICES,INFORMATION TECHNOLOGY,HUMAN RESOURCES
http://statistics.data.gov.uk/id/local-authority/43UM,WOKING BOROUGH COUNCIL,13/05/2022,08/06/2022,0000477805/002,GRAVITAS RECRUITMENT GROUP LIMITED,40721300,"1,180.00",INFORMATION TECHNOLOGY - HMST2022 PROPERTY CPL ICT SOLN,SERVICES,Q053,SERVICES,INFORMATION TECHNOLOGY,HUMAN RESOURCES
http://statistics.data.gov.uk/id/local-authority/43UM,WOKING BOROUGH COUNCIL,25/05/2022,08/06/2022,0000478162/001,GREENHILL ENTERTAINMENT LTD,41028400,250.00,CORPORATE STRATEGY - CELEBRATE WOKING - MARKETING/PROMO 14,MAIN CONTRACTOR,Q200,MAIN CONTRACTOR,CORPORATE STRATEGY,ARTS & LEISURE SERVICES
http://statistics.data.gov.uk/id/local-authority/43UM,WOKING BOROUGH COUNCIL,31/05/2022,08/06/2022,0000478410/001,GRENCAR LIMITED,40551300,"2,026.79",REVENUES AND BENEFITS - COUNCIL TAX,BAILIFFS COMMISION,H911,BAILIFFS COMMISION,REVENUES AND BENEFITS,LEGAL SERVICES
http://statistics.data.gov.uk/id/local-authority/43UM,WOKING BOROUGH COUNCIL,14/02/2022,08/06/2022,0000478243/001,GROUNDSCAPES LTD,40984800,958.00,ASSET MANAGEMENT - WOODEND - LAND AT REAR,LAND MANAGEMENT COSTS,D511,LAND MANAGEMENT COSTS,ASSET MANAGEMENT,FACILITIES & MANAGEMENT SERVICES
http://statistics.data.gov.uk/id/local-authority/43UM,WOKING BOROUGH COUNCIL,08/06/2022,08/06/2022,GPC/00019367,GUILDFORD REGISTER,PROCUREMENT CARD,11.00,NEIGHBOURHOOD SERVICES - NAT ASST ACT BURIALS,MARGARET SZEWCZUK,S988,DEATH CERTIFICATE GUILDFORD REG OFFICE,JANINE KNIGHTON,GOV'T SERV - DEFAULT
http://statistics.data.gov.uk/id/local-authority/43UM,WOKING BOROUGH COUNCIL,06/05/2022,08/06/2022,0000477580/001,HARLEQUIN BUILDING CONTRACTORS LTD,40859800,"1,450.00",NEIGHBOURHOOD SERVICES - COUNTRYSIDE SERVICES - GENERAL,GRD MTCE NON CCT,D240,GRD MTCE NON CCT,NEIGHBOURHOOD SERVICES,WORKS (CONSTRUCTION REPAIR MAINTENANCE)
http://statistics.data.gov.uk/id/local-authority/43UM,WOKING BOROUGH COUNCIL,31/05/2022,08/06/2022,0000478356/001,HEADLINE DESIGN & PRINT,00016900,135.00,NEIGHBOURHOOD SERVICES - ARTS DEVELOPMENT,EXTERNAL PRINTING - PUBLICITY,G605,EXTERNAL PRINTING - PUBLICITY,NEIGHBOURHOOD SERVICES,FINANCIAL SERVICES
http://statistics.data.gov.uk/id/local-authority/43UM,WOKING BOROUGH COUNCIL,31/05/2022,08/06/2022,0000478355/001,HEADLINE DESIGN & PRINT,00016900,551.20,ASSET MANAGEMENT - HIF COMMUNICATIONS WORK,CAPITAL BUDGET CODE ONLY,Q000,CAPITAL BUDGET CODE ONLY,ASSET MANAGEMENT,FINANCIAL SERVICES
http://statistics.data.gov.uk/id/local-authority/43UM,WOKING BOROUGH COUNCIL,30/05/2022,08/06/2022,0000478354/001,HEADLINE DESIGN & PRINT,00016900,56.00,CORPORATE STRATEGY - CELEBRATE WOKING - MARKETING/PROMO 14,MAIN CONTRACTOR,Q200,MAIN CONTRACTOR,CORPORATE STRATEGY,FINANCIAL SERVICES
http://statistics.data.gov.uk/id/local-authority/43UM,WOKING BOROUGH COUNCIL,30/05/2022,08/06/2022,0000478327/001,IDIT YEHEZKELY LEWIS,41018600,290.00,CORPORATE STRATEGY - WOMENS SUPPORT CENTRE SURREY,PUBLIC HEALTH ACCESS,H701,PUBLIC HEALTH ACCESS,CORPORATE STRATEGY,EDUCATION
http://statistics.data.gov.uk/id/local-authority/43UM,WOKING BOROUGH COUNCIL,31/05/2022,08/06/2022,0000478349/001,IRON MOUNTAIN (UK) PLC,01035400,542.39,INFORMATION TECHNOLOGY - I.T.S. ICT,OFF SITE SECURE,H769,OFF SITE SECURE,INFORMATION TECHNOLOGY,FACILITIES & MANAGEMENT SERVICES
http://statistics.data.gov.uk/id/local-authority/43UM,WOKING BOROUGH COUNCIL,30/05/2022,08/06/2022,0000478364/001,JENNIFER LEWIS,41018300,290.00,CORPORATE STRATEGY - WOMENS SUPPORT CENTRE SURREY,PUBLIC HEALTH ACCESS,H701,PUBLIC HEALTH ACCESS,CORPORATE STRATEGY,SOCIAL COMMUNITY CARE SUP & SERV (ADULT)
http://statistics.data.gov.uk/id/local-authority/43UM,WOKING BOROUGH COUNCIL,24/05/2022,08/06/2022,0000478195/001,JILL TONKS,40817100,500.00,CORPORATE MANAGEMENT GROUP - STAFF TRAINING/GENERAL COSTS,TRAINING - CORPORATE,A910,TRAINING - CORPORATE,CORPORATE MANAGEMENT GROUP,FINANCIAL SERVICES
http://statistics.data.gov.uk/id/local-authority/43UM,WOKING BOROUGH COUNCIL,26/05/2022,08/06/2022,0000478201/001,JLA FIRE & SECURITY LTD,40299300,295.00,LEISURE SERVICES - SHEERWATER LEISURE CENTRE,R&M BUILDINGS - CONTRACTORS,D100,R&M BUILDINGS - CONTRACTORS,LEISURE SERVICES,CONSULTANCY
http://statistics.data.gov.uk/id/local-authority/43UM,WOKING BOROUGH COUNCIL,24/05/2022,08/06/2022,0000478062/001,JULIET-ANN BATISTA,40690700,10.00,CORPORATE STRATEGY - WAVS,INTERPRETATION & TRANSLATION,H636,INTERPRETATION & TRANSLATION,CORPORATE STRATEGY,CONSULTANCY
http://statistics.data.gov.uk/id/local-authority/43UM,WOKING BOROUGH COUNCIL,16/05/2022,08/06/2022,0000478338/001,JULIET-ANN BATISTA,40690700,108.80,CORPORATE STRATEGY - WAVS,INTERPRETATION & TRANSLATION,H636,INTERPRETATION & TRANSLATION,CORPORATE STRATEGY,CONSULTANCY
http://statistics.data.gov.uk/id/local-authority/43UM,WOKING BOROUGH COUNCIL,30/04/2022,08/06/2022,0000478322/001,KAUSER MASOOD,40686100,172.20,CORPORATE STRATEGY - WAVS,INTERPRETATION & TRANSLATION,H636,INTERPRETATION & TRANSLATION,CORPORATE STRATEGY,CONSULTANCY
http://statistics.data.gov.uk/id/local-authority/43UM,WOKING BOROUGH COUNCIL,31/05/2022,08/06/2022,0000478387/001,KAYLEIGH CLARK,41032600,62.40,CORPORATE STRATEGY - WOMENS SUPPORT CENTRE SURREY,CLINICAL SUPERVISION,G505,CLINICAL SUPERVISION,CORPORATE STRATEGY,SOCIAL COMMUNITY CARE SUP & SERV (ADULT)
http://statistics.data.gov.uk/id/local-authority/43UM,WOKING BOROUGH COUNCIL,30/05/2022,08/06/2022,0000478342/001,KENT COUNTY COUNCIL (KCS),00050800,"1,691.54",INFORMATION TECHNOLOGY - I.T.S. ICT,EQUIPMENT REPAIR & MAINTENANCE,G120,EQUIPMENT REPAIR & MAINTENANCE,INFORMATION TECHNOLOGY,UTILITIES
http://statistics.data.gov.uk/id/local-authority/43UM,WOKING BOROUGH COUNCIL,27/04/2022,08/06/2022,0000478223/001,KING ADAPTATIONS BUILDING SERVS. LTD,40530600,"8,932.60",HOUSING SERVICES - DISABLED FACILITIES GRANTS,MANDATORY GRANTS,Q712,MANDATORY GRANTS,HOUSING SERVICES,HOUSING MANAGEMENT
http://statistics.data.gov.uk/id/local-authority/43UM,WOKING BOROUGH COUNCIL,30/04/2022,08/06/2022,0000478328/001,LAILA BRICE,40857000,248.20,CORPORATE STRATEGY - WAVS,INTERPRETATION & TRANSLATION,H636,INTERPRETATION & TRANSLATION,CORPORATE STRATEGY,HUMAN RESOURCES
http://statistics.data.gov.uk/id/local-authority/43UM,WOKING BOROUGH COUNCIL,30/05/2022,08/06/2022,0000478318/001,LALEH MUSTAFA,40671400,557.26,CORPORATE STRATEGY - WAVS,INTERPRETATION & TRANSLATION,H636,INTERPRETATION & TRANSLATION,CORPORATE STRATEGY,CONSULTANCY
http://statistics.data.gov.uk/id/local-authority/43UM,WOKING BOROUGH COUNCIL,15/03/2022,08/06/2022,0000478321/001,LAM TIEP VUONG,40671300,518.45,CORPORATE STRATEGY - WAVS,INTERPRETATION & TRANSLATION,H636,INTERPRETATION & TRANSLATION,CORPORATE STRATEGY,CONSULTANCY
http://statistics.data.gov.uk/id/local-authority/43UM,WOKING BOROUGH COUNCIL,26/05/2022,08/06/2022,0000478228/001,LICENCE BUREAU LIMITED,40848100,285.20,CORPORATE MANAGEMENT GROUP - STAFF TRAINING/GENERAL COSTS,HEALTH CARE,A780,HEALTH CARE,CORPORATE MANAGEMENT GROUP,CONSULTANCY
http://statistics.data.gov.uk/id/local-authority/43UM,WOKING BOROUGH COUNCIL,20/05/2022,08/06/2022,0000478151/001,LIFESPAN SOLUTIONS LTD,40733300,"12,515.00",HOUSING SERVICES - DISABLED FACILITIES GRANTS,MANDATORY GRANTS,Q712,MANDATORY GRANTS,HOUSING SERVICES,WORKS (CONSTRUCTION REPAIR MAINTENANCE)
http://statistics.data.gov.uk/id/local-authority/43UM,WOKING BOROUGH COUNCIL,20/05/2022,08/06/2022,0000478152/001,LIFESPAN SOLUTIONS LTD,40733300,"10,151.00",HOUSING SERVICES - DISABLED FACILITIES GRANTS,MANDATORY GRANTS,Q712,MANDATORY GRANTS,HOUSING SERVICES,WORKS (CONSTRUCTION REPAIR MAINTENANCE)
http://statistics.data.gov.uk/id/local-authority/43UM,WOKING BOROUGH COUNCIL,30/05/2022,08/06/2022,0000478432/001,LIFTEC LIFTS LTD,40711800,"1,742.50",HOUSING SERVICES - STATUTORU HRA,HRA STATUTORY,D116,HRA STATUTORY,HOUSING SERVICES,WORKS (CONSTRUCTION REPAIR MAINTENANCE)
http://statistics.data.gov.uk/id/local-authority/43UM,WOKING BOROUGH COUNCIL,30/05/2022,08/06/2022,0000478433/001,LIFTEC LIFTS LTD,40711800,187.50,LEISURE SERVICES - SHEERWATER LEISURE CENTRE,R&M BUILDINGS - CONTRACTORS,D100,R&M BUILDINGS - CONTRACTORS,LEISURE SERVICES,WORKS (CONSTRUCTION REPAIR MAINTENANCE)
http://statistics.data.gov.uk/id/local-authority/43UM,WOKING BOROUGH COUNCIL,23/05/2022,08/06/2022,0000478132/001,LUCINDA JANE THOMAS,40689100,137.50,CORPORATE MANAGEMENT GROUP - STAFF TRAINING/GENERAL COSTS,TRAINING - CORPORATE,A910,TRAINING - CORPORATE,CORPORATE MANAGEMENT GROUP,CONSULTANCY
http://statistics.data.gov.uk/id/local-authority/43UM,WOKING BOROUGH COUNCIL,30/05/2022,08/06/2022,0000478319/001,LUTHFUL KARIM,40662700,430.80,CORPORATE STRATEGY - WAVS,INTERPRETATION & TRANSLATION,H636,INTERPRETATION & TRANSLATION,CORPORATE STRATEGY,CONSULTANCY
http://statistics.data.gov.uk/id/local-authority/43UM,WOKING BOROUGH COUNCIL,31/05/2022,08/06/2022,0000478406/001,MAIL BOXES ETC,01633600,135.00,CORPORATE STRATEGY - CORPORATE STRATEGY GENERAL EXP,PRINTING EXTERNAL,G600,PRINTING EXTERNAL,CORPORATE STRATEGY,FACILITIES & MANAGEMENT SERVICES
http://statistics.data.gov.uk/id/local-authority/43UM,WOKING BOROUGH COUNCIL,08/06/2022,08/06/2022,GPC/00019363,MAILCHIMP,PROCUREMENT CARD,60.80,CORPORATE STRATEGY - PUBLIC RELATIONS,GENERAL PUBLIC RELATIONS EXPNS,H915,MAILCHIMP ENEWS COSTS,MISS K MAIR,DIGITAL GOODS-MULTI-CATEGORY
http://statistics.data.gov.uk/id/local-authority/43UM,WOKING BOROUGH COUNCIL,13/05/2022,08/06/2022,0000478315/001,MARIA DANUTA JURENKO,40665500,20.00,CORPORATE STRATEGY - WAVS,INTERPRETATION & TRANSLATION,H636,INTERPRETATION & TRANSLATION,CORPORATE STRATEGY,CONSULTANCY
http://statistics.data.gov.uk/id/local-authority/43UM,WOKING BOROUGH COUNCIL,11/05/2022,08/06/2022,0000478316/001,MARIA DANUTA JURENKO,40665500,57.90,CORPORATE STRATEGY - WAVS,INTERPRETATION & TRANSLATION,H636,INTERPRETATION & TRANSLATION,CORPORATE STRATEGY,CONSULTANCY
http://statistics.data.gov.uk/id/local-authority/43UM,WOKING BOROUGH COUNCIL,09/05/2022,08/06/2022,0000478216/001,MARSHELS OF FARNHAM LTD,00914300,"23,368.18",ASSET MANAGEMENT - FACILITIES MANAGEMENT,FACILITIES MANAGEMENT REPAIRS,D908,FACILITIES MANAGEMENT REPAIRS,ASSET MANAGEMENT,WORKS (CONSTRUCTION REPAIR MAINTENANCE)
http://statistics.data.gov.uk/id/local-authority/43UM,WOKING BOROUGH COUNCIL,22/04/2022,08/06/2022,0000477147/001,MARTA SMITH,40662800,20.00,CORPORATE STRATEGY - WAVS,INTERPRETATION & TRANSLATION,H636,INTERPRETATION & TRANSLATION,CORPORATE STRATEGY,CONSULTANCY
http://statistics.data.gov.uk/id/local-authority/43UM,WOKING BOROUGH COUNCIL,17/05/2022,08/06/2022,0000478310/001,MARTA SMITH,40662800,38.48,CORPORATE STRATEGY - WAVS,INTERPRETATION & TRANSLATION,H636,INTERPRETATION & TRANSLATION,CORPORATE STRATEGY,CONSULTANCY
http://statistics.data.gov.uk/id/local-authority/43UM,WOKING BOROUGH COUNCIL,18/05/2022,08/06/2022,0000478312/001,MARTA SMITH,40662800,30.32,CORPORATE STRATEGY - WAVS,INTERPRETATION & TRANSLATION,H636,INTERPRETATION & TRANSLATION,CORPORATE STRATEGY,CONSULTANCY
http://statistics.data.gov.uk/id/local-authority/43UM,WOKING BOROUGH COUNCIL,17/05/2022,08/06/2022,0000478313/001,MARTA SMITH,40662800,29.04,CORPORATE STRATEGY - WAVS,INTERPRETATION & TRANSLATION,H636,INTERPRETATION & TRANSLATION,CORPORATE STRATEGY,CONSULTANCY
http://statistics.data.gov.uk/id/local-authority/43UM,WOKING BOROUGH COUNCIL,23/05/2022,08/06/2022,0000478331/001,MARTIN CONWAY,01025900,460.00,HOUSING SERVICES - HOUSING OPTIONS,BED & BREAKFAST EXPENDITURE,H786,BED & BREAKFAST EXPENDITURE,HOUSING SERVICES,HOUSING MANAGEMENT
http://statistics.data.gov.uk/id/local-authority/43UM,WOKING BOROUGH COUNCIL,23/05/2022,08/06/2022,0000478332/001,MARTIN CONWAY,01025900,455.00,HOUSING SERVICES - HOUSING OPTIONS,BED & BREAKFAST EXPENDITURE,H786,BED & BREAKFAST EXPENDITURE,HOUSING SERVICES,HOUSING MANAGEMENT
http://statistics.data.gov.uk/id/local-authority/43UM,WOKING BOROUGH COUNCIL,23/05/2022,08/06/2022,0000478333/001,MARTIN CONWAY,01025900,325.00,HOUSING SERVICES - HOUSING OPTIONS,BED & BREAKFAST EXPENDITURE,H786,BED & BREAKFAST EXPENDITURE,HOUSING SERVICES,HOUSING MANAGEMENT
http://statistics.data.gov.uk/id/local-authority/43UM,WOKING BOROUGH COUNCIL,23/05/2022,08/06/2022,0000478334/001,MARTIN CONWAY,01025900,220.00,HOUSING SERVICES - HOUSING OPTIONS,BED & BREAKFAST EXPENDITURE,H786,BED & BREAKFAST EXPENDITURE,HOUSING SERVICES,HOUSING MANAGEMENT
http://statistics.data.gov.uk/id/local-authority/43UM,WOKING BOROUGH COUNCIL,23/05/2022,08/06/2022,0000478335/001,MARTIN CONWAY,01025900,805.00,HOUSING SERVICES - HOUSING OPTIONS,BED & BREAKFAST EXPENDITURE,H786,BED & BREAKFAST EXPENDITURE,HOUSING SERVICES,HOUSING MANAGEMENT
http://statistics.data.gov.uk/id/local-authority/43UM,WOKING BOROUGH COUNCIL,23/05/2022,08/06/2022,0000478336/001,MARTIN CONWAY,01025900,165.00,HOUSING SERVICES - HOUSING OPTIONS,BED & BREAKFAST EXPENDITURE,H786,BED & BREAKFAST EXPENDITURE,HOUSING SERVICES,HOUSING MANAGEMENT
http://statistics.data.gov.uk/id/local-authority/43UM,WOKING BOROUGH COUNCIL,22/05/2022,08/06/2022,0000478160/001,MORGAN HUNT UK LIMITED,01768500,"1,093.75",REVENUES AND BENEFITS - COUNCIL TAX,TEMPORARY STAFF,A110,TEMPORARY STAFF,REVENUES AND BENEFITS,HUMAN RESOURCES
http://statistics.data.gov.uk/id/local-authority/43UM,WOKING BOROUGH COUNCIL,29/05/2022,08/06/2022,0000478343/001,MORGAN HUNT UK LIMITED,01768500,968.75,REVENUES AND BENEFITS - COUNCIL TAX,TEMPORARY STAFF,A110,TEMPORARY STAFF,REVENUES AND BENEFITS,HUMAN RESOURCES
http://statistics.data.gov.uk/id/local-authority/43UM,WOKING BOROUGH COUNCIL,25/05/2022,08/06/2022,0000478159/001,MOTIVATION BY MUSIC,40821100,270.00,NEIGHBOURHOOD SERVICES - ARTS DEVELOPMENT,GRANTS,H100,GRANTS,NEIGHBOURHOOD SERVICES,FINANCIAL SERVICES
http://statistics.data.gov.uk/id/local-authority/43UM,WOKING BOROUGH COUNCIL,20/05/2022,08/06/2022,0000478016/001,MOTO-MARQUE LTD,00889700,48.00,CORPORATE MANAGEMENT GROUP - LEASED CAR PAYMENTS,PAYMENT TO LESSORS,T170,PAYMENT TO LESSORS,CORPORATE MANAGEMENT GROUP,FINANCIAL SERVICES
http://statistics.data.gov.uk/id/local-authority/43UM,WOKING BOROUGH COUNCIL,21/05/2022,08/06/2022,0000478247/001,MS ANJALI KAPIL,41031500,"1,400.00",HOUSING SERVICES - HOUSING OPTIONS DEPOSITS,DEPOSITS,T720,DEPOSITS,HOUSING SERVICES,HOUSING MANAGEMENT
http://statistics.data.gov.uk/id/local-authority/43UM,WOKING BOROUGH COUNCIL,26/05/2022,08/06/2022,0000478212/001,MS ZOE FLINT,41024600,72.20,CORPORATE STRATEGY - WOMENS SUPPORT CENTRE SURREY,VOLUNTEER EXPENSES,H313,VOLUNTEER EXPENSES,CORPORATE STRATEGY,SOCIAL COMMUNITY CARE SUP & SERV (ADULT)
http://statistics.data.gov.uk/id/local-authority/43UM,WOKING BOROUGH COUNCIL,13/05/2022,08/06/2022,0000478317/001,NOORAGHA HASHIMI,40998500,24.68,CORPORATE STRATEGY - WAVS,INTERPRETATION & TRANSLATION,H636,INTERPRETATION & TRANSLATION,CORPORATE STRATEGY,FINANCIAL SERVICES
http://statistics.data.gov.uk/id/local-authority/43UM,WOKING BOROUGH COUNCIL,30/04/2022,08/06/2022,0000477596/001,NOWMEDICAL,01771600,505.00,HOUSING SERVICES - NON-HRA HOUSING SERVS,MEDICAL ADVICE,H782,MEDICAL ADVICE,HOUSING SERVICES,HEALTHCARE
http://statistics.data.gov.uk/id/local-authority/43UM,WOKING BOROUGH COUNCIL,18/05/2022,08/06/2022,0000478314/001,NYIT MEE MORBEY,40668000,34.80,CORPORATE STRATEGY - WAVS,INTERPRETATION & TRANSLATION,H636,INTERPRETATION & TRANSLATION,CORPORATE STRATEGY,CONSULTANCY
http://statistics.data.gov.uk/id/local-authority/43UM,WOKING BOROUGH COUNCIL,26/05/2022,08/06/2022,0000478263/001,OFFICEFURNITUREONLINE.CO.UK,40663700,507.00,INDEPENDENT LIVING SERVICES - FAMILY CENTRES,REFURBISHMENTS,D104,REFURBISHMENTS,INDEPENDENT LIVING SERVICES,FURNITURE & SOFT FURNISHINGS
http://statistics.data.gov.uk/id/local-authority/43UM,WOKING BOROUGH COUNCIL,13/05/2022,08/06/2022,0000478337/001,OLGA KISEL,40946300,235.04,CORPORATE STRATEGY - WAVS,INTERPRETATION & TRANSLATION,H636,INTERPRETATION & TRANSLATION,CORPORATE STRATEGY,FINANCIAL SERVICES
http://statistics.data.gov.uk/id/local-authority/43UM,WOKING BOROUGH COUNCIL,30/04/2022,08/06/2022,0000478260/179,OPUS ENERGY LIMITED,40311700,"2,777.43",ASSET MANAGEMENT - PEACOCK WALK MARKET,ELECTRICITY,D400,ELECTRICITY,ASSET MANAGEMENT,UTILITIES
http://statistics.data.gov.uk/id/local-authority/43UM,WOKING BOROUGH COUNCIL,30/04/2022,08/06/2022,0000478260/284,OPUS ENERGY LIMITED,40311700,564.38,ASSET MANAGEMENT - PEACOCK WALK MARKET,ELECTRICITY,D400,ELECTRICITY,ASSET MANAGEMENT,UTILITIES
http://statistics.data.gov.uk/id/local-authority/43UM,WOKING BOROUGH COUNCIL,30/04/2022,08/06/2022,0000478260/180,OPUS ENERGY LIMITED,40311700,164.52,ASSET MANAGEMENT - PEACOCK WALK MARKET,CLIMATE CHANGE LEVY,D430,CLIMATE CHANGE LEVY,ASSET MANAGEMENT,UTILITIES
http://statistics.data.gov.uk/id/local-authority/43UM,WOKING BOROUGH COUNCIL,30/04/2022,08/06/2022,0000478260/285,OPUS ENERGY LIMITED,40311700,31.11,ASSET MANAGEMENT - PEACOCK WALK MARKET,CLIMATE CHANGE LEVY,D430,CLIMATE CHANGE LEVY,ASSET MANAGEMENT,UTILITIES
http://statistics.data.gov.uk/id/local-authority/43UM,WOKING BOROUGH COUNCIL,30/04/2022,08/06/2022,0000478260/080,OPUS ENERGY LIMITED,40311700,161.52,ASSET MANAGEMENT - PROVINCIAL HOUSE,ELECTRICITY,D400,ELECTRICITY,ASSET MANAGEMENT,UTILITIES
http://statistics.data.gov.uk/id/local-authority/43UM,WOKING BOROUGH COUNCIL,30/04/2022,08/06/2022,0000478260/082,OPUS ENERGY LIMITED,40311700,486.28,ASSET MANAGEMENT - PROVINCIAL HOUSE,ELECTRICITY,D400,ELECTRICITY,ASSET MANAGEMENT,UTILITIES
http://statistics.data.gov.uk/id/local-authority/43UM,WOKING BOROUGH COUNCIL,30/04/2022,08/06/2022,0000478260/081,OPUS ENERGY LIMITED,40311700,9.15,ASSET MANAGEMENT - PROVINCIAL HOUSE,CLIMATE CHANGE LEVY,D430,CLIMATE CHANGE LEVY,ASSET MANAGEMENT,UTILITIES
http://statistics.data.gov.uk/id/local-authority/43UM,WOKING BOROUGH COUNCIL,30/04/2022,08/06/2022,0000478260/083,OPUS ENERGY LIMITED,40311700,25.75,ASSET MANAGEMENT - PROVINCIAL HOUSE,CLIMATE CHANGE LEVY,D430,CLIMATE CHANGE LEVY,ASSET MANAGEMENT,UTILITIES
http://statistics.data.gov.uk/id/local-authority/43UM,WOKING BOROUGH COUNCIL,30/04/2022,08/06/2022,0000478260/005,OPUS ENERGY LIMITED,40311700,173.93,ASSET MANAGEMENT - ALBION SQUARE CANOPY,ELECTRICITY,D400,ELECTRICITY,ASSET MANAGEMENT,UTILITIES
http://statistics.data.gov.uk/id/local-authority/43UM,WOKING BOROUGH COUNCIL,30/04/2022,08/06/2022,0000478260/133,OPUS ENERGY LIMITED,40311700,473.55,ASSET MANAGEMENT - PEACOCKS - GLOCS CHAMB,ELECTRICITY,D400,ELECTRICITY,ASSET MANAGEMENT,UTILITIES
http://statistics.data.gov.uk/id/local-authority/43UM,WOKING BOROUGH COUNCIL,30/04/2022,08/06/2022,0000478260/134,OPUS ENERGY LIMITED,40311700,28.43,ASSET MANAGEMENT - PEACOCKS - GLOCS CHAMB,CLIMATE CHANGE LEVY,D430,CLIMATE CHANGE LEVY,ASSET MANAGEMENT,UTILITIES
http://statistics.data.gov.uk/id/local-authority/43UM,WOKING BOROUGH COUNCIL,30/04/2022,08/06/2022,0000478260/259,OPUS ENERGY LIMITED,40311700,506.50,ASSET MANAGEMENT - MABLE ST GARAGE & SHOP,ELECTRICITY,D400,ELECTRICITY,ASSET MANAGEMENT,UTILITIES
http://statistics.data.gov.uk/id/local-authority/43UM,WOKING BOROUGH COUNCIL,30/04/2022,08/06/2022,0000478260/260,OPUS ENERGY LIMITED,40311700,25.95,ASSET MANAGEMENT - MABLE ST GARAGE & SHOP,CLIMATE CHANGE LEVY,D430,CLIMATE CHANGE LEVY,ASSET MANAGEMENT,UTILITIES
http://statistics.data.gov.uk/id/local-authority/43UM,WOKING BOROUGH COUNCIL,30/04/2022,08/06/2022,0000478260/084,OPUS ENERGY LIMITED,40311700,25.14,ASSET MANAGEMENT - TOWN SQUARE LIGHTING,ELECTRICITY,D400,ELECTRICITY,ASSET MANAGEMENT,UTILITIES
http://statistics.data.gov.uk/id/local-authority/43UM,WOKING BOROUGH COUNCIL,30/04/2022,08/06/2022,0000478260/085,OPUS ENERGY LIMITED,40311700,77.60,ASSET MANAGEMENT - TOWN SQUARE LIGHTING,ELECTRICITY,D400,ELECTRICITY,ASSET MANAGEMENT,UTILITIES
http://statistics.data.gov.uk/id/local-authority/43UM,WOKING BOROUGH COUNCIL,30/04/2022,08/06/2022,0000478260/161,OPUS ENERGY LIMITED,40311700,65.65,ASSET MANAGEMENT - PLOT 9A MON WAY EAST,ELECTRICITY,D400,ELECTRICITY,ASSET MANAGEMENT,UTILITIES
http://statistics.data.gov.uk/id/local-authority/43UM,WOKING BOROUGH COUNCIL,30/04/2022,08/06/2022,0000478260/261,OPUS ENERGY LIMITED,40311700,"1,203.55",ASSET MANAGEMENT - UNIT 15A MON WAY EAST,ELECTRICITY,D400,ELECTRICITY,ASSET MANAGEMENT,UTILITIES
http://statistics.data.gov.uk/id/local-authority/43UM,WOKING BOROUGH COUNCIL,30/04/2022,08/06/2022,0000478260/262,OPUS ENERGY LIMITED,40311700,66.69,ASSET MANAGEMENT - UNIT 15A MON WAY EAST,CLIMATE CHANGE LEVY,D430,CLIMATE CHANGE LEVY,ASSET MANAGEMENT,UTILITIES
http://statistics.data.gov.uk/id/local-authority/43UM,WOKING BOROUGH COUNCIL,30/04/2022,08/06/2022,0000478260/162,OPUS ENERGY LIMITED,40311700,941.32,INDEPENDENT LIVING SERVICES - MOORCROFT,ELECTRICITY,D400,ELECTRICITY,INDEPENDENT LIVING SERVICES,UTILITIES
http://statistics.data.gov.uk/id/local-authority/43UM,WOKING BOROUGH COUNCIL,30/04/2022,08/06/2022,0000478260/163,OPUS ENERGY LIMITED,40311700,51.86,INDEPENDENT LIVING SERVICES - MOORCROFT,CLIMATE CHANGE LEVY,D430,CLIMATE CHANGE LEVY,INDEPENDENT LIVING SERVICES,UTILITIES
http://statistics.data.gov.uk/id/local-authority/43UM,WOKING BOROUGH COUNCIL,30/04/2022,08/06/2022,0000478260/021,OPUS ENERGY LIMITED,40311700,46.93,HOUSING SERVICES - ENERGY,ELECTRICITY,D400,ELECTRICITY,HOUSING SERVICES,UTILITIES
http://statistics.data.gov.uk/id/local-authority/43UM,WOKING BOROUGH COUNCIL,30/04/2022,08/06/2022,0000478260/022,OPUS ENERGY LIMITED,40311700,5.58,HOUSING SERVICES - ENERGY,ELECTRICITY,D400,ELECTRICITY,HOUSING SERVICES,UTILITIES
http://statistics.data.gov.uk/id/local-authority/43UM,WOKING BOROUGH COUNCIL,30/04/2022,08/06/2022,0000478260/025,OPUS ENERGY LIMITED,40311700,68.43,HOUSING SERVICES - ENERGY,ELECTRICITY,D400,ELECTRICITY,HOUSING SERVICES,UTILITIES
http://statistics.data.gov.uk/id/local-authority/43UM,WOKING BOROUGH COUNCIL,30/04/2022,08/06/2022,0000478260/026,OPUS ENERGY LIMITED,40311700,8.30,HOUSING SERVICES - ENERGY,ELECTRICITY,D400,ELECTRICITY,HOUSING SERVICES,UTILITIES
http://statistics.data.gov.uk/id/local-authority/43UM,WOKING BOROUGH COUNCIL,30/04/2022,08/06/2022,0000478260/027,OPUS ENERGY LIMITED,40311700,47.00,HOUSING SERVICES - ENERGY,ELECTRICITY,D400,ELECTRICITY,HOUSING SERVICES,UTILITIES
http://statistics.data.gov.uk/id/local-authority/43UM,WOKING BOROUGH COUNCIL,30/04/2022,08/06/2022,0000478260/028,OPUS ENERGY LIMITED,40311700,14.89,HOUSING SERVICES - ENERGY,ELECTRICITY,D400,ELECTRICITY,HOUSING SERVICES,UTILITIES
http://statistics.data.gov.uk/id/local-authority/43UM,WOKING BOROUGH COUNCIL,30/04/2022,08/06/2022,0000478260/054,OPUS ENERGY LIMITED,40311700,7.07,HOUSING SERVICES - ENERGY,ELECTRICITY,D400,ELECTRICITY,HOUSING SERVICES,UTILITIES
http://statistics.data.gov.uk/id/local-authority/43UM,WOKING BOROUGH COUNCIL,30/04/2022,08/06/2022,0000478260/055,OPUS ENERGY LIMITED,40311700,19.07,HOUSING SERVICES - ENERGY,ELECTRICITY,D400,ELECTRICITY,HOUSING SERVICES,UTILITIES
http://statistics.data.gov.uk/id/local-authority/43UM,WOKING BOROUGH COUNCIL,30/04/2022,08/06/2022,0000478260/072,OPUS ENERGY LIMITED,40311700,14.89,HOUSING SERVICES - ENERGY,ELECTRICITY,D400,ELECTRICITY,HOUSING SERVICES,UTILITIES
http://statistics.data.gov.uk/id/local-authority/43UM,WOKING BOROUGH COUNCIL,30/04/2022,08/06/2022,0000478260/073,OPUS ENERGY LIMITED,40311700,5.60,HOUSING SERVICES - ENERGY,ELECTRICITY,D400,ELECTRICITY,HOUSING SERVICES,UTILITIES
http://statistics.data.gov.uk/id/local-authority/43UM,WOKING BOROUGH COUNCIL,30/04/2022,08/06/2022,0000478260/142,OPUS ENERGY LIMITED,40311700,32.13,HOUSING SERVICES - ENERGY,ELECTRICITY,D400,ELECTRICITY,HOUSING SERVICES,UTILITIES
http://statistics.data.gov.uk/id/local-authority/43UM,WOKING BOROUGH COUNCIL,30/04/2022,08/06/2022,0000478260/160,OPUS ENERGY LIMITED,40311700,51.34,HOUSING SERVICES - ENERGY,ELECTRICITY,D400,ELECTRICITY,HOUSING SERVICES,UTILITIES
http://statistics.data.gov.uk/id/local-authority/43UM,WOKING BOROUGH COUNCIL,30/04/2022,08/06/2022,0000478260/167,OPUS ENERGY LIMITED,40311700,10.34,HOUSING SERVICES - ENERGY,ELECTRICITY,D400,ELECTRICITY,HOUSING SERVICES,UTILITIES
http://statistics.data.gov.uk/id/local-authority/43UM,WOKING BOROUGH COUNCIL,30/04/2022,08/06/2022,0000478260/168,OPUS ENERGY LIMITED,40311700,70.53,HOUSING SERVICES - ENERGY,ELECTRICITY,D400,ELECTRICITY,HOUSING SERVICES,UTILITIES
http://statistics.data.gov.uk/id/local-authority/43UM,WOKING BOROUGH COUNCIL,30/04/2022,08/06/2022,0000478260/169,OPUS ENERGY LIMITED,40311700,34.14,HOUSING SERVICES - ENERGY,ELECTRICITY,D400,ELECTRICITY,HOUSING SERVICES,UTILITIES
http://statistics.data.gov.uk/id/local-authority/43UM,WOKING BOROUGH COUNCIL,30/04/2022,08/06/2022,0000478260/181,OPUS ENERGY LIMITED,40311700,5.65,HOUSING SERVICES - ENERGY,ELECTRICITY,D400,ELECTRICITY,HOUSING SERVICES,UTILITIES
http://statistics.data.gov.uk/id/local-authority/43UM,WOKING BOROUGH COUNCIL,30/04/2022,08/06/2022,0000478260/182,OPUS ENERGY LIMITED,40311700,5.60,HOUSING SERVICES - ENERGY,ELECTRICITY,D400,ELECTRICITY,HOUSING SERVICES,UTILITIES
http://statistics.data.gov.uk/id/local-authority/43UM,WOKING BOROUGH COUNCIL,30/04/2022,08/06/2022,0000478260/183,OPUS ENERGY LIMITED,40311700,23.95,HOUSING SERVICES - ENERGY,ELECTRICITY,D400,ELECTRICITY,HOUSING SERVICES,UTILITIES
http://statistics.data.gov.uk/id/local-authority/43UM,WOKING BOROUGH COUNCIL,30/04/2022,08/06/2022,0000478260/188,OPUS ENERGY LIMITED,40311700,42.81,HOUSING SERVICES - ENERGY,ELECTRICITY,D400,ELECTRICITY,HOUSING SERVICES,UTILITIES
http://statistics.data.gov.uk/id/local-authority/43UM,WOKING BOROUGH COUNCIL,30/04/2022,08/06/2022,0000478260/189,OPUS ENERGY LIMITED,40311700,25.86,HOUSING SERVICES - ENERGY,ELECTRICITY,D400,ELECTRICITY,HOUSING SERVICES,UTILITIES
http://statistics.data.gov.uk/id/local-authority/43UM,WOKING BOROUGH COUNCIL,30/04/2022,08/06/2022,0000478260/190,OPUS ENERGY LIMITED,40311700,56.43,HOUSING SERVICES - ENERGY,ELECTRICITY,D400,ELECTRICITY,HOUSING SERVICES,UTILITIES
http://statistics.data.gov.uk/id/local-authority/43UM,WOKING BOROUGH COUNCIL,30/04/2022,08/06/2022,0000478260/191,OPUS ENERGY LIMITED,40311700,66.99,HOUSING SERVICES - ENERGY,ELECTRICITY,D400,ELECTRICITY,HOUSING SERVICES,UTILITIES
http://statistics.data.gov.uk/id/local-authority/43UM,WOKING BOROUGH COUNCIL,30/04/2022,08/06/2022,0000478260/219,OPUS ENERGY LIMITED,40311700,28.21,HOUSING SERVICES - ENERGY,ELECTRICITY,D400,ELECTRICITY,HOUSING SERVICES,UTILITIES
http://statistics.data.gov.uk/id/local-authority/43UM,WOKING BOROUGH COUNCIL,30/04/2022,08/06/2022,0000478260/220,OPUS ENERGY LIMITED,40311700,266.02,HOUSING SERVICES - ENERGY,ELECTRICITY,D400,ELECTRICITY,HOUSING SERVICES,UTILITIES
http://statistics.data.gov.uk/id/local-authority/43UM,WOKING BOROUGH COUNCIL,30/04/2022,08/06/2022,0000478260/224,OPUS ENERGY LIMITED,40311700,23.86,HOUSING SERVICES - ENERGY,ELECTRICITY,D400,ELECTRICITY,HOUSING SERVICES,UTILITIES
http://statistics.data.gov.uk/id/local-authority/43UM,WOKING BOROUGH COUNCIL,30/04/2022,08/06/2022,0000478260/225,OPUS ENERGY LIMITED,40311700,5.60,HOUSING SERVICES - ENERGY,ELECTRICITY,D400,ELECTRICITY,HOUSING SERVICES,UTILITIES
http://statistics.data.gov.uk/id/local-authority/43UM,WOKING BOROUGH COUNCIL,30/04/2022,08/06/2022,0000478260/226,OPUS ENERGY LIMITED,40311700,77.02,HOUSING SERVICES - ENERGY,ELECTRICITY,D400,ELECTRICITY,HOUSING SERVICES,UTILITIES
http://statistics.data.gov.uk/id/local-authority/43UM,WOKING BOROUGH COUNCIL,30/04/2022,08/06/2022,0000478260/230,OPUS ENERGY LIMITED,40311700,20.90,HOUSING SERVICES - ENERGY,ELECTRICITY,D400,ELECTRICITY,HOUSING SERVICES,UTILITIES
http://statistics.data.gov.uk/id/local-authority/43UM,WOKING BOROUGH COUNCIL,30/04/2022,08/06/2022,0000478260/231,OPUS ENERGY LIMITED,40311700,46.71,HOUSING SERVICES - ENERGY,ELECTRICITY,D400,ELECTRICITY,HOUSING SERVICES,UTILITIES
http://statistics.data.gov.uk/id/local-authority/43UM,WOKING BOROUGH COUNCIL,30/04/2022,08/06/2022,0000478260/232,OPUS ENERGY LIMITED,40311700,11.68,HOUSING SERVICES - ENERGY,ELECTRICITY,D400,ELECTRICITY,HOUSING SERVICES,UTILITIES
http://statistics.data.gov.uk/id/local-authority/43UM,WOKING BOROUGH COUNCIL,30/04/2022,08/06/2022,0000478260/265,OPUS ENERGY LIMITED,40311700,63.00,HOUSING SERVICES - ENERGY,ELECTRICITY,D400,ELECTRICITY,HOUSING SERVICES,UTILITIES
http://statistics.data.gov.uk/id/local-authority/43UM,WOKING BOROUGH COUNCIL,30/04/2022,08/06/2022,0000478260/266,OPUS ENERGY LIMITED,40311700,130.26,HOUSING SERVICES - ENERGY,ELECTRICITY,D400,ELECTRICITY,HOUSING SERVICES,UTILITIES
http://statistics.data.gov.uk/id/local-authority/43UM,WOKING BOROUGH COUNCIL,30/04/2022,08/06/2022,0000478260/277,OPUS ENERGY LIMITED,40311700,7.50,HOUSING SERVICES - ENERGY,ELECTRICITY,D400,ELECTRICITY,HOUSING SERVICES,UTILITIES
http://statistics.data.gov.uk/id/local-authority/43UM,WOKING BOROUGH COUNCIL,30/04/2022,08/06/2022,0000478260/286,OPUS ENERGY LIMITED,40311700,49.83,HOUSING SERVICES - ENERGY,ELECTRICITY,D400,ELECTRICITY,HOUSING SERVICES,UTILITIES
http://statistics.data.gov.uk/id/local-authority/43UM,WOKING BOROUGH COUNCIL,30/04/2022,08/06/2022,0000478260/221,OPUS ENERGY LIMITED,40311700,14.62,HOUSING SERVICES - ENERGY,CLIMATE CHANGE LEVY,D430,CLIMATE CHANGE LEVY,HOUSING SERVICES,UTILITIES
http://statistics.data.gov.uk/id/local-authority/43UM,WOKING BOROUGH COUNCIL,30/04/2022,08/06/2022,0000478260/002,OPUS ENERGY LIMITED,40311700,28.09,HOUSING SERVICES - LANDLORDS EXPENSES,ELECTRICITY,D400,ELECTRICITY,HOUSING SERVICES,UTILITIES
http://statistics.data.gov.uk/id/local-authority/43UM,WOKING BOROUGH COUNCIL,30/04/2022,08/06/2022,0000478260/003,OPUS ENERGY LIMITED,40311700,41.10,HOUSING SERVICES - LANDLORDS EXPENSES,ELECTRICITY,D400,ELECTRICITY,HOUSING SERVICES,UTILITIES
http://statistics.data.gov.uk/id/local-authority/43UM,WOKING BOROUGH COUNCIL,30/04/2022,08/06/2022,0000478260/004,OPUS ENERGY LIMITED,40311700,29.71,HOUSING SERVICES - LANDLORDS EXPENSES,ELECTRICITY,D400,ELECTRICITY,HOUSING SERVICES,UTILITIES
http://statistics.data.gov.uk/id/local-authority/43UM,WOKING BOROUGH COUNCIL,30/04/2022,08/06/2022,0000478260/006,OPUS ENERGY LIMITED,40311700,20.72,HOUSING SERVICES - LANDLORDS EXPENSES,ELECTRICITY,D400,ELECTRICITY,HOUSING SERVICES,UTILITIES
http://statistics.data.gov.uk/id/local-authority/43UM,WOKING BOROUGH COUNCIL,30/04/2022,08/06/2022,0000478260/007,OPUS ENERGY LIMITED,40311700,218.02,HOUSING SERVICES - LANDLORDS EXPENSES,ELECTRICITY,D400,ELECTRICITY,HOUSING SERVICES,UTILITIES
http://statistics.data.gov.uk/id/local-authority/43UM,WOKING BOROUGH COUNCIL,30/04/2022,08/06/2022,0000478260/008,OPUS ENERGY LIMITED,40311700,39.31,HOUSING SERVICES - LANDLORDS EXPENSES,ELECTRICITY,D400,ELECTRICITY,HOUSING SERVICES,UTILITIES
http://statistics.data.gov.uk/id/local-authority/43UM,WOKING BOROUGH COUNCIL,30/04/2022,08/06/2022,0000478260/009,OPUS ENERGY LIMITED,40311700,106.41,HOUSING SERVICES - LANDLORDS EXPENSES,ELECTRICITY,D400,ELECTRICITY,HOUSING SERVICES,UTILITIES
http://statistics.data.gov.uk/id/local-authority/43UM,WOKING BOROUGH COUNCIL,30/04/2022,08/06/2022,0000478260/010,OPUS ENERGY LIMITED,40311700,33.25,HOUSING SERVICES - LANDLORDS EXPENSES,ELECTRICITY,D400,ELECTRICITY,HOUSING SERVICES,UTILITIES
http://statistics.data.gov.uk/id/local-authority/43UM,WOKING BOROUGH COUNCIL,30/04/2022,08/06/2022,0000478260/011,OPUS ENERGY LIMITED,40311700,26.66,HOUSING SERVICES - LANDLORDS EXPENSES,ELECTRICITY,D400,ELECTRICITY,HOUSING SERVICES,UTILITIES
http://statistics.data.gov.uk/id/local-authority/43UM,WOKING BOROUGH COUNCIL,30/04/2022,08/06/2022,0000478260/015,OPUS ENERGY LIMITED,40311700,50.66,HOUSING SERVICES - LANDLORDS EXPENSES,ELECTRICITY,D400,ELECTRICITY,HOUSING SERVICES,UTILITIES
http://statistics.data.gov.uk/id/local-authority/43UM,WOKING BOROUGH COUNCIL,30/04/2022,08/06/2022,0000478260/016,OPUS ENERGY LIMITED,40311700,45.84,HOUSING SERVICES - LANDLORDS EXPENSES,ELECTRICITY,D400,ELECTRICITY,HOUSING SERVICES,UTILITIES
http://statistics.data.gov.uk/id/local-authority/43UM,WOKING BOROUGH COUNCIL,30/04/2022,08/06/2022,0000478260/017,OPUS ENERGY LIMITED,40311700,56.54,HOUSING SERVICES - LANDLORDS EXPENSES,ELECTRICITY,D400,ELECTRICITY,HOUSING SERVICES,UTILITIES
http://statistics.data.gov.uk/id/local-authority/43UM,WOKING BOROUGH COUNCIL,30/04/2022,08/06/2022,0000478260/018,OPUS ENERGY LIMITED,40311700,5.10,HOUSING SERVICES - LANDLORDS EXPENSES,ELECTRICITY,D400,ELECTRICITY,HOUSING SERVICES,UTILITIES
http://statistics.data.gov.uk/id/local-authority/43UM,WOKING BOROUGH COUNCIL,30/04/2022,08/06/2022,0000478260/019,OPUS ENERGY LIMITED,40311700,4.97,HOUSING SERVICES - LANDLORDS EXPENSES,ELECTRICITY,D400,ELECTRICITY,HOUSING SERVICES,UTILITIES
http://statistics.data.gov.uk/id/local-authority/43UM,WOKING BOROUGH COUNCIL,30/04/2022,08/06/2022,0000478260/020,OPUS ENERGY LIMITED,40311700,11.96,HOUSING SERVICES - LANDLORDS EXPENSES,ELECTRICITY,D400,ELECTRICITY,HOUSING SERVICES,UTILITIES
http://statistics.data.gov.uk/id/local-authority/43UM,WOKING BOROUGH COUNCIL,30/04/2022,08/06/2022,0000478260/023,OPUS ENERGY LIMITED,40311700,103.19,HOUSING SERVICES - LANDLORDS EXPENSES,ELECTRICITY,D400,ELECTRICITY,HOUSING SERVICES,UTILITIES
http://statistics.data.gov.uk/id/local-authority/43UM,WOKING BOROUGH COUNCIL,30/04/2022,08/06/2022,0000478260/024,OPUS ENERGY LIMITED,40311700,10.01,HOUSING SERVICES - LANDLORDS EXPENSES,ELECTRICITY,D400,ELECTRICITY,HOUSING SERVICES,UTILITIES
http://statistics.data.gov.uk/id/local-authority/43UM,WOKING BOROUGH COUNCIL,30/04/2022,08/06/2022,0000478260/029,OPUS ENERGY LIMITED,40311700,38.76,HOUSING SERVICES - LANDLORDS EXPENSES,ELECTRICITY,D400,ELECTRICITY,HOUSING SERVICES,UTILITIES
http://statistics.data.gov.uk/id/local-authority/43UM,WOKING BOROUGH COUNCIL,30/04/2022,08/06/2022,0000478260/030,OPUS ENERGY LIMITED,40311700,19.15,HOUSING SERVICES - LANDLORDS EXPENSES,ELECTRICITY,D400,ELECTRICITY,HOUSING SERVICES,UTILITIES
http://statistics.data.gov.uk/id/local-authority/43UM,WOKING BOROUGH COUNCIL,30/04/2022,08/06/2022,0000478260/031,OPUS ENERGY LIMITED,40311700,24.43,HOUSING SERVICES - LANDLORDS EXPENSES,ELECTRICITY,D400,ELECTRICITY,HOUSING SERVICES,UTILITIES
http://statistics.data.gov.uk/id/local-authority/43UM,WOKING BOROUGH COUNCIL,30/04/2022,08/06/2022,0000478260/032,OPUS ENERGY LIMITED,40311700,122.34,HOUSING SERVICES - LANDLORDS EXPENSES,ELECTRICITY,D400,ELECTRICITY,HOUSING SERVICES,UTILITIES
http://statistics.data.gov.uk/id/local-authority/43UM,WOKING BOROUGH COUNCIL,30/04/2022,08/06/2022,0000478260/033,OPUS ENERGY LIMITED,40311700,130.23,HOUSING SERVICES - LANDLORDS EXPENSES,ELECTRICITY,D400,ELECTRICITY,HOUSING SERVICES,UTILITIES
http://statistics.data.gov.uk/id/local-authority/43UM,WOKING BOROUGH COUNCIL,30/04/2022,08/06/2022,0000478260/034,OPUS ENERGY LIMITED,40311700,266.17,HOUSING SERVICES - LANDLORDS EXPENSES,ELECTRICITY,D400,ELECTRICITY,HOUSING SERVICES,UTILITIES
http://statistics.data.gov.uk/id/local-authority/43UM,WOKING BOROUGH COUNCIL,30/04/2022,08/06/2022,0000478260/036,OPUS ENERGY LIMITED,40311700,35.97,HOUSING SERVICES - LANDLORDS EXPENSES,ELECTRICITY,D400,ELECTRICITY,HOUSING SERVICES,UTILITIES
http://statistics.data.gov.uk/id/local-authority/43UM,WOKING BOROUGH COUNCIL,30/04/2022,08/06/2022,0000478260/037,OPUS ENERGY LIMITED,40311700,5.57,HOUSING SERVICES - LANDLORDS EXPENSES,ELECTRICITY,D400,ELECTRICITY,HOUSING SERVICES,UTILITIES
http://statistics.data.gov.uk/id/local-authority/43UM,WOKING BOROUGH COUNCIL,30/04/2022,08/06/2022,0000478260/038,OPUS ENERGY LIMITED,40311700,73.59,HOUSING SERVICES - LANDLORDS EXPENSES,ELECTRICITY,D400,ELECTRICITY,HOUSING SERVICES,UTILITIES
http://statistics.data.gov.uk/id/local-authority/43UM,WOKING BOROUGH COUNCIL,30/04/2022,08/06/2022,0000478260/039,OPUS ENERGY LIMITED,40311700,203.33,HOUSING SERVICES - LANDLORDS EXPENSES,ELECTRICITY,D400,ELECTRICITY,HOUSING SERVICES,UTILITIES
http://statistics.data.gov.uk/id/local-authority/43UM,WOKING BOROUGH COUNCIL,30/04/2022,08/06/2022,0000478260/041,OPUS ENERGY LIMITED,40311700,19.02,HOUSING SERVICES - LANDLORDS EXPENSES,ELECTRICITY,D400,ELECTRICITY,HOUSING SERVICES,UTILITIES
http://statistics.data.gov.uk/id/local-authority/43UM,WOKING BOROUGH COUNCIL,30/04/2022,08/06/2022,0000478260/042,OPUS ENERGY LIMITED,40311700,18.24,HOUSING SERVICES - LANDLORDS EXPENSES,ELECTRICITY,D400,ELECTRICITY,HOUSING SERVICES,UTILITIES
http://statistics.data.gov.uk/id/local-authority/43UM,WOKING BOROUGH COUNCIL,30/04/2022,08/06/2022,0000478260/043,OPUS ENERGY LIMITED,40311700,129.89,HOUSING SERVICES - LANDLORDS EXPENSES,ELECTRICITY,D400,ELECTRICITY,HOUSING SERVICES,UTILITIES
http://statistics.data.gov.uk/id/local-authority/43UM,WOKING BOROUGH COUNCIL,30/04/2022,08/06/2022,0000478260/044,OPUS ENERGY LIMITED,40311700,21.73,HOUSING SERVICES - LANDLORDS EXPENSES,ELECTRICITY,D400,ELECTRICITY,HOUSING SERVICES,UTILITIES
http://statistics.data.gov.uk/id/local-authority/43UM,WOKING BOROUGH COUNCIL,30/04/2022,08/06/2022,0000478260/045,OPUS ENERGY LIMITED,40311700,65.67,HOUSING SERVICES - LANDLORDS EXPENSES,ELECTRICITY,D400,ELECTRICITY,HOUSING SERVICES,UTILITIES
http://statistics.data.gov.uk/id/local-authority/43UM,WOKING BOROUGH COUNCIL,30/04/2022,08/06/2022,0000478260/046,OPUS ENERGY LIMITED,40311700,22.69,HOUSING SERVICES - LANDLORDS EXPENSES,ELECTRICITY,D400,ELECTRICITY,HOUSING SERVICES,UTILITIES
http://statistics.data.gov.uk/id/local-authority/43UM,WOKING BOROUGH COUNCIL,30/04/2022,08/06/2022,0000478260/047,OPUS ENERGY LIMITED,40311700,21.17,HOUSING SERVICES - LANDLORDS EXPENSES,ELECTRICITY,D400,ELECTRICITY,HOUSING SERVICES,UTILITIES
http://statistics.data.gov.uk/id/local-authority/43UM,WOKING BOROUGH COUNCIL,30/04/2022,08/06/2022,0000478260/048,OPUS ENERGY LIMITED,40311700,75.50,HOUSING SERVICES - LANDLORDS EXPENSES,ELECTRICITY,D400,ELECTRICITY,HOUSING SERVICES,UTILITIES
http://statistics.data.gov.uk/id/local-authority/43UM,WOKING BOROUGH COUNCIL,30/04/2022,08/06/2022,0000478260/049,OPUS ENERGY LIMITED,40311700,29.25,HOUSING SERVICES - LANDLORDS EXPENSES,ELECTRICITY,D400,ELECTRICITY,HOUSING SERVICES,UTILITIES
http://statistics.data.gov.uk/id/local-authority/43UM,WOKING BOROUGH COUNCIL,30/04/2022,08/06/2022,0000478260/050,OPUS ENERGY LIMITED,40311700,32.04,HOUSING SERVICES - LANDLORDS EXPENSES,ELECTRICITY,D400,ELECTRICITY,HOUSING SERVICES,UTILITIES
http://statistics.data.gov.uk/id/local-authority/43UM,WOKING BOROUGH COUNCIL,30/04/2022,08/06/2022,0000478260/051,OPUS ENERGY LIMITED,40311700,18.63,HOUSING SERVICES - LANDLORDS EXPENSES,ELECTRICITY,D400,ELECTRICITY,HOUSING SERVICES,UTILITIES
http://statistics.data.gov.uk/id/local-authority/43UM,WOKING BOROUGH COUNCIL,30/04/2022,08/06/2022,0000478260/052,OPUS ENERGY LIMITED,40311700,7.65,HOUSING SERVICES - LANDLORDS EXPENSES,ELECTRICITY,D400,ELECTRICITY,HOUSING SERVICES,UTILITIES
http://statistics.data.gov.uk/id/local-authority/43UM,WOKING BOROUGH COUNCIL,30/04/2022,08/06/2022,0000478260/053,OPUS ENERGY LIMITED,40311700,82.87,HOUSING SERVICES - LANDLORDS EXPENSES,ELECTRICITY,D400,ELECTRICITY,HOUSING SERVICES,UTILITIES
http://statistics.data.gov.uk/id/local-authority/43UM,WOKING BOROUGH COUNCIL,30/04/2022,08/06/2022,0000478260/061,OPUS ENERGY LIMITED,40311700,60.58,HOUSING SERVICES - LANDLORDS EXPENSES,ELECTRICITY,D400,ELECTRICITY,HOUSING SERVICES,UTILITIES
http://statistics.data.gov.uk/id/local-authority/43UM,WOKING BOROUGH COUNCIL,30/04/2022,08/06/2022,0000478260/062,OPUS ENERGY LIMITED,40311700,44.00,HOUSING SERVICES - LANDLORDS EXPENSES,ELECTRICITY,D400,ELECTRICITY,HOUSING SERVICES,UTILITIES
http://statistics.data.gov.uk/id/local-authority/43UM,WOKING BOROUGH COUNCIL,30/04/2022,08/06/2022,0000478260/065,OPUS ENERGY LIMITED,40311700,222.30,HOUSING SERVICES - LANDLORDS EXPENSES,ELECTRICITY,D400,ELECTRICITY,HOUSING SERVICES,UTILITIES
http://statistics.data.gov.uk/id/local-authority/43UM,WOKING BOROUGH COUNCIL,30/04/2022,08/06/2022,0000478260/067,OPUS ENERGY LIMITED,40311700,29.48,HOUSING SERVICES - LANDLORDS EXPENSES,ELECTRICITY,D400,ELECTRICITY,HOUSING SERVICES,UTILITIES
http://statistics.data.gov.uk/id/local-authority/43UM,WOKING BOROUGH COUNCIL,30/04/2022,08/06/2022,0000478260/068,OPUS ENERGY LIMITED,40311700,29.55,HOUSING SERVICES - LANDLORDS EXPENSES,ELECTRICITY,D400,ELECTRICITY,HOUSING SERVICES,UTILITIES
http://statistics.data.gov.uk/id/local-authority/43UM,WOKING BOROUGH COUNCIL,30/04/2022,08/06/2022,0000478260/069,OPUS ENERGY LIMITED,40311700,259.14,HOUSING SERVICES - LANDLORDS EXPENSES,ELECTRICITY,D400,ELECTRICITY,HOUSING SERVICES,UTILITIES
http://statistics.data.gov.uk/id/local-authority/43UM,WOKING BOROUGH COUNCIL,30/04/2022,08/06/2022,0000478260/071,OPUS ENERGY LIMITED,40311700,159.31,HOUSING SERVICES - LANDLORDS EXPENSES,ELECTRICITY,D400,ELECTRICITY,HOUSING SERVICES,UTILITIES
http://statistics.data.gov.uk/id/local-authority/43UM,WOKING BOROUGH COUNCIL,30/04/2022,08/06/2022,0000478260/074,OPUS ENERGY LIMITED,40311700,21.78,HOUSING SERVICES - LANDLORDS EXPENSES,ELECTRICITY,D400,ELECTRICITY,HOUSING SERVICES,UTILITIES
http://statistics.data.gov.uk/id/local-authority/43UM,WOKING BOROUGH COUNCIL,30/04/2022,08/06/2022,0000478260/075,OPUS ENERGY LIMITED,40311700,256.13,HOUSING SERVICES - LANDLORDS EXPENSES,ELECTRICITY,D400,ELECTRICITY,HOUSING SERVICES,UTILITIES
http://statistics.data.gov.uk/id/local-authority/43UM,WOKING BOROUGH COUNCIL,30/04/2022,08/06/2022,0000478260/077,OPUS ENERGY LIMITED,40311700,112.21,HOUSING SERVICES - LANDLORDS EXPENSES,ELECTRICITY,D400,ELECTRICITY,HOUSING SERVICES,UTILITIES
http://statistics.data.gov.uk/id/local-authority/43UM,WOKING BOROUGH COUNCIL,30/04/2022,08/06/2022,0000478260/078,OPUS ENERGY LIMITED,40311700,88.93,HOUSING SERVICES - LANDLORDS EXPENSES,ELECTRICITY,D400,ELECTRICITY,HOUSING SERVICES,UTILITIES
http://statistics.data.gov.uk/id/local-authority/43UM,WOKING BOROUGH COUNCIL,30/04/2022,08/06/2022,0000478260/079,OPUS ENERGY LIMITED,40311700,22.56,HOUSING SERVICES - LANDLORDS EXPENSES,ELECTRICITY,D400,ELECTRICITY,HOUSING SERVICES,UTILITIES
http://statistics.data.gov.uk/id/local-authority/43UM,WOKING BOROUGH COUNCIL,30/04/2022,08/06/2022,0000478260/086,OPUS ENERGY LIMITED,40311700,72.22,HOUSING SERVICES - LANDLORDS EXPENSES,ELECTRICITY,D400,ELECTRICITY,HOUSING SERVICES,UTILITIES
http://statistics.data.gov.uk/id/local-authority/43UM,WOKING BOROUGH COUNCIL,30/04/2022,08/06/2022,0000478260/087,OPUS ENERGY LIMITED,40311700,31.76,HOUSING SERVICES - LANDLORDS EXPENSES,ELECTRICITY,D400,ELECTRICITY,HOUSING SERVICES,UTILITIES
http://statistics.data.gov.uk/id/local-authority/43UM,WOKING BOROUGH COUNCIL,30/04/2022,08/06/2022,0000478260/088,OPUS ENERGY LIMITED,40311700,252.02,HOUSING SERVICES - LANDLORDS EXPENSES,ELECTRICITY,D400,ELECTRICITY,HOUSING SERVICES,UTILITIES
http://statistics.data.gov.uk/id/local-authority/43UM,WOKING BOROUGH COUNCIL,30/04/2022,08/06/2022,0000478260/090,OPUS ENERGY LIMITED,40311700,24.69,HOUSING SERVICES - LANDLORDS EXPENSES,ELECTRICITY,D400,ELECTRICITY,HOUSING SERVICES,UTILITIES
http://statistics.data.gov.uk/id/local-authority/43UM,WOKING BOROUGH COUNCIL,30/04/2022,08/06/2022,0000478260/091,OPUS ENERGY LIMITED,40311700,24.12,HOUSING SERVICES - LANDLORDS EXPENSES,ELECTRICITY,D400,ELECTRICITY,HOUSING SERVICES,UTILITIES
http://statistics.data.gov.uk/id/local-authority/43UM,WOKING BOROUGH COUNCIL,30/04/2022,08/06/2022,0000478260/092,OPUS ENERGY LIMITED,40311700,78.95,HOUSING SERVICES - LANDLORDS EXPENSES,ELECTRICITY,D400,ELECTRICITY,HOUSING SERVICES,UTILITIES
http://statistics.data.gov.uk/id/local-authority/43UM,WOKING BOROUGH COUNCIL,30/04/2022,08/06/2022,0000478260/093,OPUS ENERGY LIMITED,40311700,137.74,HOUSING SERVICES - LANDLORDS EXPENSES,ELECTRICITY,D400,ELECTRICITY,HOUSING SERVICES,UTILITIES
http://statistics.data.gov.uk/id/local-authority/43UM,WOKING BOROUGH COUNCIL,30/04/2022,08/06/2022,0000478260/094,OPUS ENERGY LIMITED,40311700,52.36,HOUSING SERVICES - LANDLORDS EXPENSES,ELECTRICITY,D400,ELECTRICITY,HOUSING SERVICES,UTILITIES
http://statistics.data.gov.uk/id/local-authority/43UM,WOKING BOROUGH COUNCIL,30/04/2022,08/06/2022,0000478260/095,OPUS ENERGY LIMITED,40311700,198.25,HOUSING SERVICES - LANDLORDS EXPENSES,ELECTRICITY,D400,ELECTRICITY,HOUSING SERVICES,UTILITIES
http://statistics.data.gov.uk/id/local-authority/43UM,WOKING BOROUGH COUNCIL,30/04/2022,08/06/2022,0000478260/096,OPUS ENERGY LIMITED,40311700,23.59,HOUSING SERVICES - LANDLORDS EXPENSES,ELECTRICITY,D400,ELECTRICITY,HOUSING SERVICES,UTILITIES
http://statistics.data.gov.uk/id/local-authority/43UM,WOKING BOROUGH COUNCIL,30/04/2022,08/06/2022,0000478260/097,OPUS ENERGY LIMITED,40311700,25.32,HOUSING SERVICES - LANDLORDS EXPENSES,ELECTRICITY,D400,ELECTRICITY,HOUSING SERVICES,UTILITIES
http://statistics.data.gov.uk/id/local-authority/43UM,WOKING BOROUGH COUNCIL,30/04/2022,08/06/2022,0000478260/098,OPUS ENERGY LIMITED,40311700,28.32,HOUSING SERVICES - LANDLORDS EXPENSES,ELECTRICITY,D400,ELECTRICITY,HOUSING SERVICES,UTILITIES
http://statistics.data.gov.uk/id/local-authority/43UM,WOKING BOROUGH COUNCIL,30/04/2022,08/06/2022,0000478260/099,OPUS ENERGY LIMITED,40311700,27.44,HOUSING SERVICES - LANDLORDS EXPENSES,ELECTRICITY,D400,ELECTRICITY,HOUSING SERVICES,UTILITIES
http://statistics.data.gov.uk/id/local-authority/43UM,WOKING BOROUGH COUNCIL,30/04/2022,08/06/2022,0000478260/100,OPUS ENERGY LIMITED,40311700,27.11,HOUSING SERVICES - LANDLORDS EXPENSES,ELECTRICITY,D400,ELECTRICITY,HOUSING SERVICES,UTILITIES
http://statistics.data.gov.uk/id/local-authority/43UM,WOKING BOROUGH COUNCIL,30/04/2022,08/06/2022,0000478260/101,OPUS ENERGY LIMITED,40311700,28.91,HOUSING SERVICES - LANDLORDS EXPENSES,ELECTRICITY,D400,ELECTRICITY,HOUSING SERVICES,UTILITIES
http://statistics.data.gov.uk/id/local-authority/43UM,WOKING BOROUGH COUNCIL,30/04/2022,08/06/2022,0000478260/102,OPUS ENERGY LIMITED,40311700,23.38,HOUSING SERVICES - LANDLORDS EXPENSES,ELECTRICITY,D400,ELECTRICITY,HOUSING SERVICES,UTILITIES
http://statistics.data.gov.uk/id/local-authority/43UM,WOKING BOROUGH COUNCIL,30/04/2022,08/06/2022,0000478260/103,OPUS ENERGY LIMITED,40311700,19.25,HOUSING SERVICES - LANDLORDS EXPENSES,ELECTRICITY,D400,ELECTRICITY,HOUSING SERVICES,UTILITIES
http://statistics.data.gov.uk/id/local-authority/43UM,WOKING BOROUGH COUNCIL,30/04/2022,08/06/2022,0000478260/104,OPUS ENERGY LIMITED,40311700,15.98,HOUSING SERVICES - LANDLORDS EXPENSES,ELECTRICITY,D400,ELECTRICITY,HOUSING SERVICES,UTILITIES
http://statistics.data.gov.uk/id/local-authority/43UM,WOKING BOROUGH COUNCIL,30/04/2022,08/06/2022,0000478260/105,OPUS ENERGY LIMITED,40311700,7.69,HOUSING SERVICES - LANDLORDS EXPENSES,ELECTRICITY,D400,ELECTRICITY,HOUSING SERVICES,UTILITIES
http://statistics.data.gov.uk/id/local-authority/43UM,WOKING BOROUGH COUNCIL,30/04/2022,08/06/2022,0000478260/106,OPUS ENERGY LIMITED,40311700,33.09,HOUSING SERVICES - LANDLORDS EXPENSES,ELECTRICITY,D400,ELECTRICITY,HOUSING SERVICES,UTILITIES
http://statistics.data.gov.uk/id/local-authority/43UM,WOKING BOROUGH COUNCIL,30/04/2022,08/06/2022,0000478260/107,OPUS ENERGY LIMITED,40311700,33.30,HOUSING SERVICES - LANDLORDS EXPENSES,ELECTRICITY,D400,ELECTRICITY,HOUSING SERVICES,UTILITIES
http://statistics.data.gov.uk/id/local-authority/43UM,WOKING BOROUGH COUNCIL,30/04/2022,08/06/2022,0000478260/108,OPUS ENERGY LIMITED,40311700,7.87,HOUSING SERVICES - LANDLORDS EXPENSES,ELECTRICITY,D400,ELECTRICITY,HOUSING SERVICES,UTILITIES
http://statistics.data.gov.uk/id/local-authority/43UM,WOKING BOROUGH COUNCIL,30/04/2022,08/06/2022,0000478260/109,OPUS ENERGY LIMITED,40311700,18.78,HOUSING SERVICES - LANDLORDS EXPENSES,ELECTRICITY,D400,ELECTRICITY,HOUSING SERVICES,UTILITIES
http://statistics.data.gov.uk/id/local-authority/43UM,WOKING BOROUGH COUNCIL,30/04/2022,08/06/2022,0000478260/110,OPUS ENERGY LIMITED,40311700,6.65,HOUSING SERVICES - LANDLORDS EXPENSES,ELECTRICITY,D400,ELECTRICITY,HOUSING SERVICES,UTILITIES
http://statistics.data.gov.uk/id/local-authority/43UM,WOKING BOROUGH COUNCIL,30/04/2022,08/06/2022,0000478260/111,OPUS ENERGY LIMITED,40311700,13.40,HOUSING SERVICES - LANDLORDS EXPENSES,ELECTRICITY,D400,ELECTRICITY,HOUSING SERVICES,UTILITIES
http://statistics.data.gov.uk/id/local-authority/43UM,WOKING BOROUGH COUNCIL,30/04/2022,08/06/2022,0000478260/112,OPUS ENERGY LIMITED,40311700,10.32,HOUSING SERVICES - LANDLORDS EXPENSES,ELECTRICITY,D400,ELECTRICITY,HOUSING SERVICES,UTILITIES
http://statistics.data.gov.uk/id/local-authority/43UM,WOKING BOROUGH COUNCIL,30/04/2022,08/06/2022,0000478260/113,OPUS ENERGY LIMITED,40311700,11.75,HOUSING SERVICES - LANDLORDS EXPENSES,ELECTRICITY,D400,ELECTRICITY,HOUSING SERVICES,UTILITIES
http://statistics.data.gov.uk/id/local-authority/43UM,WOKING BOROUGH COUNCIL,30/04/2022,08/06/2022,0000478260/115,OPUS ENERGY LIMITED,40311700,5.56,HOUSING SERVICES - LANDLORDS EXPENSES,ELECTRICITY,D400,ELECTRICITY,HOUSING SERVICES,UTILITIES
http://statistics.data.gov.uk/id/local-authority/43UM,WOKING BOROUGH COUNCIL,30/04/2022,08/06/2022,0000478260/116,OPUS ENERGY LIMITED,40311700,10.52,HOUSING SERVICES - LANDLORDS EXPENSES,ELECTRICITY,D400,ELECTRICITY,HOUSING SERVICES,UTILITIES
http://statistics.data.gov.uk/id/local-authority/43UM,WOKING BOROUGH COUNCIL,30/04/2022,08/06/2022,0000478260/117,OPUS ENERGY LIMITED,40311700,10.83,HOUSING SERVICES - LANDLORDS EXPENSES,ELECTRICITY,D400,ELECTRICITY,HOUSING SERVICES,UTILITIES
http://statistics.data.gov.uk/id/local-authority/43UM,WOKING BOROUGH COUNCIL,30/04/2022,08/06/2022,0000478260/118,OPUS ENERGY LIMITED,40311700,4.97,HOUSING SERVICES - LANDLORDS EXPENSES,ELECTRICITY,D400,ELECTRICITY,HOUSING SERVICES,UTILITIES
http://statistics.data.gov.uk/id/local-authority/43UM,WOKING BOROUGH COUNCIL,30/04/2022,08/06/2022,0000478260/119,OPUS ENERGY LIMITED,40311700,71.77,HOUSING SERVICES - LANDLORDS EXPENSES,ELECTRICITY,D400,ELECTRICITY,HOUSING SERVICES,UTILITIES
http://statistics.data.gov.uk/id/local-authority/43UM,WOKING BOROUGH COUNCIL,30/04/2022,08/06/2022,0000478260/120,OPUS ENERGY LIMITED,40311700,25.19,HOUSING SERVICES - LANDLORDS EXPENSES,ELECTRICITY,D400,ELECTRICITY,HOUSING SERVICES,UTILITIES
http://statistics.data.gov.uk/id/local-authority/43UM,WOKING BOROUGH COUNCIL,30/04/2022,08/06/2022,0000478260/121,OPUS ENERGY LIMITED,40311700,19.40,HOUSING SERVICES - LANDLORDS EXPENSES,ELECTRICITY,D400,ELECTRICITY,HOUSING SERVICES,UTILITIES
http://statistics.data.gov.uk/id/local-authority/43UM,WOKING BOROUGH COUNCIL,30/04/2022,08/06/2022,0000478260/122,OPUS ENERGY LIMITED,40311700,18.48,HOUSING SERVICES - LANDLORDS EXPENSES,ELECTRICITY,D400,ELECTRICITY,HOUSING SERVICES,UTILITIES
http://statistics.data.gov.uk/id/local-authority/43UM,WOKING BOROUGH COUNCIL,30/04/2022,08/06/2022,0000478260/123,OPUS ENERGY LIMITED,40311700,18.26,HOUSING SERVICES - LANDLORDS EXPENSES,ELECTRICITY,D400,ELECTRICITY,HOUSING SERVICES,UTILITIES
http://statistics.data.gov.uk/id/local-authority/43UM,WOKING BOROUGH COUNCIL,30/04/2022,08/06/2022,0000478260/124,OPUS ENERGY LIMITED,40311700,21.93,HOUSING SERVICES - LANDLORDS EXPENSES,ELECTRICITY,D400,ELECTRICITY,HOUSING SERVICES,UTILITIES
http://statistics.data.gov.uk/id/local-authority/43UM,WOKING BOROUGH COUNCIL,30/04/2022,08/06/2022,0000478260/125,OPUS ENERGY LIMITED,40311700,22.23,HOUSING SERVICES - LANDLORDS EXPENSES,ELECTRICITY,D400,ELECTRICITY,HOUSING SERVICES,UTILITIES
http://statistics.data.gov.uk/id/local-authority/43UM,WOKING BOROUGH COUNCIL,30/04/2022,08/06/2022,0000478260/126,OPUS ENERGY LIMITED,40311700,256.00,HOUSING SERVICES - LANDLORDS EXPENSES,ELECTRICITY,D400,ELECTRICITY,HOUSING SERVICES,UTILITIES
http://statistics.data.gov.uk/id/local-authority/43UM,WOKING BOROUGH COUNCIL,30/04/2022,08/06/2022,0000478260/128,OPUS ENERGY LIMITED,40311700,26.74,HOUSING SERVICES - LANDLORDS EXPENSES,ELECTRICITY,D400,ELECTRICITY,HOUSING SERVICES,UTILITIES
http://statistics.data.gov.uk/id/local-authority/43UM,WOKING BOROUGH COUNCIL,30/04/2022,08/06/2022,0000478260/129,OPUS ENERGY LIMITED,40311700,71.53,HOUSING SERVICES - LANDLORDS EXPENSES,ELECTRICITY,D400,ELECTRICITY,HOUSING SERVICES,UTILITIES
http://statistics.data.gov.uk/id/local-authority/43UM,WOKING BOROUGH COUNCIL,30/04/2022,08/06/2022,0000478260/130,OPUS ENERGY LIMITED,40311700,76.00,HOUSING SERVICES - LANDLORDS EXPENSES,ELECTRICITY,D400,ELECTRICITY,HOUSING SERVICES,UTILITIES
http://statistics.data.gov.uk/id/local-authority/43UM,WOKING BOROUGH COUNCIL,30/04/2022,08/06/2022,0000478260/131,OPUS ENERGY LIMITED,40311700,37.16,HOUSING SERVICES - LANDLORDS EXPENSES,ELECTRICITY,D400,ELECTRICITY,HOUSING SERVICES,UTILITIES
http://statistics.data.gov.uk/id/local-authority/43UM,WOKING BOROUGH COUNCIL,30/04/2022,08/06/2022,0000478260/132,OPUS ENERGY LIMITED,40311700,5.60,HOUSING SERVICES - LANDLORDS EXPENSES,ELECTRICITY,D400,ELECTRICITY,HOUSING SERVICES,UTILITIES
http://statistics.data.gov.uk/id/local-authority/43UM,WOKING BOROUGH COUNCIL,30/04/2022,08/06/2022,0000478260/135,OPUS ENERGY LIMITED,40311700,15.93,HOUSING SERVICES - LANDLORDS EXPENSES,ELECTRICITY,D400,ELECTRICITY,HOUSING SERVICES,UTILITIES
http://statistics.data.gov.uk/id/local-authority/43UM,WOKING BOROUGH COUNCIL,30/04/2022,08/06/2022,0000478260/136,OPUS ENERGY LIMITED,40311700,"2,329.12",HOUSING SERVICES - LANDLORDS EXPENSES,ELECTRICITY,D400,ELECTRICITY,HOUSING SERVICES,UTILITIES
http://statistics.data.gov.uk/id/local-authority/43UM,WOKING BOROUGH COUNCIL,30/04/2022,08/06/2022,0000478260/137,OPUS ENERGY LIMITED,40311700,106.05,HOUSING SERVICES - LANDLORDS EXPENSES,ELECTRICITY,D400,ELECTRICITY,HOUSING SERVICES,UTILITIES
http://statistics.data.gov.uk/id/local-authority/43UM,WOKING BOROUGH COUNCIL,30/04/2022,08/06/2022,0000478260/138,OPUS ENERGY LIMITED,40311700,54.52,HOUSING SERVICES - LANDLORDS EXPENSES,ELECTRICITY,D400,ELECTRICITY,HOUSING SERVICES,UTILITIES
http://statistics.data.gov.uk/id/local-authority/43UM,WOKING BOROUGH COUNCIL,30/04/2022,08/06/2022,0000478260/139,OPUS ENERGY LIMITED,40311700,29.88,HOUSING SERVICES - LANDLORDS EXPENSES,ELECTRICITY,D400,ELECTRICITY,HOUSING SERVICES,UTILITIES
http://statistics.data.gov.uk/id/local-authority/43UM,WOKING BOROUGH COUNCIL,30/04/2022,08/06/2022,0000478260/140,OPUS ENERGY LIMITED,40311700,269.40,HOUSING SERVICES - LANDLORDS EXPENSES,ELECTRICITY,D400,ELECTRICITY,HOUSING SERVICES,UTILITIES
http://statistics.data.gov.uk/id/local-authority/43UM,WOKING BOROUGH COUNCIL,30/04/2022,08/06/2022,0000478260/143,OPUS ENERGY LIMITED,40311700,6.21,HOUSING SERVICES - LANDLORDS EXPENSES,ELECTRICITY,D400,ELECTRICITY,HOUSING SERVICES,UTILITIES
http://statistics.data.gov.uk/id/local-authority/43UM,WOKING BOROUGH COUNCIL,30/04/2022,08/06/2022,0000478260/144,OPUS ENERGY LIMITED,40311700,32.19,HOUSING SERVICES - LANDLORDS EXPENSES,ELECTRICITY,D400,ELECTRICITY,HOUSING SERVICES,UTILITIES
http://statistics.data.gov.uk/id/local-authority/43UM,WOKING BOROUGH COUNCIL,30/04/2022,08/06/2022,0000478260/148,OPUS ENERGY LIMITED,40311700,20.57,HOUSING SERVICES - LANDLORDS EXPENSES,ELECTRICITY,D400,ELECTRICITY,HOUSING SERVICES,UTILITIES
http://statistics.data.gov.uk/id/local-authority/43UM,WOKING BOROUGH COUNCIL,30/04/2022,08/06/2022,0000478260/149,OPUS ENERGY LIMITED,40311700,22.72,HOUSING SERVICES - LANDLORDS EXPENSES,ELECTRICITY,D400,ELECTRICITY,HOUSING SERVICES,UTILITIES
http://statistics.data.gov.uk/id/local-authority/43UM,WOKING BOROUGH COUNCIL,30/04/2022,08/06/2022,0000478260/150,OPUS ENERGY LIMITED,40311700,31.09,HOUSING SERVICES - LANDLORDS EXPENSES,ELECTRICITY,D400,ELECTRICITY,HOUSING SERVICES,UTILITIES
http://statistics.data.gov.uk/id/local-authority/43UM,WOKING BOROUGH COUNCIL,30/04/2022,08/06/2022,0000478260/151,OPUS ENERGY LIMITED,40311700,17.55,HOUSING SERVICES - LANDLORDS EXPENSES,ELECTRICITY,D400,ELECTRICITY,HOUSING SERVICES,UTILITIES
http://statistics.data.gov.uk/id/local-authority/43UM,WOKING BOROUGH COUNCIL,30/04/2022,08/06/2022,0000478260/152,OPUS ENERGY LIMITED,40311700,45.33,HOUSING SERVICES - LANDLORDS EXPENSES,ELECTRICITY,D400,ELECTRICITY,HOUSING SERVICES,UTILITIES
http://statistics.data.gov.uk/id/local-authority/43UM,WOKING BOROUGH COUNCIL,30/04/2022,08/06/2022,0000478260/153,OPUS ENERGY LIMITED,40311700,69.93,HOUSING SERVICES - LANDLORDS EXPENSES,ELECTRICITY,D400,ELECTRICITY,HOUSING SERVICES,UTILITIES
http://statistics.data.gov.uk/id/local-authority/43UM,WOKING BOROUGH COUNCIL,30/04/2022,08/06/2022,0000478260/154,OPUS ENERGY LIMITED,40311700,13.53,HOUSING SERVICES - LANDLORDS EXPENSES,ELECTRICITY,D400,ELECTRICITY,HOUSING SERVICES,UTILITIES
http://statistics.data.gov.uk/id/local-authority/43UM,WOKING BOROUGH COUNCIL,30/04/2022,08/06/2022,0000478260/155,OPUS ENERGY LIMITED,40311700,6.19,HOUSING SERVICES - LANDLORDS EXPENSES,ELECTRICITY,D400,ELECTRICITY,HOUSING SERVICES,UTILITIES
http://statistics.data.gov.uk/id/local-authority/43UM,WOKING BOROUGH COUNCIL,30/04/2022,08/06/2022,0000478260/156,OPUS ENERGY LIMITED,40311700,93.56,HOUSING SERVICES - LANDLORDS EXPENSES,ELECTRICITY,D400,ELECTRICITY,HOUSING SERVICES,UTILITIES
http://statistics.data.gov.uk/id/local-authority/43UM,WOKING BOROUGH COUNCIL,30/04/2022,08/06/2022,0000478260/157,OPUS ENERGY LIMITED,40311700,8.94,HOUSING SERVICES - LANDLORDS EXPENSES,ELECTRICITY,D400,ELECTRICITY,HOUSING SERVICES,UTILITIES
http://statistics.data.gov.uk/id/local-authority/43UM,WOKING BOROUGH COUNCIL,30/04/2022,08/06/2022,0000478260/158,OPUS ENERGY LIMITED,40311700,33.16,HOUSING SERVICES - LANDLORDS EXPENSES,ELECTRICITY,D400,ELECTRICITY,HOUSING SERVICES,UTILITIES
http://statistics.data.gov.uk/id/local-authority/43UM,WOKING BOROUGH COUNCIL,30/04/2022,08/06/2022,0000478260/159,OPUS ENERGY LIMITED,40311700,26.71,HOUSING SERVICES - LANDLORDS EXPENSES,ELECTRICITY,D400,ELECTRICITY,HOUSING SERVICES,UTILITIES
http://statistics.data.gov.uk/id/local-authority/43UM,WOKING BOROUGH COUNCIL,30/04/2022,08/06/2022,0000478260/170,OPUS ENERGY LIMITED,40311700,61.46,HOUSING SERVICES - LANDLORDS EXPENSES,ELECTRICITY,D400,ELECTRICITY,HOUSING SERVICES,UTILITIES
http://statistics.data.gov.uk/id/local-authority/43UM,WOKING BOROUGH COUNCIL,30/04/2022,08/06/2022,0000478260/171,OPUS ENERGY LIMITED,40311700,49.68,HOUSING SERVICES - LANDLORDS EXPENSES,ELECTRICITY,D400,ELECTRICITY,HOUSING SERVICES,UTILITIES
http://statistics.data.gov.uk/id/local-authority/43UM,WOKING BOROUGH COUNCIL,30/04/2022,08/06/2022,0000478260/172,OPUS ENERGY LIMITED,40311700,256.12,HOUSING SERVICES - LANDLORDS EXPENSES,ELECTRICITY,D400,ELECTRICITY,HOUSING SERVICES,UTILITIES
http://statistics.data.gov.uk/id/local-authority/43UM,WOKING BOROUGH COUNCIL,30/04/2022,08/06/2022,0000478260/174,OPUS ENERGY LIMITED,40311700,23.23,HOUSING SERVICES - LANDLORDS EXPENSES,ELECTRICITY,D400,ELECTRICITY,HOUSING SERVICES,UTILITIES
http://statistics.data.gov.uk/id/local-authority/43UM,WOKING BOROUGH COUNCIL,30/04/2022,08/06/2022,0000478260/175,OPUS ENERGY LIMITED,40311700,16.84,HOUSING SERVICES - LANDLORDS EXPENSES,ELECTRICITY,D400,ELECTRICITY,HOUSING SERVICES,UTILITIES
http://statistics.data.gov.uk/id/local-authority/43UM,WOKING BOROUGH COUNCIL,30/04/2022,08/06/2022,0000478260/176,OPUS ENERGY LIMITED,40311700,10.07,HOUSING SERVICES - LANDLORDS EXPENSES,ELECTRICITY,D400,ELECTRICITY,HOUSING SERVICES,UTILITIES
http://statistics.data.gov.uk/id/local-authority/43UM,WOKING BOROUGH COUNCIL,30/04/2022,08/06/2022,0000478260/177,OPUS ENERGY LIMITED,40311700,5.57,HOUSING SERVICES - LANDLORDS EXPENSES,ELECTRICITY,D400,ELECTRICITY,HOUSING SERVICES,UTILITIES
http://statistics.data.gov.uk/id/local-authority/43UM,WOKING BOROUGH COUNCIL,30/04/2022,08/06/2022,0000478260/178,OPUS ENERGY LIMITED,40311700,11.59,HOUSING SERVICES - LANDLORDS EXPENSES,ELECTRICITY,D400,ELECTRICITY,HOUSING SERVICES,UTILITIES
http://statistics.data.gov.uk/id/local-authority/43UM,WOKING BOROUGH COUNCIL,30/04/2022,08/06/2022,0000478260/184,OPUS ENERGY LIMITED,40311700,13.22,HOUSING SERVICES - LANDLORDS EXPENSES,ELECTRICITY,D400,ELECTRICITY,HOUSING SERVICES,UTILITIES
http://statistics.data.gov.uk/id/local-authority/43UM,WOKING BOROUGH COUNCIL,30/04/2022,08/06/2022,0000478260/186,OPUS ENERGY LIMITED,40311700,5.82,HOUSING SERVICES - LANDLORDS EXPENSES,ELECTRICITY,D400,ELECTRICITY,HOUSING SERVICES,UTILITIES
http://statistics.data.gov.uk/id/local-authority/43UM,WOKING BOROUGH COUNCIL,30/04/2022,08/06/2022,0000478260/187,OPUS ENERGY LIMITED,40311700,91.30,HOUSING SERVICES - LANDLORDS EXPENSES,ELECTRICITY,D400,ELECTRICITY,HOUSING SERVICES,UTILITIES
http://statistics.data.gov.uk/id/local-authority/43UM,WOKING BOROUGH COUNCIL,30/04/2022,08/06/2022,0000478260/192,OPUS ENERGY LIMITED,40311700,17.71,HOUSING SERVICES - LANDLORDS EXPENSES,ELECTRICITY,D400,ELECTRICITY,HOUSING SERVICES,UTILITIES
http://statistics.data.gov.uk/id/local-authority/43UM,WOKING BOROUGH COUNCIL,30/04/2022,08/06/2022,0000478260/195,OPUS ENERGY LIMITED,40311700,6.55,HOUSING SERVICES - LANDLORDS EXPENSES,ELECTRICITY,D400,ELECTRICITY,HOUSING SERVICES,UTILITIES
http://statistics.data.gov.uk/id/local-authority/43UM,WOKING BOROUGH COUNCIL,30/04/2022,08/06/2022,0000478260/196,OPUS ENERGY LIMITED,40311700,55.32,HOUSING SERVICES - LANDLORDS EXPENSES,ELECTRICITY,D400,ELECTRICITY,HOUSING SERVICES,UTILITIES
http://statistics.data.gov.uk/id/local-authority/43UM,WOKING BOROUGH COUNCIL,30/04/2022,08/06/2022,0000478260/197,OPUS ENERGY LIMITED,40311700,27.74,HOUSING SERVICES - LANDLORDS EXPENSES,ELECTRICITY,D400,ELECTRICITY,HOUSING SERVICES,UTILITIES
http://statistics.data.gov.uk/id/local-authority/43UM,WOKING BOROUGH COUNCIL,30/04/2022,08/06/2022,0000478260/198,OPUS ENERGY LIMITED,40311700,-187.10,HOUSING SERVICES - LANDLORDS EXPENSES,ELECTRICITY,D400,ELECTRICITY,HOUSING SERVICES,UTILITIES
http://statistics.data.gov.uk/id/local-authority/43UM,WOKING BOROUGH COUNCIL,30/04/2022,08/06/2022,0000478260/200,OPUS ENERGY LIMITED,40311700,-176.90,HOUSING SERVICES - LANDLORDS EXPENSES,ELECTRICITY,D400,ELECTRICITY,HOUSING SERVICES,UTILITIES
http://statistics.data.gov.uk/id/local-authority/43UM,WOKING BOROUGH COUNCIL,30/04/2022,08/06/2022,0000478260/202,OPUS ENERGY LIMITED,40311700,84.91,HOUSING SERVICES - LANDLORDS EXPENSES,ELECTRICITY,D400,ELECTRICITY,HOUSING SERVICES,UTILITIES
http://statistics.data.gov.uk/id/local-authority/43UM,WOKING BOROUGH COUNCIL,30/04/2022,08/06/2022,0000478260/203,OPUS ENERGY LIMITED,40311700,-178.71,HOUSING SERVICES - LANDLORDS EXPENSES,ELECTRICITY,D400,ELECTRICITY,HOUSING SERVICES,UTILITIES
http://statistics.data.gov.uk/id/local-authority/43UM,WOKING BOROUGH COUNCIL,30/04/2022,08/06/2022,0000478260/205,OPUS ENERGY LIMITED,40311700,-170.47,HOUSING SERVICES - LANDLORDS EXPENSES,ELECTRICITY,D400,ELECTRICITY,HOUSING SERVICES,UTILITIES
http://statistics.data.gov.uk/id/local-authority/43UM,WOKING BOROUGH COUNCIL,30/04/2022,08/06/2022,0000478260/207,OPUS ENERGY LIMITED,40311700,-193.38,HOUSING SERVICES - LANDLORDS EXPENSES,ELECTRICITY,D400,ELECTRICITY,HOUSING SERVICES,UTILITIES
http://statistics.data.gov.uk/id/local-authority/43UM,WOKING BOROUGH COUNCIL,30/04/2022,08/06/2022,0000478260/209,OPUS ENERGY LIMITED,40311700,44.33,HOUSING SERVICES - LANDLORDS EXPENSES,ELECTRICITY,D400,ELECTRICITY,HOUSING SERVICES,UTILITIES
http://statistics.data.gov.uk/id/local-authority/43UM,WOKING BOROUGH COUNCIL,30/04/2022,08/06/2022,0000478260/210,OPUS ENERGY LIMITED,40311700,6.10,HOUSING SERVICES - LANDLORDS EXPENSES,ELECTRICITY,D400,ELECTRICITY,HOUSING SERVICES,UTILITIES
http://statistics.data.gov.uk/id/local-authority/43UM,WOKING BOROUGH COUNCIL,30/04/2022,08/06/2022,0000478260/213,OPUS ENERGY LIMITED,40311700,32.71,HOUSING SERVICES - LANDLORDS EXPENSES,ELECTRICITY,D400,ELECTRICITY,HOUSING SERVICES,UTILITIES
http://statistics.data.gov.uk/id/local-authority/43UM,WOKING BOROUGH COUNCIL,30/04/2022,08/06/2022,0000478260/214,OPUS ENERGY LIMITED,40311700,154.28,HOUSING SERVICES - LANDLORDS EXPENSES,ELECTRICITY,D400,ELECTRICITY,HOUSING SERVICES,UTILITIES
http://statistics.data.gov.uk/id/local-authority/43UM,WOKING BOROUGH COUNCIL,30/04/2022,08/06/2022,0000478260/216,OPUS ENERGY LIMITED,40311700,9.88,HOUSING SERVICES - LANDLORDS EXPENSES,ELECTRICITY,D400,ELECTRICITY,HOUSING SERVICES,UTILITIES
http://statistics.data.gov.uk/id/local-authority/43UM,WOKING BOROUGH COUNCIL,30/04/2022,08/06/2022,0000478260/222,OPUS ENERGY LIMITED,40311700,10.69,HOUSING SERVICES - LANDLORDS EXPENSES,ELECTRICITY,D400,ELECTRICITY,HOUSING SERVICES,UTILITIES
http://statistics.data.gov.uk/id/local-authority/43UM,WOKING BOROUGH COUNCIL,30/04/2022,08/06/2022,0000478260/223,OPUS ENERGY LIMITED,40311700,10.09,HOUSING SERVICES - LANDLORDS EXPENSES,ELECTRICITY,D400,ELECTRICITY,HOUSING SERVICES,UTILITIES
http://statistics.data.gov.uk/id/local-authority/43UM,WOKING BOROUGH COUNCIL,30/04/2022,08/06/2022,0000478260/227,OPUS ENERGY LIMITED,40311700,17.30,HOUSING SERVICES - LANDLORDS EXPENSES,ELECTRICITY,D400,ELECTRICITY,HOUSING SERVICES,UTILITIES
http://statistics.data.gov.uk/id/local-authority/43UM,WOKING BOROUGH COUNCIL,30/04/2022,08/06/2022,0000478260/228,OPUS ENERGY LIMITED,40311700,5.60,HOUSING SERVICES - LANDLORDS EXPENSES,ELECTRICITY,D400,ELECTRICITY,HOUSING SERVICES,UTILITIES
http://statistics.data.gov.uk/id/local-authority/43UM,WOKING BOROUGH COUNCIL,30/04/2022,08/06/2022,0000478260/229,OPUS ENERGY LIMITED,40311700,5.60,HOUSING SERVICES - LANDLORDS EXPENSES,ELECTRICITY,D400,ELECTRICITY,HOUSING SERVICES,UTILITIES
http://statistics.data.gov.uk/id/local-authority/43UM,WOKING BOROUGH COUNCIL,30/04/2022,08/06/2022,0000478260/233,OPUS ENERGY LIMITED,40311700,8.06,HOUSING SERVICES - LANDLORDS EXPENSES,ELECTRICITY,D400,ELECTRICITY,HOUSING SERVICES,UTILITIES
http://statistics.data.gov.uk/id/local-authority/43UM,WOKING BOROUGH COUNCIL,30/04/2022,08/06/2022,0000478260/237,OPUS ENERGY LIMITED,40311700,69.98,HOUSING SERVICES - LANDLORDS EXPENSES,ELECTRICITY,D400,ELECTRICITY,HOUSING SERVICES,UTILITIES
http://statistics.data.gov.uk/id/local-authority/43UM,WOKING BOROUGH COUNCIL,30/04/2022,08/06/2022,0000478260/238,OPUS ENERGY LIMITED,40311700,145.59,HOUSING SERVICES - LANDLORDS EXPENSES,ELECTRICITY,D400,ELECTRICITY,HOUSING SERVICES,UTILITIES
http://statistics.data.gov.uk/id/local-authority/43UM,WOKING BOROUGH COUNCIL,30/04/2022,08/06/2022,0000478260/240,OPUS ENERGY LIMITED,40311700,4.97,HOUSING SERVICES - LANDLORDS EXPENSES,ELECTRICITY,D400,ELECTRICITY,HOUSING SERVICES,UTILITIES
http://statistics.data.gov.uk/id/local-authority/43UM,WOKING BOROUGH COUNCIL,30/04/2022,08/06/2022,0000478260/242,OPUS ENERGY LIMITED,40311700,30.10,HOUSING SERVICES - LANDLORDS EXPENSES,ELECTRICITY,D400,ELECTRICITY,HOUSING SERVICES,UTILITIES
http://statistics.data.gov.uk/id/local-authority/43UM,WOKING BOROUGH COUNCIL,30/04/2022,08/06/2022,0000478260/243,OPUS ENERGY LIMITED,40311700,55.31,HOUSING SERVICES - LANDLORDS EXPENSES,ELECTRICITY,D400,ELECTRICITY,HOUSING SERVICES,UTILITIES
http://statistics.data.gov.uk/id/local-authority/43UM,WOKING BOROUGH COUNCIL,30/04/2022,08/06/2022,0000478260/244,OPUS ENERGY LIMITED,40311700,4.97,HOUSING SERVICES - LANDLORDS EXPENSES,ELECTRICITY,D400,ELECTRICITY,HOUSING SERVICES,UTILITIES
http://statistics.data.gov.uk/id/local-authority/43UM,WOKING BOROUGH COUNCIL,30/04/2022,08/06/2022,0000478260/246,OPUS ENERGY LIMITED,40311700,11.59,HOUSING SERVICES - LANDLORDS EXPENSES,ELECTRICITY,D400,ELECTRICITY,HOUSING SERVICES,UTILITIES
http://statistics.data.gov.uk/id/local-authority/43UM,WOKING BOROUGH COUNCIL,30/04/2022,08/06/2022,0000478260/247,OPUS ENERGY LIMITED,40311700,12.35,HOUSING SERVICES - LANDLORDS EXPENSES,ELECTRICITY,D400,ELECTRICITY,HOUSING SERVICES,UTILITIES
http://statistics.data.gov.uk/id/local-authority/43UM,WOKING BOROUGH COUNCIL,30/04/2022,08/06/2022,0000478260/248,OPUS ENERGY LIMITED,40311700,31.50,HOUSING SERVICES - LANDLORDS EXPENSES,ELECTRICITY,D400,ELECTRICITY,HOUSING SERVICES,UTILITIES
http://statistics.data.gov.uk/id/local-authority/43UM,WOKING BOROUGH COUNCIL,30/04/2022,08/06/2022,0000478260/249,OPUS ENERGY LIMITED,40311700,10.40,HOUSING SERVICES - LANDLORDS EXPENSES,ELECTRICITY,D400,ELECTRICITY,HOUSING SERVICES,UTILITIES
http://statistics.data.gov.uk/id/local-authority/43UM,WOKING BOROUGH COUNCIL,30/04/2022,08/06/2022,0000478260/250,OPUS ENERGY LIMITED,40311700,41.40,HOUSING SERVICES - LANDLORDS EXPENSES,ELECTRICITY,D400,ELECTRICITY,HOUSING SERVICES,UTILITIES
http://statistics.data.gov.uk/id/local-authority/43UM,WOKING BOROUGH COUNCIL,30/04/2022,08/06/2022,0000478260/251,OPUS ENERGY LIMITED,40311700,"1,258.68",HOUSING SERVICES - LANDLORDS EXPENSES,ELECTRICITY,D400,ELECTRICITY,HOUSING SERVICES,UTILITIES
http://statistics.data.gov.uk/id/local-authority/43UM,WOKING BOROUGH COUNCIL,30/04/2022,08/06/2022,0000478260/253,OPUS ENERGY LIMITED,40311700,14.90,HOUSING SERVICES - LANDLORDS EXPENSES,ELECTRICITY,D400,ELECTRICITY,HOUSING SERVICES,UTILITIES
http://statistics.data.gov.uk/id/local-authority/43UM,WOKING BOROUGH COUNCIL,30/04/2022,08/06/2022,0000478260/254,OPUS ENERGY LIMITED,40311700,66.77,HOUSING SERVICES - LANDLORDS EXPENSES,ELECTRICITY,D400,ELECTRICITY,HOUSING SERVICES,UTILITIES
http://statistics.data.gov.uk/id/local-authority/43UM,WOKING BOROUGH COUNCIL,30/04/2022,08/06/2022,0000478260/255,OPUS ENERGY LIMITED,40311700,256.38,HOUSING SERVICES - LANDLORDS EXPENSES,ELECTRICITY,D400,ELECTRICITY,HOUSING SERVICES,UTILITIES
http://statistics.data.gov.uk/id/local-authority/43UM,WOKING BOROUGH COUNCIL,30/04/2022,08/06/2022,0000478260/257,OPUS ENERGY LIMITED,40311700,17.12,HOUSING SERVICES - LANDLORDS EXPENSES,ELECTRICITY,D400,ELECTRICITY,HOUSING SERVICES,UTILITIES
http://statistics.data.gov.uk/id/local-authority/43UM,WOKING BOROUGH COUNCIL,30/04/2022,08/06/2022,0000478260/258,OPUS ENERGY LIMITED,40311700,12.64,HOUSING SERVICES - LANDLORDS EXPENSES,ELECTRICITY,D400,ELECTRICITY,HOUSING SERVICES,UTILITIES
http://statistics.data.gov.uk/id/local-authority/43UM,WOKING BOROUGH COUNCIL,30/04/2022,08/06/2022,0000478260/267,OPUS ENERGY LIMITED,40311700,66.48,HOUSING SERVICES - LANDLORDS EXPENSES,ELECTRICITY,D400,ELECTRICITY,HOUSING SERVICES,UTILITIES
http://statistics.data.gov.uk/id/local-authority/43UM,WOKING BOROUGH COUNCIL,30/04/2022,08/06/2022,0000478260/268,OPUS ENERGY LIMITED,40311700,171.17,HOUSING SERVICES - LANDLORDS EXPENSES,ELECTRICITY,D400,ELECTRICITY,HOUSING SERVICES,UTILITIES
http://statistics.data.gov.uk/id/local-authority/43UM,WOKING BOROUGH COUNCIL,30/04/2022,08/06/2022,0000478260/270,OPUS ENERGY LIMITED,40311700,58.61,HOUSING SERVICES - LANDLORDS EXPENSES,ELECTRICITY,D400,ELECTRICITY,HOUSING SERVICES,UTILITIES
http://statistics.data.gov.uk/id/local-authority/43UM,WOKING BOROUGH COUNCIL,30/04/2022,08/06/2022,0000478260/271,OPUS ENERGY LIMITED,40311700,15.29,HOUSING SERVICES - LANDLORDS EXPENSES,ELECTRICITY,D400,ELECTRICITY,HOUSING SERVICES,UTILITIES
http://statistics.data.gov.uk/id/local-authority/43UM,WOKING BOROUGH COUNCIL,30/04/2022,08/06/2022,0000478260/272,OPUS ENERGY LIMITED,40311700,62.89,HOUSING SERVICES - LANDLORDS EXPENSES,ELECTRICITY,D400,ELECTRICITY,HOUSING SERVICES,UTILITIES
http://statistics.data.gov.uk/id/local-authority/43UM,WOKING BOROUGH COUNCIL,30/04/2022,08/06/2022,0000478260/273,OPUS ENERGY LIMITED,40311700,8.04,HOUSING SERVICES - LANDLORDS EXPENSES,ELECTRICITY,D400,ELECTRICITY,HOUSING SERVICES,UTILITIES
http://statistics.data.gov.uk/id/local-authority/43UM,WOKING BOROUGH COUNCIL,30/04/2022,08/06/2022,0000478260/274,OPUS ENERGY LIMITED,40311700,10.18,HOUSING SERVICES - LANDLORDS EXPENSES,ELECTRICITY,D400,ELECTRICITY,HOUSING SERVICES,UTILITIES
http://statistics.data.gov.uk/id/local-authority/43UM,WOKING BOROUGH COUNCIL,30/04/2022,08/06/2022,0000478260/275,OPUS ENERGY LIMITED,40311700,55.45,HOUSING SERVICES - LANDLORDS EXPENSES,ELECTRICITY,D400,ELECTRICITY,HOUSING SERVICES,UTILITIES
http://statistics.data.gov.uk/id/local-authority/43UM,WOKING BOROUGH COUNCIL,30/04/2022,08/06/2022,0000478260/276,OPUS ENERGY LIMITED,40311700,132.59,HOUSING SERVICES - LANDLORDS EXPENSES,ELECTRICITY,D400,ELECTRICITY,HOUSING SERVICES,UTILITIES
http://statistics.data.gov.uk/id/local-authority/43UM,WOKING BOROUGH COUNCIL,30/04/2022,08/06/2022,0000478260/278,OPUS ENERGY LIMITED,40311700,337.17,HOUSING SERVICES - LANDLORDS EXPENSES,ELECTRICITY,D400,ELECTRICITY,HOUSING SERVICES,UTILITIES
http://statistics.data.gov.uk/id/local-authority/43UM,WOKING BOROUGH COUNCIL,30/04/2022,08/06/2022,0000478260/280,OPUS ENERGY LIMITED,40311700,45.92,HOUSING SERVICES - LANDLORDS EXPENSES,ELECTRICITY,D400,ELECTRICITY,HOUSING SERVICES,UTILITIES
http://statistics.data.gov.uk/id/local-authority/43UM,WOKING BOROUGH COUNCIL,30/04/2022,08/06/2022,0000478260/281,OPUS ENERGY LIMITED,40311700,28.56,HOUSING SERVICES - LANDLORDS EXPENSES,ELECTRICITY,D400,ELECTRICITY,HOUSING SERVICES,UTILITIES
http://statistics.data.gov.uk/id/local-authority/43UM,WOKING BOROUGH COUNCIL,30/04/2022,08/06/2022,0000478260/282,OPUS ENERGY LIMITED,40311700,24.22,HOUSING SERVICES - LANDLORDS EXPENSES,ELECTRICITY,D400,ELECTRICITY,HOUSING SERVICES,UTILITIES
http://statistics.data.gov.uk/id/local-authority/43UM,WOKING BOROUGH COUNCIL,30/04/2022,08/06/2022,0000478260/283,OPUS ENERGY LIMITED,40311700,18.65,HOUSING SERVICES - LANDLORDS EXPENSES,ELECTRICITY,D400,ELECTRICITY,HOUSING SERVICES,UTILITIES
http://statistics.data.gov.uk/id/local-authority/43UM,WOKING BOROUGH COUNCIL,30/04/2022,08/06/2022,0000478260/035,OPUS ENERGY LIMITED,40311700,14.63,HOUSING SERVICES - LANDLORDS EXPENSES,CLIMATE CHANGE LEVY,D430,CLIMATE CHANGE LEVY,HOUSING SERVICES,UTILITIES
http://statistics.data.gov.uk/id/local-authority/43UM,WOKING BOROUGH COUNCIL,30/04/2022,08/06/2022,0000478260/040,OPUS ENERGY LIMITED,40311700,11.22,HOUSING SERVICES - LANDLORDS EXPENSES,CLIMATE CHANGE LEVY,D430,CLIMATE CHANGE LEVY,HOUSING SERVICES,UTILITIES
http://statistics.data.gov.uk/id/local-authority/43UM,WOKING BOROUGH COUNCIL,30/04/2022,08/06/2022,0000478260/066,OPUS ENERGY LIMITED,40311700,11.07,HOUSING SERVICES - LANDLORDS EXPENSES,CLIMATE CHANGE LEVY,D430,CLIMATE CHANGE LEVY,HOUSING SERVICES,UTILITIES
http://statistics.data.gov.uk/id/local-authority/43UM,WOKING BOROUGH COUNCIL,30/04/2022,08/06/2022,0000478260/070,OPUS ENERGY LIMITED,40311700,14.07,HOUSING SERVICES - LANDLORDS EXPENSES,CLIMATE CHANGE LEVY,D430,CLIMATE CHANGE LEVY,HOUSING SERVICES,UTILITIES
http://statistics.data.gov.uk/id/local-authority/43UM,WOKING BOROUGH COUNCIL,30/04/2022,08/06/2022,0000478260/076,OPUS ENERGY LIMITED,40311700,14.05,HOUSING SERVICES - LANDLORDS EXPENSES,CLIMATE CHANGE LEVY,D430,CLIMATE CHANGE LEVY,HOUSING SERVICES,UTILITIES
http://statistics.data.gov.uk/id/local-authority/43UM,WOKING BOROUGH COUNCIL,30/04/2022,08/06/2022,0000478260/089,OPUS ENERGY LIMITED,40311700,14.00,HOUSING SERVICES - LANDLORDS EXPENSES,CLIMATE CHANGE LEVY,D430,CLIMATE CHANGE LEVY,HOUSING SERVICES,UTILITIES
http://statistics.data.gov.uk/id/local-authority/43UM,WOKING BOROUGH COUNCIL,30/04/2022,08/06/2022,0000478260/127,OPUS ENERGY LIMITED,40311700,14.05,HOUSING SERVICES - LANDLORDS EXPENSES,CLIMATE CHANGE LEVY,D430,CLIMATE CHANGE LEVY,HOUSING SERVICES,UTILITIES
http://statistics.data.gov.uk/id/local-authority/43UM,WOKING BOROUGH COUNCIL,30/04/2022,08/06/2022,0000478260/141,OPUS ENERGY LIMITED,40311700,14.80,HOUSING SERVICES - LANDLORDS EXPENSES,CLIMATE CHANGE LEVY,D430,CLIMATE CHANGE LEVY,HOUSING SERVICES,UTILITIES
http://statistics.data.gov.uk/id/local-authority/43UM,WOKING BOROUGH COUNCIL,30/04/2022,08/06/2022,0000478260/173,OPUS ENERGY LIMITED,40311700,14.05,HOUSING SERVICES - LANDLORDS EXPENSES,CLIMATE CHANGE LEVY,D430,CLIMATE CHANGE LEVY,HOUSING SERVICES,UTILITIES
http://statistics.data.gov.uk/id/local-authority/43UM,WOKING BOROUGH COUNCIL,30/04/2022,08/06/2022,0000478260/199,OPUS ENERGY LIMITED,40311700,-10.25,HOUSING SERVICES - LANDLORDS EXPENSES,CLIMATE CHANGE LEVY,D430,CLIMATE CHANGE LEVY,HOUSING SERVICES,UTILITIES
http://statistics.data.gov.uk/id/local-authority/43UM,WOKING BOROUGH COUNCIL,30/04/2022,08/06/2022,0000478260/201,OPUS ENERGY LIMITED,40311700,-9.67,HOUSING SERVICES - LANDLORDS EXPENSES,CLIMATE CHANGE LEVY,D430,CLIMATE CHANGE LEVY,HOUSING SERVICES,UTILITIES
http://statistics.data.gov.uk/id/local-authority/43UM,WOKING BOROUGH COUNCIL,30/04/2022,08/06/2022,0000478260/204,OPUS ENERGY LIMITED,40311700,-9.78,HOUSING SERVICES - LANDLORDS EXPENSES,CLIMATE CHANGE LEVY,D430,CLIMATE CHANGE LEVY,HOUSING SERVICES,UTILITIES
http://statistics.data.gov.uk/id/local-authority/43UM,WOKING BOROUGH COUNCIL,30/04/2022,08/06/2022,0000478260/206,OPUS ENERGY LIMITED,40311700,-9.35,HOUSING SERVICES - LANDLORDS EXPENSES,CLIMATE CHANGE LEVY,D430,CLIMATE CHANGE LEVY,HOUSING SERVICES,UTILITIES
http://statistics.data.gov.uk/id/local-authority/43UM,WOKING BOROUGH COUNCIL,30/04/2022,08/06/2022,0000478260/208,OPUS ENERGY LIMITED,40311700,-10.61,HOUSING SERVICES - LANDLORDS EXPENSES,CLIMATE CHANGE LEVY,D430,CLIMATE CHANGE LEVY,HOUSING SERVICES,UTILITIES
http://statistics.data.gov.uk/id/local-authority/43UM,WOKING BOROUGH COUNCIL,30/04/2022,08/06/2022,0000478260/215,OPUS ENERGY LIMITED,40311700,8.43,HOUSING SERVICES - LANDLORDS EXPENSES,CLIMATE CHANGE LEVY,D430,CLIMATE CHANGE LEVY,HOUSING SERVICES,UTILITIES
http://statistics.data.gov.uk/id/local-authority/43UM,WOKING BOROUGH COUNCIL,30/04/2022,08/06/2022,0000478260/239,OPUS ENERGY LIMITED,40311700,7.86,HOUSING SERVICES - LANDLORDS EXPENSES,CLIMATE CHANGE LEVY,D430,CLIMATE CHANGE LEVY,HOUSING SERVICES,UTILITIES
http://statistics.data.gov.uk/id/local-authority/43UM,WOKING BOROUGH COUNCIL,30/04/2022,08/06/2022,0000478260/252,OPUS ENERGY LIMITED,40311700,78.06,HOUSING SERVICES - LANDLORDS EXPENSES,CLIMATE CHANGE LEVY,D430,CLIMATE CHANGE LEVY,HOUSING SERVICES,UTILITIES
http://statistics.data.gov.uk/id/local-authority/43UM,WOKING BOROUGH COUNCIL,30/04/2022,08/06/2022,0000478260/256,OPUS ENERGY LIMITED,40311700,14.05,HOUSING SERVICES - LANDLORDS EXPENSES,CLIMATE CHANGE LEVY,D430,CLIMATE CHANGE LEVY,HOUSING SERVICES,UTILITIES
http://statistics.data.gov.uk/id/local-authority/43UM,WOKING BOROUGH COUNCIL,30/04/2022,08/06/2022,0000478260/269,OPUS ENERGY LIMITED,40311700,10.14,HOUSING SERVICES - LANDLORDS EXPENSES,CLIMATE CHANGE LEVY,D430,CLIMATE CHANGE LEVY,HOUSING SERVICES,UTILITIES
http://statistics.data.gov.uk/id/local-authority/43UM,WOKING BOROUGH COUNCIL,30/04/2022,08/06/2022,0000478260/279,OPUS ENERGY LIMITED,40311700,20.54,HOUSING SERVICES - LANDLORDS EXPENSES,CLIMATE CHANGE LEVY,D430,CLIMATE CHANGE LEVY,HOUSING SERVICES,UTILITIES
http://statistics.data.gov.uk/id/local-authority/43UM,WOKING BOROUGH COUNCIL,30/04/2022,08/06/2022,0000478260/012,OPUS ENERGY LIMITED,40311700,696.98,INDEPENDENT LIVING SERVICES - ALPHA RD COMMUNITY HALL,ELECTRICITY,D400,ELECTRICITY,INDEPENDENT LIVING SERVICES,UTILITIES
http://statistics.data.gov.uk/id/local-authority/43UM,WOKING BOROUGH COUNCIL,30/04/2022,08/06/2022,0000478260/013,OPUS ENERGY LIMITED,40311700,38.46,INDEPENDENT LIVING SERVICES - ALPHA RD COMMUNITY HALL,CLIMATE CHANGE LEVY,D430,CLIMATE CHANGE LEVY,INDEPENDENT LIVING SERVICES,UTILITIES
http://statistics.data.gov.uk/id/local-authority/43UM,WOKING BOROUGH COUNCIL,30/04/2022,08/06/2022,0000478260/057,OPUS ENERGY LIMITED,40311700,18.95,HOUSING SERVICES - TEMPORARY ACCOMMODATION,ELECTRICITY,D400,ELECTRICITY,HOUSING SERVICES,UTILITIES
http://statistics.data.gov.uk/id/local-authority/43UM,WOKING BOROUGH COUNCIL,30/04/2022,08/06/2022,0000478260/058,OPUS ENERGY LIMITED,40311700,9.39,HOUSING SERVICES - TEMPORARY ACCOMMODATION,ELECTRICITY,D400,ELECTRICITY,HOUSING SERVICES,UTILITIES
http://statistics.data.gov.uk/id/local-authority/43UM,WOKING BOROUGH COUNCIL,30/04/2022,08/06/2022,0000478260/059,OPUS ENERGY LIMITED,40311700,12.82,HOUSING SERVICES - TEMPORARY ACCOMMODATION,ELECTRICITY,D400,ELECTRICITY,HOUSING SERVICES,UTILITIES
http://statistics.data.gov.uk/id/local-authority/43UM,WOKING BOROUGH COUNCIL,30/04/2022,08/06/2022,0000478260/060,OPUS ENERGY LIMITED,40311700,44.92,HOUSING SERVICES - TEMPORARY ACCOMMODATION,ELECTRICITY,D400,ELECTRICITY,HOUSING SERVICES,UTILITIES
http://statistics.data.gov.uk/id/local-authority/43UM,WOKING BOROUGH COUNCIL,30/04/2022,08/06/2022,0000478260/063,OPUS ENERGY LIMITED,40311700,65.36,HOUSING SERVICES - TEMPORARY ACCOMMODATION,ELECTRICITY,D400,ELECTRICITY,HOUSING SERVICES,UTILITIES
http://statistics.data.gov.uk/id/local-authority/43UM,WOKING BOROUGH COUNCIL,30/04/2022,08/06/2022,0000478260/064,OPUS ENERGY LIMITED,40311700,67.76,HOUSING SERVICES - TEMPORARY ACCOMMODATION,ELECTRICITY,D400,ELECTRICITY,HOUSING SERVICES,UTILITIES
http://statistics.data.gov.uk/id/local-authority/43UM,WOKING BOROUGH COUNCIL,30/04/2022,08/06/2022,0000478260/114,OPUS ENERGY LIMITED,40311700,12.67,HOUSING SERVICES - TEMPORARY ACCOMMODATION,ELECTRICITY,D400,ELECTRICITY,HOUSING SERVICES,UTILITIES
http://statistics.data.gov.uk/id/local-authority/43UM,WOKING BOROUGH COUNCIL,30/04/2022,08/06/2022,0000478260/263,OPUS ENERGY LIMITED,40311700,248.20,HOUSING SERVICES - TEMPORARY ACCOMMODATION,ELECTRICITY,D400,ELECTRICITY,HOUSING SERVICES,UTILITIES
http://statistics.data.gov.uk/id/local-authority/43UM,WOKING BOROUGH COUNCIL,30/04/2022,08/06/2022,0000478260/264,OPUS ENERGY LIMITED,40311700,12.64,HOUSING SERVICES - TEMPORARY ACCOMMODATION,CLIMATE CHANGE LEVY,D430,CLIMATE CHANGE LEVY,HOUSING SERVICES,UTILITIES
http://statistics.data.gov.uk/id/local-authority/43UM,WOKING BOROUGH COUNCIL,30/04/2022,08/06/2022,0000478260/056,OPUS ENERGY LIMITED,40311700,68.84,NEIGHBOURHOOD SERVICES - PARKS-GENERAL,ELECTRICITY,D400,ELECTRICITY,NEIGHBOURHOOD SERVICES,UTILITIES
http://statistics.data.gov.uk/id/local-authority/43UM,WOKING BOROUGH COUNCIL,30/04/2022,08/06/2022,0000478260/164,OPUS ENERGY LIMITED,40311700,7.72,NEIGHBOURHOOD SERVICES - PARKS-GENERAL,ELECTRICITY,D400,ELECTRICITY,NEIGHBOURHOOD SERVICES,UTILITIES
http://statistics.data.gov.uk/id/local-authority/43UM,WOKING BOROUGH COUNCIL,30/04/2022,08/06/2022,0000478260/166,OPUS ENERGY LIMITED,40311700,10.45,NEIGHBOURHOOD SERVICES - PARKS-GENERAL,ELECTRICITY,D400,ELECTRICITY,NEIGHBOURHOOD SERVICES,UTILITIES
http://statistics.data.gov.uk/id/local-authority/43UM,WOKING BOROUGH COUNCIL,30/04/2022,08/06/2022,0000478260/185,OPUS ENERGY LIMITED,40311700,53.94,NEIGHBOURHOOD SERVICES - PARKS-GENERAL,ELECTRICITY,D400,ELECTRICITY,NEIGHBOURHOOD SERVICES,UTILITIES
http://statistics.data.gov.uk/id/local-authority/43UM,WOKING BOROUGH COUNCIL,30/04/2022,08/06/2022,0000478260/218,OPUS ENERGY LIMITED,40311700,92.13,NEIGHBOURHOOD SERVICES - PARKS-GENERAL,ELECTRICITY,D400,ELECTRICITY,NEIGHBOURHOOD SERVICES,UTILITIES
http://statistics.data.gov.uk/id/local-authority/43UM,WOKING BOROUGH COUNCIL,30/04/2022,08/06/2022,0000478260/165,OPUS ENERGY LIMITED,40311700,108.92,NEIGHBOURHOOD SERVICES - MUSLIM BURIAL GRND PEACE GARDE,ELECTRICITY,D400,ELECTRICITY,NEIGHBOURHOOD SERVICES,UTILITIES
http://statistics.data.gov.uk/id/local-authority/43UM,WOKING BOROUGH COUNCIL,30/04/2022,08/06/2022,0000478260/193,OPUS ENERGY LIMITED,40311700,643.50,NEIGHBOURHOOD SERVICES - HEATHSIDE CRESCENT,ELECTRICITY,D400,ELECTRICITY,NEIGHBOURHOOD SERVICES,UTILITIES
http://statistics.data.gov.uk/id/local-authority/43UM,WOKING BOROUGH COUNCIL,30/04/2022,08/06/2022,0000478260/194,OPUS ENERGY LIMITED,40311700,36.43,NEIGHBOURHOOD SERVICES - HEATHSIDE CRESCENT,CLIMATE CHANGE LEVY,D430,CLIMATE CHANGE LEVY,NEIGHBOURHOOD SERVICES,UTILITIES
http://statistics.data.gov.uk/id/local-authority/43UM,WOKING BOROUGH COUNCIL,30/04/2022,08/06/2022,0000478260/001,OPUS ENERGY LIMITED,40311700,81.00,ASSET MANAGEMENT - PUBLIC CONVENIENCES,ELECTRICITY,D400,ELECTRICITY,ASSET MANAGEMENT,UTILITIES
http://statistics.data.gov.uk/id/local-authority/43UM,WOKING BOROUGH COUNCIL,30/04/2022,08/06/2022,0000478260/014,OPUS ENERGY LIMITED,40311700,67.29,ASSET MANAGEMENT - PUBLIC CONVENIENCES,ELECTRICITY,D400,ELECTRICITY,ASSET MANAGEMENT,UTILITIES
http://statistics.data.gov.uk/id/local-authority/43UM,WOKING BOROUGH COUNCIL,30/04/2022,08/06/2022,0000478260/145,OPUS ENERGY LIMITED,40311700,45.30,ASSET MANAGEMENT - PUBLIC CONVENIENCES,ELECTRICITY,D400,ELECTRICITY,ASSET MANAGEMENT,UTILITIES
http://statistics.data.gov.uk/id/local-authority/43UM,WOKING BOROUGH COUNCIL,30/04/2022,08/06/2022,0000478260/146,OPUS ENERGY LIMITED,40311700,152.33,ASSET MANAGEMENT - PUBLIC CONVENIENCES,ELECTRICITY,D400,ELECTRICITY,ASSET MANAGEMENT,UTILITIES
http://statistics.data.gov.uk/id/local-authority/43UM,WOKING BOROUGH COUNCIL,30/04/2022,08/06/2022,0000478260/211,OPUS ENERGY LIMITED,40311700,146.33,ASSET MANAGEMENT - PUBLIC CONVENIENCES,ELECTRICITY,D400,ELECTRICITY,ASSET MANAGEMENT,UTILITIES
http://statistics.data.gov.uk/id/local-authority/43UM,WOKING BOROUGH COUNCIL,30/04/2022,08/06/2022,0000478260/217,OPUS ENERGY LIMITED,40311700,107.84,ASSET MANAGEMENT - PUBLIC CONVENIENCES,ELECTRICITY,D400,ELECTRICITY,ASSET MANAGEMENT,UTILITIES
http://statistics.data.gov.uk/id/local-authority/43UM,WOKING BOROUGH COUNCIL,30/04/2022,08/06/2022,0000478260/241,OPUS ENERGY LIMITED,40311700,26.44,ASSET MANAGEMENT - PUBLIC CONVENIENCES,ELECTRICITY,D400,ELECTRICITY,ASSET MANAGEMENT,UTILITIES
http://statistics.data.gov.uk/id/local-authority/43UM,WOKING BOROUGH COUNCIL,30/04/2022,08/06/2022,0000478260/245,OPUS ENERGY LIMITED,40311700,45.36,ASSET MANAGEMENT - PUBLIC CONVENIENCES,ELECTRICITY,D400,ELECTRICITY,ASSET MANAGEMENT,UTILITIES
http://statistics.data.gov.uk/id/local-authority/43UM,WOKING BOROUGH COUNCIL,30/04/2022,08/06/2022,0000478260/147,OPUS ENERGY LIMITED,40311700,8.15,ASSET MANAGEMENT - PUBLIC CONVENIENCES,CLIMATE CHANGE LEVY,D430,CLIMATE CHANGE LEVY,ASSET MANAGEMENT,UTILITIES
http://statistics.data.gov.uk/id/local-authority/43UM,WOKING BOROUGH COUNCIL,30/04/2022,08/06/2022,0000478260/212,OPUS ENERGY LIMITED,40311700,7.90,ASSET MANAGEMENT - PUBLIC CONVENIENCES,CLIMATE CHANGE LEVY,D430,CLIMATE CHANGE LEVY,ASSET MANAGEMENT,UTILITIES
http://statistics.data.gov.uk/id/local-authority/43UM,WOKING BOROUGH COUNCIL,30/04/2022,08/06/2022,0000478260/236,OPUS ENERGY LIMITED,40311700,8.64,NEIGHBOURHOOD SERVICES - COUNTRYSIDE SERVICES - GENERAL,CLIMATE CHANGE LEVY,D430,CLIMATE CHANGE LEVY,NEIGHBOURHOOD SERVICES,UTILITIES
http://statistics.data.gov.uk/id/local-authority/43UM,WOKING BOROUGH COUNCIL,30/04/2022,08/06/2022,0000478260/234,OPUS ENERGY LIMITED,40311700,"9,513.50",LEISURE SERVICES - SHEERWATER LEISURE CENTRE,UTILITIES,Q506,UTILITIES,LEISURE SERVICES,UTILITIES
http://statistics.data.gov.uk/id/local-authority/43UM,WOKING BOROUGH COUNCIL,30/04/2022,08/06/2022,0000478260/235,OPUS ENERGY LIMITED,40311700,482.10,LEISURE SERVICES - SHEERWATER LEISURE CENTRE,UTILITIES,Q506,UTILITIES,LEISURE SERVICES,UTILITIES
http://statistics.data.gov.uk/id/local-authority/43UM,WOKING BOROUGH COUNCIL,23/05/2022,08/06/2022,0000478266/001,OYEZ PROFESSIONAL SERVICES LTD,40927700,640.24,CORPORATE STRATEGY - LEGAL,BOOKS MAPS PLANS,G650,BOOKS MAPS PLANS,CORPORATE STRATEGY,FINANCIAL SERVICES
http://statistics.data.gov.uk/id/local-authority/43UM,WOKING BOROUGH COUNCIL,25/05/2022,08/06/2022,0000478362/001,OYSTER PARTNERSHIP,40443300,"1,877.01",PLANNING SERVICES - DEVELOPMENT CONTROL,TEMPORARY STAFF,A110,TEMPORARY STAFF,PLANNING SERVICES,HUMAN RESOURCES
http://statistics.data.gov.uk/id/local-authority/43UM,WOKING BOROUGH COUNCIL,31/05/2022,08/06/2022,0000478426/001,OYSTER PARTNERSHIP,40443300,"1,898.10",PLANNING SERVICES - DEVELOPMENT CONTROL,TEMPORARY STAFF,A110,TEMPORARY STAFF,PLANNING SERVICES,HUMAN RESOURCES
http://statistics.data.gov.uk/id/local-authority/43UM,WOKING BOROUGH COUNCIL,24/05/2022,08/06/2022,0000478222/001,PARKINSONS UK,40748100,800.00,CORPORATE STRATEGY - GRANTS TO ORGANISATION,GRANTS,H100,GRANTS,CORPORATE STRATEGY,FINANCIAL SERVICES
http://statistics.data.gov.uk/id/local-authority/43UM,WOKING BOROUGH COUNCIL,31/05/2022,08/06/2022,0000478363/001,PENNA PLC,40087400,"3,750.00",CORPORATE MANAGEMENT GROUP - STAFF TRAINING/GENERAL COSTS,WEB DESIGN,G199,WEB DESIGN,CORPORATE MANAGEMENT GROUP,HUMAN RESOURCES
http://statistics.data.gov.uk/id/local-authority/43UM,WOKING BOROUGH COUNCIL,31/05/2022,08/06/2022,0000478435/001,PENNA PLC,40087400,749.00,CORPORATE MANAGEMENT GROUP - STAFF TRAINING/GENERAL COSTS,WEB DESIGN,G199,WEB DESIGN,CORPORATE MANAGEMENT GROUP,HUMAN RESOURCES
http://statistics.data.gov.uk/id/local-authority/43UM,WOKING BOROUGH COUNCIL,31/05/2022,08/06/2022,0000478436/001,PENNA PLC,40087400,"6,550.00",CORPORATE MANAGEMENT GROUP - STAFF TRAINING/GENERAL COSTS,WEB DESIGN,G199,WEB DESIGN,CORPORATE MANAGEMENT GROUP,HUMAN RESOURCES
http://statistics.data.gov.uk/id/local-authority/43UM,WOKING BOROUGH COUNCIL,30/05/2022,08/06/2022,0000478293/001,PEOPLESAFE,40472000,"1,296.00",HOUSING SERVICES - HOUSING SERVICES GENERAL EXPEN,EQUIPMENT,G100,EQUIPMENT,HOUSING SERVICES,HEALTH & SAFETY
http://statistics.data.gov.uk/id/local-authority/43UM,WOKING BOROUGH COUNCIL,25/05/2022,08/06/2022,0000478309/001,PONNAIAH PATHMANATHAN,40739200,136.00,CORPORATE STRATEGY - WAVS,INTERPRETATION & TRANSLATION,H636,INTERPRETATION & TRANSLATION,CORPORATE STRATEGY,FINANCIAL SERVICES
http://statistics.data.gov.uk/id/local-authority/43UM,WOKING BOROUGH COUNCIL,19/05/2022,08/06/2022,0000478311/001,PONNAIAH PATHMANATHAN,40739200,65.04,CORPORATE STRATEGY - WAVS,INTERPRETATION & TRANSLATION,H636,INTERPRETATION & TRANSLATION,CORPORATE STRATEGY,FINANCIAL SERVICES
http://statistics.data.gov.uk/id/local-authority/43UM,WOKING BOROUGH COUNCIL,23/05/2022,08/06/2022,0000478116/001,POZITIVE ENERGY,40980200,241.54,ASSET MANAGEMENT - WOLSEY PLACE,ELECTRICITY,D400,ELECTRICITY,ASSET MANAGEMENT,UTILITIES
http://statistics.data.gov.uk/id/local-authority/43UM,WOKING BOROUGH COUNCIL,04/03/2022,08/06/2022,0000478117/001,POZITIVE ENERGY,40980200,278.92,ASSET MANAGEMENT - WOLSEY PLACE,ELECTRICITY,D400,ELECTRICITY,ASSET MANAGEMENT,UTILITIES
http://statistics.data.gov.uk/id/local-authority/43UM,WOKING BOROUGH COUNCIL,08/06/2022,08/06/2022,GPC/00019400,PREMIER INN 44537135,PROCUREMENT CARD,311.67,HOUSING SERVICES - HOUSING OPTIONS,BED & BREAKFAST EXPENDITURE,H786,BED AND BREAKFAST,ANGELLA KENTARO,PREMIER INN
http://statistics.data.gov.uk/id/local-authority/43UM,WOKING BOROUGH COUNCIL,08/06/2022,08/06/2022,GPC/00019365,PRIME VIDEO*2C3HK6NH4,PROCUREMENT CARD,2.91,FINANCIAL SERVICES - BROCKHILL SOCIAL FUND,MISCELLANEOUS EXPENSES,X827,MOVIE NIGHT BROCKHILL,MRS M CHILCOTT,RECORD SHOPS
http://statistics.data.gov.uk/id/local-authority/43UM,WOKING BOROUGH COUNCIL,23/05/2022,08/06/2022,0000478202/001,PROJECT114 LTD,40370300,"9,220.00",HOUSING SERVICES - HOUSING OPTIONS,BED & BREAKFAST EXPENDITURE,H786,BED & BREAKFAST EXPENDITURE,HOUSING SERVICES,HOUSING MANAGEMENT
http://statistics.data.gov.uk/id/local-authority/43UM,WOKING BOROUGH COUNCIL,23/05/2022,08/06/2022,0000478203/001,PROJECT114 LTD,40370300,980.00,HOUSING SERVICES - HOUSING OPTIONS,BED & BREAKFAST EXPENDITURE,H786,BED & BREAKFAST EXPENDITURE,HOUSING SERVICES,HOUSING MANAGEMENT
http://statistics.data.gov.uk/id/local-authority/43UM,WOKING BOROUGH COUNCIL,30/05/2022,08/06/2022,0000478325/001,PROJECT114 LTD,40370300,930.00,HOUSING SERVICES - HOUSING OPTIONS,BED & BREAKFAST EXPENDITURE,H786,BED & BREAKFAST EXPENDITURE,HOUSING SERVICES,HOUSING MANAGEMENT
http://statistics.data.gov.uk/id/local-authority/43UM,WOKING BOROUGH COUNCIL,30/05/2022,08/06/2022,0000478326/001,PROJECT114 LTD,40370300,"9,380.00",HOUSING SERVICES - HOUSING OPTIONS,BED & BREAKFAST EXPENDITURE,H786,BED & BREAKFAST EXPENDITURE,HOUSING SERVICES,HOUSING MANAGEMENT
http://statistics.data.gov.uk/id/local-authority/43UM,WOKING BOROUGH COUNCIL,30/05/2022,08/06/2022,0000478307/001,QIUFU HURLEY,40912900,36.06,CORPORATE STRATEGY - WAVS,INTERPRETATION & TRANSLATION,H636,INTERPRETATION & TRANSLATION,CORPORATE STRATEGY,FINANCIAL SERVICES
http://statistics.data.gov.uk/id/local-authority/43UM,WOKING BOROUGH COUNCIL,20/05/2022,08/06/2022,0000478308/001,QIUFU HURLEY,40912900,36.06,CORPORATE STRATEGY - WAVS,INTERPRETATION & TRANSLATION,H636,INTERPRETATION & TRANSLATION,CORPORATE STRATEGY,FINANCIAL SERVICES
http://statistics.data.gov.uk/id/local-authority/43UM,WOKING BOROUGH COUNCIL,21/05/2022,08/06/2022,0000478239/001,R & A PLUMBING & HEATING,40457200,"7,689.20",HOUSING SERVICES - DISABLED FACILITIES GRANTS,MANDATORY GRANTS,Q712,MANDATORY GRANTS,HOUSING SERVICES,FINANCIAL SERVICES
http://statistics.data.gov.uk/id/local-authority/43UM,WOKING BOROUGH COUNCIL,08/06/2022,08/06/2022,GPC/00019364,RINGGO PARKING,PROCUREMENT CARD,3.16,HOUSING SERVICES - HOMELINK,TRAVEL EXPENSES-OFFICERS,F600,CAR PARKING CARERS EVENT ST PETERS,HELEN KEMPSELL,AUTO PARKING LOTS/GARAGES
http://statistics.data.gov.uk/id/local-authority/43UM,WOKING BOROUGH COUNCIL,08/06/2022,08/06/2022,GPC/00019372,RINGGO PARKING,PROCUREMENT CARD,2.33,HOUSING SERVICES - HOMELINK,TRAVEL EXPENSES-OFFICERS,F600,PARKING ST PETERS HOSPITAL,GARY CORDERY,AUTO PARKING LOTS/GARAGES
http://statistics.data.gov.uk/id/local-authority/43UM,WOKING BOROUGH COUNCIL,19/05/2022,08/06/2022,0000478137/001,ROYAL MAIL GROUP LTD,00040000,360.00,CORPORATE STRATEGY - POSTAGE,POSTAGE - REPLY PAID,G710,POSTAGE - REPLY PAID,CORPORATE STRATEGY,MAIL SERVICES
http://statistics.data.gov.uk/id/local-authority/43UM,WOKING BOROUGH COUNCIL,01/06/2022,08/06/2022,0000478437/001,SECURE RECOGNITION LIMITED,40858700,104.00,ASSET MANAGEMENT - CIVIC OFFICES,CONSUMABLES,G630,CONSUMABLES,ASSET MANAGEMENT,FACILITIES & MANAGEMENT SERVICES
http://statistics.data.gov.uk/id/local-authority/43UM,WOKING BOROUGH COUNCIL,27/05/2022,08/06/2022,0000478256/001,SERCO LIMITED,01380600,535.15,ASSET MANAGEMENT - UNIT 15A MON WAY EAST,R&M BUILDINGS - CONTRACTORS,D100,R&M BUILDINGS - CONTRACTORS,ASSET MANAGEMENT,CLEANING & JANITORIAL
http://statistics.data.gov.uk/id/local-authority/43UM,WOKING BOROUGH COUNCIL,08/06/2022,08/06/2022,GPC/00019371,SGN CONNECTIONS,PROCUREMENT CARD,799.00,HOUSING SERVICES - PRIVATE SECTOR LEASING SCHEME,SCHED 1B VOIDS,D166,GAS METER MOVE BY SGN,CLARE HADLEY,HOUSEHOLD APPLIANCE STORES
http://statistics.data.gov.uk/id/local-authority/43UM,WOKING BOROUGH COUNCIL,25/05/2022,08/06/2022,0000478213/001,SICO EUROPE LIMITED,01068800,204.00,INDEPENDENT LIVING SERVICES - THE VYNE,FIXTURES & FITTINGS - NEW,D800,FIXTURES & FITTINGS - NEW,INDEPENDENT LIVING SERVICES,FURNITURE & SOFT FURNISHINGS
http://statistics.data.gov.uk/id/local-authority/43UM,WOKING BOROUGH COUNCIL,30/05/2022,08/06/2022,0000478320/001,SIU WAN THOMAS,00520200,206.50,CORPORATE STRATEGY - WAVS,INTERPRETATION & TRANSLATION,H636,INTERPRETATION & TRANSLATION,CORPORATE STRATEGY,CONSULTANCY
http://statistics.data.gov.uk/id/local-authority/43UM,WOKING BOROUGH COUNCIL,08/06/2022,08/06/2022,GPC/00019397,SPORTSDIRECT.COM,PROCUREMENT CARD,103.96,NEIGHBOURHOOD SERVICES - SPORTS DEVELOPMENT,COACH EDUCATION,H657,24 PAIRS GOGGLES FOR SURREY YOUTH GAMES,ROSE E L BLACKLEY,SPORTS/RIDING APPAREL STORE
http://statistics.data.gov.uk/id/local-authority/43UM,WOKING BOROUGH COUNCIL,24/05/2022,08/06/2022,0000478415/001,SQUARE LEMON TRAINING COMPANY LTD,40810900,410.00,CORPORATE STRATEGY - VOLUNTARY DEVELOPMENT,TRAINING,H465,TRAINING,CORPORATE STRATEGY,FINANCIAL SERVICES
http://statistics.data.gov.uk/id/local-authority/43UM,WOKING BOROUGH COUNCIL,21/04/2022,08/06/2022,0000477098/001,SSE PLC,40619300,208.19,HOUSING SERVICES - LANDLORDS EXPENSES,ELECTRICITY,D400,ELECTRICITY,HOUSING SERVICES,UTILITIES
http://statistics.data.gov.uk/id/local-authority/43UM,WOKING BOROUGH COUNCIL,28/04/2022,08/06/2022,0000477420/001,SSE PLC,40619300,117.77,HOUSING SERVICES - LANDLORDS EXPENSES,ELECTRICITY,D400,ELECTRICITY,HOUSING SERVICES,UTILITIES
http://statistics.data.gov.uk/id/local-authority/43UM,WOKING BOROUGH COUNCIL,03/05/2022,08/06/2022,0000477512/001,SSE PLC,40619300,295.56,HOUSING SERVICES - LANDLORDS EXPENSES,GAS,D420,GAS,HOUSING SERVICES,UTILITIES
http://statistics.data.gov.uk/id/local-authority/43UM,WOKING BOROUGH COUNCIL,26/04/2022,08/06/2022,0000478297/001,SSE PLC,40619300,42.67,HOUSING SERVICES - LANDLORDS EXPENSES,GAS,D420,GAS,HOUSING SERVICES,UTILITIES
http://statistics.data.gov.uk/id/local-authority/43UM,WOKING BOROUGH COUNCIL,31/05/2022,08/06/2022,0000478329/002,STC ENERGY MANAGEMENT LIMITED,40614500,75.01,INFORMATION TECHNOLOGY - CORPORATE MANAGEMENT-COMMERCIAL,ENERGY BUREAU SERVICE,H489,ENERGY BUREAU SERVICE,INFORMATION TECHNOLOGY,UTILITIES
http://statistics.data.gov.uk/id/local-authority/43UM,WOKING BOROUGH COUNCIL,31/05/2022,08/06/2022,0000478329/001,STC ENERGY MANAGEMENT LIMITED,40614500,675.07,HOUSING SERVICES - ENERGY,ENERGY BUREAU SERVICE,H489,ENERGY BUREAU SERVICE,HOUSING SERVICES,UTILITIES
http://statistics.data.gov.uk/id/local-authority/43UM,WOKING BOROUGH COUNCIL,31/05/2022,08/06/2022,0000478390/001,SURREY FIRE & SAFETY LTD,41015600,"5,417.00",HOUSING SERVICES - STATUTORU HRA,HRA STATUTORY,D116,HRA STATUTORY,HOUSING SERVICES,HEALTH & SAFETY
http://statistics.data.gov.uk/id/local-authority/43UM,WOKING BOROUGH COUNCIL,01/06/2022,08/06/2022,0000478352/001,SUTTON GREEN VILLAGE HALL,00183600,197.50,CORPORATE STRATEGY - BOROUGH ELECTIONS,POLLING STATION HIRE,D506,POLLING STATION HIRE,CORPORATE STRATEGY,FACILITIES & MANAGEMENT SERVICES
http://statistics.data.gov.uk/id/local-authority/43UM,WOKING BOROUGH COUNCIL,25/05/2022,08/06/2022,0000478164/001,THAMESWEY ENERGY LIMITED,01142300,"1,929.03",INDEPENDENT LIVING SERVICES - ST MARY'S DAY CENTRE,TEL GAS/HEATING,D481,TEL GAS/HEATING,INDEPENDENT LIVING SERVICES,UTILITIES
http://statistics.data.gov.uk/id/local-authority/43UM,WOKING BOROUGH COUNCIL,25/05/2022,08/06/2022,0000478164/002,THAMESWEY ENERGY LIMITED,01142300,"1,929.04",HOUSING SERVICES - ENERGY,TEL GAS/HEATING,D481,TEL GAS/HEATING,HOUSING SERVICES,UTILITIES
http://statistics.data.gov.uk/id/local-authority/43UM,WOKING BOROUGH COUNCIL,21/04/2022,08/06/2022,0000477051/001,THAMESWEY ENERGY LIMITED,01142300,"25,955.49",HOUSING SERVICES - LANDLORDS EXPENSES,TEL ELECTRICITY,D480,TEL ELECTRICITY,HOUSING SERVICES,UTILITIES
http://statistics.data.gov.uk/id/local-authority/43UM,WOKING BOROUGH COUNCIL,08/06/2022,08/06/2022,GPC/00019370,THE HAVEN CAFE AT MOORCR,PROCUREMENT CARD,10.08,INDEPENDENT LIVING SERVICES - YOUTH DEVELOPMENT,GRANTS,H100,MEETING YOUTH,RICHARD BUCKENHAM,FAST FOOD RESTAURANTS
http://statistics.data.gov.uk/id/local-authority/43UM,WOKING BOROUGH COUNCIL,29/05/2022,08/06/2022,0000478281/001,TRUSTEES OF B F S LONG TRUST,40482300,"18,671.50",ASSET MANAGEMENT - PLOT 12 MON WAY EAST,RENTS PAYABLE,D500,RENTS PAYABLE,ASSET MANAGEMENT,FINANCIAL SERVICES
http://statistics.data.gov.uk/id/local-authority/43UM,WOKING BOROUGH COUNCIL,31/05/2022,08/06/2022,0000478346/001,TUNSTALL HEALTHCARE (UK) LTD,00019000,604.00,INDEPENDENT LIVING SERVICES - COMMUNITY ALARMS-GF,EQUIPMENT,G100,EQUIPMENT,INDEPENDENT LIVING SERVICES,HEALTHCARE
http://statistics.data.gov.uk/id/local-authority/43UM,WOKING BOROUGH COUNCIL,21/03/2022,08/06/2022,0000477928/001,TUNSTALL HEALTHCARE (UK) LTD,00019000,"2,010.99",HOUSING SERVICES - DISABLED FACILITIES GRANTS,DISCRETIONARY GRANTS,Q713,DISCRETIONARY GRANTS,HOUSING SERVICES,HEALTHCARE
http://statistics.data.gov.uk/id/local-authority/43UM,WOKING BOROUGH COUNCIL,15/05/2022,08/06/2022,0000478070/001,UNITY RECRUITMENT LTD,40160500,"2,156.01",NEIGHBOURHOOD SERVICES - PARKING SERVICES,TEMPORARY STAFF,A110,TEMPORARY STAFF,NEIGHBOURHOOD SERVICES,HUMAN RESOURCES
http://statistics.data.gov.uk/id/local-authority/43UM,WOKING BOROUGH COUNCIL,22/05/2022,08/06/2022,0000478191/001,UNITY RECRUITMENT LTD,40160500,"2,444.75",NEIGHBOURHOOD SERVICES - PARKING SERVICES,TEMPORARY STAFF,A110,TEMPORARY STAFF,NEIGHBOURHOOD SERVICES,HUMAN RESOURCES
http://statistics.data.gov.uk/id/local-authority/43UM,WOKING BOROUGH COUNCIL,29/05/2022,08/06/2022,0000478348/001,UNITY RECRUITMENT LTD,40160500,"2,045.32",NEIGHBOURHOOD SERVICES - PARKING SERVICES,TEMPORARY STAFF,A110,TEMPORARY STAFF,NEIGHBOURHOOD SERVICES,HUMAN RESOURCES
http://statistics.data.gov.uk/id/local-authority/43UM,WOKING BOROUGH COUNCIL,25/05/2022,08/06/2022,0000478417/001,VENN GROUP LIMITED,40383900,484.20,REVENUES AND BENEFITS - BENEFIT SERVICES,TEMPORARY STAFF,A110,TEMPORARY STAFF,REVENUES AND BENEFITS,HUMAN RESOURCES
http://statistics.data.gov.uk/id/local-authority/43UM,WOKING BOROUGH COUNCIL,12/04/2022,08/06/2022,0000478324/001,VIC GILDER,41023800,90.00,FINANCIAL SERVICES - BROCKHILL SOCIAL FUND,MISCELLANEOUS EXPENSES,X827,MISCELLANEOUS EXPENSES,FINANCIAL SERVICES,ARTS & LEISURE SERVICES
http://statistics.data.gov.uk/id/local-authority/43UM,WOKING BOROUGH COUNCIL,30/05/2022,08/06/2022,0000478340/001,VIVID RESOURCING,40463200,"1,258.00",HOUSING SERVICES - HOUSING NEEDS & ALLOCATIONS,TEMPORARY STAFF,A110,TEMPORARY STAFF,HOUSING SERVICES,HUMAN RESOURCES
http://statistics.data.gov.uk/id/local-authority/43UM,WOKING BOROUGH COUNCIL,30/05/2022,08/06/2022,0000478339/001,VIVID RESOURCING,40463200,"1,940.82",PLANNING SERVICES - DEVELOPMENT CONTROL,TEMPORARY STAFF,A110,TEMPORARY STAFF,PLANNING SERVICES,HUMAN RESOURCES
http://statistics.data.gov.uk/id/local-authority/43UM,WOKING BOROUGH COUNCIL,26/05/2022,08/06/2022,0000478271/001,WATERMAN INFRASTRUCTURE & ENVIRONMENT LT,40835200,"6,070.00",ASSET MANAGEMENT - HIF WTC WAVERLEY COURT GEENEERAL,SURVEYS,Q280,SURVEYS,ASSET MANAGEMENT,CONSULTANCY
http://statistics.data.gov.uk/id/local-authority/43UM,WOKING BOROUGH COUNCIL,25/05/2022,08/06/2022,0000478341/001,WERONIKA KLAPTOCZ,40669000,130.60,CORPORATE STRATEGY - WAVS,INTERPRETATION & TRANSLATION,H636,INTERPRETATION & TRANSLATION,CORPORATE STRATEGY,CONSULTANCY
http://statistics.data.gov.uk/id/local-authority/43UM,WOKING BOROUGH COUNCIL,16/05/2022,08/06/2022,0000478219/001,WETDEC UK LTD,40579900,"9,026.64",HOUSING SERVICES - DISABLED FACILITIES GRANTS,MANDATORY GRANTS,Q712,MANDATORY GRANTS,HOUSING SERVICES,BUILDING CONSTRUCTION MATERIALS
http://statistics.data.gov.uk/id/local-authority/43UM,WOKING BOROUGH COUNCIL,22/05/2022,08/06/2022,0000478026/001,WHISTL UK LIMITED,00367900,122.60,CORPORATE STRATEGY - POSTAGE,POSTAGE - STANDARD TARIFF,G700,POSTAGE - STANDARD TARIFF,CORPORATE STRATEGY,MAIL SERVICES
http://statistics.data.gov.uk/id/local-authority/43UM,WOKING BOROUGH COUNCIL,22/05/2022,08/06/2022,0000478027/001,WHISTL UK LIMITED,00367900,"1,638.13",CORPORATE STRATEGY - POSTAGE,POSTAGE - STANDARD TARIFF,G700,POSTAGE - STANDARD TARIFF,CORPORATE STRATEGY,MAIL SERVICES
http://statistics.data.gov.uk/id/local-authority/43UM,WOKING BOROUGH COUNCIL,29/05/2022,08/06/2022,0000478289/001,WHISTL UK LIMITED,00367900,83.03,CORPORATE STRATEGY - POSTAGE,POSTAGE - STANDARD TARIFF,G700,POSTAGE - STANDARD TARIFF,CORPORATE STRATEGY,MAIL SERVICES
http://statistics.data.gov.uk/id/local-authority/43UM,WOKING BOROUGH COUNCIL,29/05/2022,08/06/2022,0000478290/001,WHISTL UK LIMITED,00367900,"1,990.17",CORPORATE STRATEGY - POSTAGE,POSTAGE - STANDARD TARIFF,G700,POSTAGE - STANDARD TARIFF,CORPORATE STRATEGY,MAIL SERVICES
http://statistics.data.gov.uk/id/local-authority/43UM,WOKING BOROUGH COUNCIL,31/05/2022,08/06/2022,0000478391/001,WICKES LTD,40736900,535.50,HOUSING SERVICES - STATUTORU HRA,HRA STATUTORY,D116,HRA STATUTORY,HOUSING SERVICES,FINANCIAL SERVICES
http://statistics.data.gov.uk/id/local-authority/43UM,WOKING BOROUGH COUNCIL,31/05/2022,08/06/2022,0000478365/001,WIGHTMAN & PARRISH LTD,40474600,54.00,INDEPENDENT LIVING SERVICES - PARKVIEW,CLEANING MATERIALS,D920,CLEANING MATERIALS,INDEPENDENT LIVING SERVICES,CLEANING & JANITORIAL
http://statistics.data.gov.uk/id/local-authority/43UM,WOKING BOROUGH COUNCIL,31/05/2022,08/06/2022,0000478365/002,WIGHTMAN & PARRISH LTD,40474600,21.60,INDEPENDENT LIVING SERVICES - PARKVIEW,CLEANING MATERIALS,D920,CLEANING MATERIALS,INDEPENDENT LIVING SERVICES,CLEANING & JANITORIAL
http://statistics.data.gov.uk/id/local-authority/43UM,WOKING BOROUGH COUNCIL,31/05/2022,08/06/2022,0000478365/003,WIGHTMAN & PARRISH LTD,40474600,48.00,INDEPENDENT LIVING SERVICES - PARKVIEW,CLEANING MATERIALS,D920,CLEANING MATERIALS,INDEPENDENT LIVING SERVICES,CLEANING & JANITORIAL
http://statistics.data.gov.uk/id/local-authority/43UM,WOKING BOROUGH COUNCIL,31/05/2022,08/06/2022,0000478365/004,WIGHTMAN & PARRISH LTD,40474600,55.38,INDEPENDENT LIVING SERVICES - PARKVIEW,CLEANING MATERIALS,D920,CLEANING MATERIALS,INDEPENDENT LIVING SERVICES,CLEANING & JANITORIAL
http://statistics.data.gov.uk/id/local-authority/43UM,WOKING BOROUGH COUNCIL,31/05/2022,08/06/2022,0000478365/005,WIGHTMAN & PARRISH LTD,40474600,109.38,INDEPENDENT LIVING SERVICES - PARKVIEW,CLEANING MATERIALS,D920,CLEANING MATERIALS,INDEPENDENT LIVING SERVICES,CLEANING & JANITORIAL
http://statistics.data.gov.uk/id/local-authority/43UM,WOKING BOROUGH COUNCIL,31/05/2022,08/06/2022,0000478365/006,WIGHTMAN & PARRISH LTD,40474600,114.96,INDEPENDENT LIVING SERVICES - PARKVIEW,CLEANING MATERIALS,D920,CLEANING MATERIALS,INDEPENDENT LIVING SERVICES,CLEANING & JANITORIAL
http://statistics.data.gov.uk/id/local-authority/43UM,WOKING BOROUGH COUNCIL,31/05/2022,08/06/2022,0000478365/007,WIGHTMAN & PARRISH LTD,40474600,28.66,INDEPENDENT LIVING SERVICES - PARKVIEW,CLEANING MATERIALS,D920,CLEANING MATERIALS,INDEPENDENT LIVING SERVICES,CLEANING & JANITORIAL
http://statistics.data.gov.uk/id/local-authority/43UM,WOKING BOROUGH COUNCIL,31/05/2022,08/06/2022,0000478365/008,WIGHTMAN & PARRISH LTD,40474600,6.00,INDEPENDENT LIVING SERVICES - PARKVIEW,CLEANING MATERIALS,D920,CLEANING MATERIALS,INDEPENDENT LIVING SERVICES,CLEANING & JANITORIAL
http://statistics.data.gov.uk/id/local-authority/43UM,WOKING BOROUGH COUNCIL,31/05/2022,08/06/2022,0000478365/009,WIGHTMAN & PARRISH LTD,40474600,8.15,INDEPENDENT LIVING SERVICES - PARKVIEW,CLEANING MATERIALS,D920,CLEANING MATERIALS,INDEPENDENT LIVING SERVICES,CLEANING & JANITORIAL
http://statistics.data.gov.uk/id/local-authority/43UM,WOKING BOROUGH COUNCIL,31/05/2022,08/06/2022,0000478365/010,WIGHTMAN & PARRISH LTD,40474600,34.66,INDEPENDENT LIVING SERVICES - PARKVIEW,CLEANING MATERIALS,D920,CLEANING MATERIALS,INDEPENDENT LIVING SERVICES,CLEANING & JANITORIAL
http://statistics.data.gov.uk/id/local-authority/43UM,WOKING BOROUGH COUNCIL,31/05/2022,08/06/2022,0000478365/011,WIGHTMAN & PARRISH LTD,40474600,11.85,INDEPENDENT LIVING SERVICES - PARKVIEW,CLEANING MATERIALS,D920,CLEANING MATERIALS,INDEPENDENT LIVING SERVICES,CLEANING & JANITORIAL
http://statistics.data.gov.uk/id/local-authority/43UM,WOKING BOROUGH COUNCIL,31/05/2022,08/06/2022,0000478365/012,WIGHTMAN & PARRISH LTD,40474600,24.50,INDEPENDENT LIVING SERVICES - PARKVIEW,CLEANING MATERIALS,D920,CLEANING MATERIALS,INDEPENDENT LIVING SERVICES,CLEANING & JANITORIAL
http://statistics.data.gov.uk/id/local-authority/43UM,WOKING BOROUGH COUNCIL,26/05/2022,08/06/2022,0000478161/001,WOKING CHAMBER OF COMMERCE,01907100,12.50,CORPORATE STRATEGY - TOWN CENTRE FORUM,ECDEV BUSINESS ENGAGEMENT,H411,ECDEV BUSINESS ENGAGEMENT,CORPORATE STRATEGY,FACILITIES & MANAGEMENT SERVICES
http://statistics.data.gov.uk/id/local-authority/43UM,WOKING BOROUGH COUNCIL,23/05/2022,08/06/2022,0000478107/001,WOKING TALKING NEWSPAPER,41030600,126.98,CORPORATE STRATEGY - GRANTS TO ORGANISATION,GRANTS,H100,GRANTS,CORPORATE STRATEGY,LEGAL SERVICES
http://statistics.data.gov.uk/id/local-authority/43UM,WOKING BOROUGH COUNCIL,08/06/2022,08/06/2022,GPC/00019369,WWW.SCREWFIX.COM,PROCUREMENT CARD,22.81,CORPORATE STRATEGY - LEISURE MANAGEMENT CONTRACT,R&M BUILDINGS - CONTRACTORS,D100,MATERIALS FOR WORKS AT WOKING LEISURE CENTRE,MR D JONES,LUMBER/BUILD SUPPLY STORES
http://statistics.data.gov.uk/id/local-authority/43UM,WOKING BOROUGH COUNCIL,09/06/2022,09/06/2022,GPC/00019375,AMAZON.CO.UK,PROCUREMENT CARD,24.85,LEISURE SERVICES - SHEERWATER LEISURE CENTRE,R&M BUILDINGS - CONTRACTORS,D100,ITEMS REQUIRED FOR EASTWOOD LEISURE CENTRE,MR D JONES,OTHER DIRECT MARKETERS
http://statistics.data.gov.uk/id/local-authority/43UM,WOKING BOROUGH COUNCIL,09/06/2022,09/06/2022,GPC/00019394,AMAZON.CO.UK,PROCUREMENT CARD,13.97,INFORMATION TECHNOLOGY - ICT GENERAL REPLACEMENT 2022/23,ADDITIONAL EQUIPMENT,Q020,LAPTOP STAND,PAUL MURPHY,OTHER DIRECT MARKETERS
http://statistics.data.gov.uk/id/local-authority/43UM,WOKING BOROUGH COUNCIL,09/06/2022,09/06/2022,GPC/00019392,AMZNMKTPLACE,PROCUREMENT CARD,48.51,INDEPENDENT LIVING SERVICES - HOME SUPPORT SERVICE,EQUIPMENT,G100,COMMUNAL SUPPLIES,JULIE COWELL,MISC SPECIALITY RETAIL
http://statistics.data.gov.uk/id/local-authority/43UM,WOKING BOROUGH COUNCIL,09/06/2022,09/06/2022,GPC/00019381,ASDA STORES 4823,PROCUREMENT CARD,14.00,INDEPENDENT LIVING SERVICES - PARKVIEW,PROVISIONS,G410,CAFE ITEMS AND CARDS,DONNA GREGORY,GROCERY STORES
http://statistics.data.gov.uk/id/local-authority/43UM,WOKING BOROUGH COUNCIL,09/06/2022,09/06/2022,GPC/00019377,ASDA STORES 4823,PROCUREMENT CARD,10.00,INDEPENDENT LIVING SERVICES - HOME SUPPORT SERVICE,EQUIPMENT,G100,STATIONERY,JULIE COWELL,GROCERY STORES
http://statistics.data.gov.uk/id/local-authority/43UM,WOKING BOROUGH COUNCIL,09/06/2022,09/06/2022,GPC/00019385,CO-OP GROUP FOOD,PROCUREMENT CARD,16.79,HOUSING SERVICES - HOUSING OPTIONS,EQUIPMENT,G100,EMERGENCY FOOD NO FOOD BANK,JANET COURTNEY,GROCERY STORES
http://statistics.data.gov.uk/id/local-authority/43UM,WOKING BOROUGH COUNCIL,09/06/2022,09/06/2022,GPC/00019399,DISCLOSURE AND BARRING,PROCUREMENT CARD,18.00,CORPORATE MANAGEMENT GROUP - STAFF TRAINING/GENERAL COSTS,CRIMINAL RECORDS BUREAU FEES,H642,BASIC DBS CHECK,MRS SARAH REED,GOV'T SERV - DEFAULT
http://statistics.data.gov.uk/id/local-authority/43UM,WOKING BOROUGH COUNCIL,09/06/2022,09/06/2022,GPC/00019398,DUKES BAR & DELI,PROCUREMENT CARD,11.33,ASSET MANAGEMENT - PROPERTY SERVICES,VALUATION SERVICES,B003,SITE MEETING TO DISCUSS TENNIS COURT PROJECT,IAN M TOMES,FAST FOOD RESTAURANTS
http://statistics.data.gov.uk/id/local-authority/43UM,WOKING BOROUGH COUNCIL,09/06/2022,09/06/2022,GPC/00019388,EDF ENERGY-ECOM,PROCUREMENT CARD,-166.67,CORPORATE STRATEGY - HOUSEHOLD SUPPORT FUND,HSF ENERGY/WATER CHILDREN,G255,REFUND FOR ENERGY BILL,KIMBERLEY MAHER,UTILITIES / ELEC/GAS/H20/SANI
http://statistics.data.gov.uk/id/local-authority/43UM,WOKING BOROUGH COUNCIL,09/06/2022,09/06/2022,GPC/00019382,GAILS WOKING,PROCUREMENT CARD,18.92,CORPORATE STRATEGY - VOLUNTARY DEVELOPMENT,CHARITY DEVELOPMENT,G118,VW MEETING,ELSPETH LEIGH ANDREWS,RESTAURANTS
http://statistics.data.gov.uk/id/local-authority/43UM,WOKING BOROUGH COUNCIL,09/06/2022,09/06/2022,GPC/00019386,MFG BEDFONT,PROCUREMENT CARD,25.01,INDEPENDENT LIVING SERVICES - MEALS ON WHEELS,PETROL,F200,LEASE CAR PETROL BEFORE RETURN,ASHLEY BOYLE,SERVICE STATIONS
http://statistics.data.gov.uk/id/local-authority/43UM,WOKING BOROUGH COUNCIL,09/06/2022,09/06/2022,GPC/00019373,RED GREEN,PROCUREMENT CARD,7.25,ASSET MANAGEMENT - CAR PARK MANAGEMENT SYSTEM,PURCHASE OF EQUIPMENT,Q510,TESTING OF WPS PAYMENT SYSTEM,IAN REYNOLDS,AUTO PARKING LOTS/GARAGES
http://statistics.data.gov.uk/id/local-authority/43UM,WOKING BOROUGH COUNCIL,09/06/2022,09/06/2022,GPC/00019389,SAINSBURYS S/MKTS,PROCUREMENT CARD,4.80,FINANCIAL SERVICES - BROCKHILL SOCIAL FUND,MISCELLANEOUS EXPENSES,X827,BALLS AND BEAN BAGS FOR ACTIVITIES,TRINA NEVILLE,GROCERY STORES
http://statistics.data.gov.uk/id/local-authority/43UM,WOKING BOROUGH COUNCIL,09/06/2022,09/06/2022,GPC/00019387,SAINSBURYS S/MKTS,PROCUREMENT CARD,11.40,NEIGHBOURHOOD SERVICES - CAR PARKS ADMIN&OPERATIONAL EX,PROVISIONS,G410,REFRESHMENTS COFFE ETC,HAYLEY HEWITT-DUTTON,GROCERY STORES
http://statistics.data.gov.uk/id/local-authority/43UM,WOKING BOROUGH COUNCIL,09/06/2022,09/06/2022,GPC/00019396,SAJ BEDS & CARPETS,PROCUREMENT CARD,187.50,HOUSING SERVICES - HOMELESSNESS DIRECTRTE FUNDING,RENT IN ADV. AFEO,H824,MARK SMITH BED,JANICE GOONERY,FLOOR COVERING STORES
http://statistics.data.gov.uk/id/local-authority/43UM,WOKING BOROUGH COUNCIL,09/06/2022,09/06/2022,GPC/00019390,SWRAILWAYSELFSERVE,PROCUREMENT CARD,10.80,CORPORATE STRATEGY - TOWN CENTRE FORUM,TRAVEL EXPENSES-OFFICERS,F600,TRAIN TICKETS,MR GLENN J THOROGOOD,PASSENGER RAILWAYS
http://statistics.data.gov.uk/id/local-authority/43UM,WOKING BOROUGH COUNCIL,09/06/2022,09/06/2022,GPC/00019391,TESCO PFS 4046,PROCUREMENT CARD,97.23,HOUSING SERVICES - HOME IMPS & BEN AGENCY,TRAVEL EXPENSES-OFFICERS,F600,FUEL FOR HP VAN,ROBERT ELDRIDGE,SERVICE STATIONS
http://statistics.data.gov.uk/id/local-authority/43UM,WOKING BOROUGH COUNCIL,09/06/2022,09/06/2022,GPC/00019376,TRAVELODGE GB0000,PROCUREMENT CARD,150.80,HOUSING SERVICES - HOUSING OPTIONS,BED & BREAKFAST EXPENDITURE,H786,VS WBC TNT - ACCOMMODATED AT REQUEST OF POLICE,CATHERINE BUTLER,TRAVELODGE
http://statistics.data.gov.uk/id/local-authority/43UM,WOKING BOROUGH COUNCIL,09/06/2022,09/06/2022,GPC/00019395,TRAVELODGE GB0000,PROCUREMENT CARD,247.47,HOUSING SERVICES - HOUSING OPTIONS,BED AND BREAKFAST,N603,TRAVELODGE BOOKING,MICHELE DIXON,TRAVELODGE
http://statistics.data.gov.uk/id/local-authority/43UM,WOKING BOROUGH COUNCIL,09/06/2022,09/06/2022,GPC/00019378,W M MORRISON STORE,PROCUREMENT CARD,50.70,FINANCIAL SERVICES - BROCKHILL SOCIAL FUND,MISCELLANEOUS EXPENSES,X827,TUCK SHOP,TRINA NEVILLE,GROCERY STORES
http://statistics.data.gov.uk/id/local-authority/43UM,WOKING BOROUGH COUNCIL,09/06/2022,09/06/2022,GPC/00019374,W M MORRISON STORE,PROCUREMENT CARD,37.46,HOUSING SERVICES - HOUSING OPTIONS,EQUIPMENT,G100,CLEANING SUPPLIES FOR OFFICE,SARAH PARSONS,GROCERY STORES
http://statistics.data.gov.uk/id/local-authority/43UM,WOKING BOROUGH COUNCIL,09/06/2022,09/06/2022,GPC/00019393,WICKES STAINES,PROCUREMENT CARD,55.90,HOUSING SERVICES - HOME IMPS & BEN AGENCY,HANDYPERSON MATERIALS,G201,HANDYPERSONS MATERIALS,JASON BALCHIN,LUMBER/BUILD SUPPLY STORES
http://statistics.data.gov.uk/id/local-authority/43UM,WOKING BOROUGH COUNCIL,09/06/2022,09/06/2022,GPC/00019384,WOKING BOROUGH COUNCIL,PROCUREMENT CARD,1.40,INDEPENDENT LIVING SERVICES - FAMILY CENTRES,PROCUREMENT CARD,H990,PARKING,NICOLA NORMAN,GOV'T SERV - DEFAULT
http://statistics.data.gov.uk/id/local-authority/43UM,WOKING BOROUGH COUNCIL,09/06/2022,09/06/2022,GPC/00019380,WWW.BANNERUK.COM,PROCUREMENT CARD,104.70,ASSET MANAGEMENT - PEACOCK WALK MARKET,EQUIPMENT,G100,10 X DEFLECTO BLACK LITERATURE HOLDERS,MOLLY DOYLE,STATIONERY/OFFICE SUPPLIES
http://statistics.data.gov.uk/id/local-authority/43UM,WOKING BOROUGH COUNCIL,09/06/2022,09/06/2022,GPC/00019379,WWW.BANNERUK.COM,PROCUREMENT CARD,2.26,ASSET MANAGEMENT - CIVIC OFFICES,STATIONERY,G620,3RD FLOOR STATIONERY CUPBOARD,MOLLY DOYLE,STATIONERY/OFFICE SUPPLIES
http://statistics.data.gov.uk/id/local-authority/43UM,WOKING BOROUGH COUNCIL,09/06/2022,09/06/2022,GPC/00019379,WWW.BANNERUK.COM,PROCUREMENT CARD,4.08,ASSET MANAGEMENT - CIVIC OFFICES,STATIONERY,G620,3RD FLOOR STATIONERY CUPBOARD,MOLLY DOYLE,STATIONERY/OFFICE SUPPLIES
http://statistics.data.gov.uk/id/local-authority/43UM,WOKING BOROUGH COUNCIL,09/06/2022,09/06/2022,GPC/00019379,WWW.BANNERUK.COM,PROCUREMENT CARD,4.75,ASSET MANAGEMENT - CIVIC OFFICES,STATIONERY,G620,3RD FLOOR STATIONERY CUPBOARD,MOLLY DOYLE,STATIONERY/OFFICE SUPPLIES
http://statistics.data.gov.uk/id/local-authority/43UM,WOKING BOROUGH COUNCIL,09/06/2022,09/06/2022,GPC/00019379,WWW.BANNERUK.COM,PROCUREMENT CARD,4.98,ASSET MANAGEMENT - CIVIC OFFICES,STATIONERY,G620,3RD FLOOR STATIONERY CUPBOARD,MOLLY DOYLE,STATIONERY/OFFICE SUPPLIES
http://statistics.data.gov.uk/id/local-authority/43UM,WOKING BOROUGH COUNCIL,09/06/2022,09/06/2022,GPC/00019379,WWW.BANNERUK.COM,PROCUREMENT CARD,5.07,ASSET MANAGEMENT - CIVIC OFFICES,STATIONERY,G620,3RD FLOOR STATIONERY CUPBOARD,MOLLY DOYLE,STATIONERY/OFFICE SUPPLIES
http://statistics.data.gov.uk/id/local-authority/43UM,WOKING BOROUGH COUNCIL,09/06/2022,09/06/2022,GPC/00019379,WWW.BANNERUK.COM,PROCUREMENT CARD,6.68,ASSET MANAGEMENT - CIVIC OFFICES,STATIONERY,G620,3RD FLOOR STATIONERY CUPBOARD,MOLLY DOYLE,STATIONERY/OFFICE SUPPLIES
http://statistics.data.gov.uk/id/local-authority/43UM,WOKING BOROUGH COUNCIL,09/06/2022,09/06/2022,GPC/00019379,WWW.BANNERUK.COM,PROCUREMENT CARD,7.05,ASSET MANAGEMENT - CIVIC OFFICES,STATIONERY,G620,3RD FLOOR STATIONERY CUPBOARD,MOLLY DOYLE,STATIONERY/OFFICE SUPPLIES
http://statistics.data.gov.uk/id/local-authority/43UM,WOKING BOROUGH COUNCIL,09/06/2022,09/06/2022,GPC/00019379,WWW.BANNERUK.COM,PROCUREMENT CARD,7.74,ASSET MANAGEMENT - CIVIC OFFICES,STATIONERY,G620,3RD FLOOR STATIONERY CUPBOARD,MOLLY DOYLE,STATIONERY/OFFICE SUPPLIES
http://statistics.data.gov.uk/id/local-authority/43UM,WOKING BOROUGH COUNCIL,09/06/2022,09/06/2022,GPC/00019379,WWW.BANNERUK.COM,PROCUREMENT CARD,11.70,ASSET MANAGEMENT - CIVIC OFFICES,STATIONERY,G620,3RD FLOOR STATIONERY CUPBOARD,MOLLY DOYLE,STATIONERY/OFFICE SUPPLIES
http://statistics.data.gov.uk/id/local-authority/43UM,WOKING BOROUGH COUNCIL,09/06/2022,09/06/2022,GPC/00019379,WWW.BANNERUK.COM,PROCUREMENT CARD,11.82,ASSET MANAGEMENT - CIVIC OFFICES,STATIONERY,G620,3RD FLOOR STATIONERY CUPBOARD,MOLLY DOYLE,STATIONERY/OFFICE SUPPLIES
http://statistics.data.gov.uk/id/local-authority/43UM,WOKING BOROUGH COUNCIL,09/06/2022,09/06/2022,GPC/00019379,WWW.BANNERUK.COM,PROCUREMENT CARD,15.06,ASSET MANAGEMENT - CIVIC OFFICES,STATIONERY,G620,3RD FLOOR STATIONERY CUPBOARD,MOLLY DOYLE,STATIONERY/OFFICE SUPPLIES
http://statistics.data.gov.uk/id/local-authority/43UM,WOKING BOROUGH COUNCIL,09/06/2022,09/06/2022,GPC/00019379,WWW.BANNERUK.COM,PROCUREMENT CARD,16.02,ASSET MANAGEMENT - CIVIC OFFICES,STATIONERY,G620,3RD FLOOR STATIONERY CUPBOARD,MOLLY DOYLE,STATIONERY/OFFICE SUPPLIES
http://statistics.data.gov.uk/id/local-authority/43UM,WOKING BOROUGH COUNCIL,09/06/2022,09/06/2022,GPC/00019379,WWW.BANNERUK.COM,PROCUREMENT CARD,17.36,ASSET MANAGEMENT - CIVIC OFFICES,STATIONERY,G620,3RD FLOOR STATIONERY CUPBOARD,MOLLY DOYLE,STATIONERY/OFFICE SUPPLIES
http://statistics.data.gov.uk/id/local-authority/43UM,WOKING BOROUGH COUNCIL,09/06/2022,09/06/2022,GPC/00019379,WWW.BANNERUK.COM,PROCUREMENT CARD,20.96,ASSET MANAGEMENT - CIVIC OFFICES,STATIONERY,G620,3RD FLOOR STATIONERY CUPBOARD,MOLLY DOYLE,STATIONERY/OFFICE SUPPLIES
http://statistics.data.gov.uk/id/local-authority/43UM,WOKING BOROUGH COUNCIL,25/05/2022,10/06/2022,0000478187/001,ALLSTAR BUSINESS SOLUTIONS LTD,01500600,179.16,INDEPENDENT LIVING SERVICES - MEALS ON WHEELS,PETROL,F200,PETROL,INDEPENDENT LIVING SERVICES,UTILITIES
http://statistics.data.gov.uk/id/local-authority/43UM,WOKING BOROUGH COUNCIL,10/06/2022,10/06/2022,GPC/00019383,AMZNMKTPLACE,PROCUREMENT CARD,7.49,INDEPENDENT LIVING SERVICES - MEALS ON WHEELS,PROVISIONS,G410,POTS FOR SALAD DRESSING FOR MOW,FAYE MCCOMBE,MISC SPECIALITY RETAIL
http://statistics.data.gov.uk/id/local-authority/43UM,WOKING BOROUGH COUNCIL,10/06/2022,10/06/2022,GPC/00019411,ARGOS LTD,PROCUREMENT CARD,54.12,HOUSING SERVICES - AFGHAN REFUGEE,PURCHASE OF FURNITURE,Q500,ARGOS PURCHASE FOR AFGHAN FAMILY,HINA ASHRAF,DISCOUNT STORES
http://statistics.data.gov.uk/id/local-authority/43UM,WOKING BOROUGH COUNCIL,10/06/2022,10/06/2022,GPC/00019410,ASDA PETROL 4823,PROCUREMENT CARD,77.48,HOUSING SERVICES - HOME IMPS & BEN AGENCY,TRAVEL EXPENSES-OFFICERS,F600,FUEL FOR HP VAN,JASON BALCHIN,SERVICE STATIONS
http://statistics.data.gov.uk/id/local-authority/43UM,WOKING BOROUGH COUNCIL,10/06/2022,10/06/2022,GPC/00019414,ASHFORD AND ST PETER}S,PROCUREMENT CARD,5.83,INDEPENDENT LIVING SERVICES - SOCIAL PRESCRIBING,EQUIPMENT,G100,BOTTLED WATER FOR INTERVIEWS,GARY CORDERY,RESTAURANTS
http://statistics.data.gov.uk/id/local-authority/43UM,WOKING BOROUGH COUNCIL,10/06/2022,10/06/2022,GPC/00019416,COLLEGE SVS STN,PROCUREMENT CARD,107.34,HOUSING SERVICES - HOME IMPS & BEN AGENCY,TRAVEL EXPENSES-OFFICERS,F600,FUEL FOR HP VAN,GARY COCKBURN,SERVICE STATIONS
http://statistics.data.gov.uk/id/local-authority/43UM,WOKING BOROUGH COUNCIL,16/05/2022,10/06/2022,0000478236/001,HM COURTS & TRIBUNALS SERVICE,40402200,94.00,CORPORATE STRATEGY - LEGAL,COURT COSTS,H620,COURT COSTS,CORPORATE STRATEGY,LEGAL SERVICES
http://statistics.data.gov.uk/id/local-authority/43UM,WOKING BOROUGH COUNCIL,30/05/2022,10/06/2022,0030003489/001,HM REVENUE AND CUSTOMS,40846800,"2,256.25",ASSET MANAGEMENT - EGLEY ROAD,OTHER CONSULTANTS,Q430,OTHER CONSULTANTS,ASSET MANAGEMENT,FINANCIAL SERVICES
http://statistics.data.gov.uk/id/local-authority/43UM,WOKING BOROUGH COUNCIL,23/05/2022,10/06/2022,0030003498/001,HMRC SHIPLEY,40960900,"7,250.00",HOUSING SERVICES - 9 SAPPHO COURT-BUY BACK,STAMP DUTIES,Q150,STAMP DUTIES,HOUSING SERVICES,FINANCIAL SERVICES
http://statistics.data.gov.uk/id/local-authority/43UM,WOKING BOROUGH COUNCIL,10/06/2022,10/06/2022,GPC/00019403,IWFM,PROCUREMENT CARD,215.83,ASSET MANAGEMENT - BUILDING SERVICES,SUBSCRIPTIONS,H110,RENEWAL OF MEMBERSHIP TO THE IWFM - DAVE RASBURN,DAVID RASBURN,MEMBER ORGANISATIONS - DEF
http://statistics.data.gov.uk/id/local-authority/43UM,WOKING BOROUGH COUNCIL,31/05/2022,10/06/2022,0030003503/001,LAND REGISTRY,00018400,347.00,CORPORATE STRATEGY - LEGAL,LAND REGISTRY FEE,H425,LAND REGISTRY FEE,CORPORATE STRATEGY,LEGAL SERVICES
http://statistics.data.gov.uk/id/local-authority/43UM,WOKING BOROUGH COUNCIL,11/05/2022,10/06/2022,0000478298/001,LLOYDS BANK PLC,00018000,24.66,FINANCIAL SERVICES - CORPORATE MANAGEMENT (FINANCE),BANK CHARGES,H625,BANK CHARGES,FINANCIAL SERVICES,FINANCIAL SERVICES
http://statistics.data.gov.uk/id/local-authority/43UM,WOKING BOROUGH COUNCIL,11/05/2022,10/06/2022,0000478299/001,LLOYDS BANK PLC,00018000,96.87,FINANCIAL SERVICES - CORPORATE MANAGEMENT (FINANCE),BANK CHARGES,H625,BANK CHARGES,FINANCIAL SERVICES,FINANCIAL SERVICES
http://statistics.data.gov.uk/id/local-authority/43UM,WOKING BOROUGH COUNCIL,10/06/2022,10/06/2022,GPC/00019407,PAYPAL,PROCUREMENT CARD,4.17,CORPORATE MANAGEMENT GROUP - STAFF TRAINING/GENERAL COSTS,TRAINING - CORPORATE,A910,SEASONAL REMINDER OF CRYPTOSPORIDIUM WEBINAR,TARA STEVENSON,SPORTING GOODS STORES
http://statistics.data.gov.uk/id/local-authority/43UM,WOKING BOROUGH COUNCIL,07/06/2022,10/06/2022,0030003496/001,PUBLIC WORKS LOAN BOARD,00021400,"800,859.96",FINANCIAL SERVICES - INTEREST PAYABLE & SIMILAR CHG,PWLB ANNUITY,U111,PWLB ANNUITY,FINANCIAL SERVICES,FINANCIAL SERVICES
http://statistics.data.gov.uk/id/local-authority/43UM,WOKING BOROUGH COUNCIL,31/05/2022,10/06/2022,0030003497/001,PUBLIC WORKS LOAN BOARD,00021400,"119,895.60",FINANCIAL SERVICES - INTEREST PAYABLE & SIMILAR CHG,PWLB ANNUITY,U111,PWLB ANNUITY,FINANCIAL SERVICES,FINANCIAL SERVICES
http://statistics.data.gov.uk/id/local-authority/43UM,WOKING BOROUGH COUNCIL,09/06/2022,10/06/2022,0030003500/001,PUBLIC WORKS LOAN BOARD,00021400,"59,991.30",FINANCIAL SERVICES - INTEREST PAYABLE & SIMILAR CHG,PWLB ANNUITY,U111,PWLB ANNUITY,FINANCIAL SERVICES,FINANCIAL SERVICES
http://statistics.data.gov.uk/id/local-authority/43UM,WOKING BOROUGH COUNCIL,30/05/2022,10/06/2022,0030003488/001,PUBLIC WORKS LOAN BOARD,00021400,"117,450.00",FINANCIAL SERVICES - INTEREST PAYABLE & SIMILAR CHG,PWLB MATURITY LOAN,U112,PWLB MATURITY LOAN,FINANCIAL SERVICES,FINANCIAL SERVICES
http://statistics.data.gov.uk/id/local-authority/43UM,WOKING BOROUGH COUNCIL,01/06/2022,10/06/2022,0030003490/001,PUBLIC WORKS LOAN BOARD,00021400,"63,300.00",FINANCIAL SERVICES - INTEREST PAYABLE & SIMILAR CHG,PWLB MATURITY LOAN,U112,PWLB MATURITY LOAN,FINANCIAL SERVICES,FINANCIAL SERVICES
http://statistics.data.gov.uk/id/local-authority/43UM,WOKING BOROUGH COUNCIL,01/06/2022,10/06/2022,0030003491/001,PUBLIC WORKS LOAN BOARD,00021400,"84,200.00",FINANCIAL SERVICES - INTEREST PAYABLE & SIMILAR CHG,PWLB MATURITY LOAN,U112,PWLB MATURITY LOAN,FINANCIAL SERVICES,FINANCIAL SERVICES
http://statistics.data.gov.uk/id/local-authority/43UM,WOKING BOROUGH COUNCIL,08/06/2022,10/06/2022,0030003495/001,PUBLIC WORKS LOAN BOARD,00021400,"32,100.00",FINANCIAL SERVICES - INTEREST PAYABLE & SIMILAR CHG,PWLB MATURITY LOAN,U112,PWLB MATURITY LOAN,FINANCIAL SERVICES,FINANCIAL SERVICES
http://statistics.data.gov.uk/id/local-authority/43UM,WOKING BOROUGH COUNCIL,09/06/2022,10/06/2022,0030003499/001,PUBLIC WORKS LOAN BOARD,00021400,"51,300.00",FINANCIAL SERVICES - INTEREST PAYABLE & SIMILAR CHG,PWLB MATURITY LOAN,U112,PWLB MATURITY LOAN,FINANCIAL SERVICES,FINANCIAL SERVICES
http://statistics.data.gov.uk/id/local-authority/43UM,WOKING BOROUGH COUNCIL,10/06/2022,10/06/2022,0030003501/001,PUBLIC WORKS LOAN BOARD,00021400,"67,350.00",FINANCIAL SERVICES - INTEREST PAYABLE & SIMILAR CHG,PWLB MATURITY LOAN,U112,PWLB MATURITY LOAN,FINANCIAL SERVICES,FINANCIAL SERVICES
http://statistics.data.gov.uk/id/local-authority/43UM,WOKING BOROUGH COUNCIL,10/06/2022,10/06/2022,0030003502/001,PUBLIC WORKS LOAN BOARD,00021400,"65,850.00",FINANCIAL SERVICES - INTEREST PAYABLE & SIMILAR CHG,PWLB MATURITY LOAN,U112,PWLB MATURITY LOAN,FINANCIAL SERVICES,FINANCIAL SERVICES
http://statistics.data.gov.uk/id/local-authority/43UM,WOKING BOROUGH COUNCIL,10/06/2022,10/06/2022,GPC/00019412,RINGGO PARKING,PROCUREMENT CARD,6.08,HOUSING SERVICES - HOMELINK,TRAVEL EXPENSES-OFFICERS,F600,PARKING ST PETER'S HOSPITAL,GARY CORDERY,AUTO PARKING LOTS/GARAGES
http://statistics.data.gov.uk/id/local-authority/43UM,WOKING BOROUGH COUNCIL,10/06/2022,10/06/2022,GPC/00019408,THE CHARTERED INSTITUT,PROCUREMENT CARD,244.00,CORPORATE STRATEGY - PUBLIC RELATIONS,GENERAL PUBLIC RELATIONS EXPNS,H915,ANNUAL PROFESSIONAL MEMBERSHIP TO THE CIPR,MISS K MAIR,MEMBER ORGANISATIONS - DEF
http://statistics.data.gov.uk/id/local-authority/43UM,WOKING BOROUGH COUNCIL,10/06/2022,10/06/2022,GPC/00019406,TITAN WOKING,PROCUREMENT CARD,100.83,HOUSING SERVICES - LETS RENT SCHEME,CONNECT BOND CLAIMS,H713,STORAGE FOR TS,CLARE HADLEY,BUSINESS SERVICES - DEFAULT
http://statistics.data.gov.uk/id/local-authority/43UM,WOKING BOROUGH COUNCIL,31/05/2022,10/06/2022,0030003493/001,W H MATTHEWS & CO SOLICITORS,41032400,"194,807.16",HOUSING SERVICES - 9 SAPPHO COURT-BUY BACK,MAIN CONTRACTOR,Q200,MAIN CONTRACTOR,HOUSING SERVICES,FINANCIAL SERVICES
http://statistics.data.gov.uk/id/local-authority/43UM,WOKING BOROUGH COUNCIL,10/06/2022,10/06/2022,GPC/00019402,W M MORRISON STORE,PROCUREMENT CARD,2.76,HOUSING SERVICES - HOUSING NEEDS & ALLOCATIONS,PROCUREMENT CARD,H990,SUBSISTENCE,SARAH PARSONS,GROCERY STORES
http://statistics.data.gov.uk/id/local-authority/43UM,WOKING BOROUGH COUNCIL,10/06/2022,10/06/2022,GPC/00019401,W M MORRISON STORE,PROCUREMENT CARD,1.68,INDEPENDENT LIVING SERVICES - MEALS SERVICE - BROCKHILL,PROVISIONS,G410,BREAD FOR HALE END COURT COFFEE BAR,FAYE MCCOMBE,GROCERY STORES
http://statistics.data.gov.uk/id/local-authority/43UM,WOKING BOROUGH COUNCIL,10/06/2022,10/06/2022,GPC/00019409,WAITROSE 181,PROCUREMENT CARD,36.20,INDEPENDENT LIVING SERVICES - BROCKHILL EXTRA CARE,STEP DOWN,H300,STEPDOWN FLATS - FOOD ITEMS AND CLEANING PRODUCTS,OVIDIU MITROFAN,GROCERY STORES
http://statistics.data.gov.uk/id/local-authority/43UM,WOKING BOROUGH COUNCIL,10/06/2022,10/06/2022,GPC/00019420,WWW.CIPR.CO.UK,PROCUREMENT CARD,5.00,CORPORATE STRATEGY - PUBLIC RELATIONS,GENERAL PUBLIC RELATIONS EXPNS,H915,CIPR BEHAVOURIAL CHANGE WEBINAR TICKET PRICE,MISS K MAIR,MEMBER ORGANISATIONS - DEF
http://statistics.data.gov.uk/id/local-authority/43UM,WOKING BOROUGH COUNCIL,11/06/2022,11/06/2022,GPC/00019405,POUNDLAND LTD,PROCUREMENT CARD,0.83,FINANCIAL SERVICES - BROCKHILL SOCIAL FUND,MISCELLANEOUS INCOME,X829,CRAFT MATERIALS FOR HALE END COURT,EMMA A COOPER,DISCOUNT STORES
http://statistics.data.gov.uk/id/local-authority/43UM,WOKING BOROUGH COUNCIL,11/06/2022,11/06/2022,GPC/00019419,THE WORKS,PROCUREMENT CARD,1.67,FINANCIAL SERVICES - BROCKHILL SOCIAL FUND,MISCELLANEOUS INCOME,X829,PAINT BRUSHES FOR CRAFTS AT HALE END COURT,EMMA A COOPER,DISCOUNT STORES
http://statistics.data.gov.uk/id/local-authority/43UM,WOKING BOROUGH COUNCIL,11/06/2022,11/06/2022,GPC/00019413,WWW.SCREWFIX.COM,PROCUREMENT CARD,10.82,ASSET MANAGEMENT - FACILITIES MANAGEMENT,FACILITIES MANAGEMENT REPAIRS,D908,TAP AND DIE SET,MR D JONES,LUMBER/BUILD SUPPLY STORES
http://statistics.data.gov.uk/id/local-authority/43UM,WOKING BOROUGH COUNCIL,12/06/2022,12/06/2022,GPC/00019427,AMZNBUSINESS,PROCUREMENT CARD,12.46,INDEPENDENT LIVING SERVICES - MOORCROFT,CLEANING MATERIALS,D920,FLOOR CLEAN,RICHARD BUCKENHAM,MISC SPECIALITY RETAIL
http://statistics.data.gov.uk/id/local-authority/43UM,WOKING BOROUGH COUNCIL,12/06/2022,12/06/2022,GPC/00019404,BOOKERECOMM,PROCUREMENT CARD,10.28,INDEPENDENT LIVING SERVICES - MEALS SERVICE - BROCKHILL,PROVISIONS,G410,GROCERIES FOR KITCHENS,REBECCA STEVENS,CATERERS
http://statistics.data.gov.uk/id/local-authority/43UM,WOKING BOROUGH COUNCIL,12/06/2022,12/06/2022,GPC/00019404,BOOKERECOMM,PROCUREMENT CARD,21.49,INDEPENDENT LIVING SERVICES - MEALS SERVICE - BROCKHILL,PROVISIONS,G410,GROCERIES FOR KITCHENS,REBECCA STEVENS,CATERERS
http://statistics.data.gov.uk/id/local-authority/43UM,WOKING BOROUGH COUNCIL,12/06/2022,12/06/2022,GPC/00019404,BOOKERECOMM,PROCUREMENT CARD,6.99,INDEPENDENT LIVING SERVICES - MEALS SERVICE - ST MARYS,PROVISIONS,G410,GROCERIES FOR KITCHENS,REBECCA STEVENS,CATERERS
http://statistics.data.gov.uk/id/local-authority/43UM,WOKING BOROUGH COUNCIL,12/06/2022,12/06/2022,GPC/00019404,BOOKERECOMM,PROCUREMENT CARD,2.79,INDEPENDENT LIVING SERVICES - MEALS SERVICE -THE VYNE,PROVISIONS,G410,GROCERIES FOR KITCHENS,REBECCA STEVENS,CATERERS
http://statistics.data.gov.uk/id/local-authority/43UM,WOKING BOROUGH COUNCIL,12/06/2022,12/06/2022,GPC/00019404,BOOKERECOMM,PROCUREMENT CARD,9.21,INDEPENDENT LIVING SERVICES - MEALS SERVICE -THE VYNE,PROVISIONS,G410,GROCERIES FOR KITCHENS,REBECCA STEVENS,CATERERS
http://statistics.data.gov.uk/id/local-authority/43UM,WOKING BOROUGH COUNCIL,12/06/2022,12/06/2022,GPC/00019418,BOOKERECOMM,PROCUREMENT CARD,13.00,INDEPENDENT LIVING SERVICES - MEALS SERVICE -THE VYNE,PROVISIONS,G410,GROCERIES FOR KITCHENS,REBECCA STEVENS,CATERERS
http://statistics.data.gov.uk/id/local-authority/43UM,WOKING BOROUGH COUNCIL,12/06/2022,12/06/2022,GPC/00019404,BOOKERECOMM,PROCUREMENT CARD,35.96,INDEPENDENT LIVING SERVICES - MEALS ON WHEELS,PROVISIONS,G410,GROCERIES FOR KITCHENS,REBECCA STEVENS,CATERERS
http://statistics.data.gov.uk/id/local-authority/43UM,WOKING BOROUGH COUNCIL,12/06/2022,12/06/2022,GPC/00019404,BOOKERECOMM,PROCUREMENT CARD,72.84,INDEPENDENT LIVING SERVICES - MEALS ON WHEELS,PROVISIONS,G410,GROCERIES FOR KITCHENS,REBECCA STEVENS,CATERERS
http://statistics.data.gov.uk/id/local-authority/43UM,WOKING BOROUGH COUNCIL,12/06/2022,12/06/2022,GPC/00019404,BOOKERECOMM,PROCUREMENT CARD,7.49,INDEPENDENT LIVING SERVICES - MEALS SERVICE - HALE END COURT,PROVISIONS,G410,GROCERIES FOR KITCHENS,REBECCA STEVENS,CATERERS
http://statistics.data.gov.uk/id/local-authority/43UM,WOKING BOROUGH COUNCIL,12/06/2022,12/06/2022,GPC/00019404,BOOKERECOMM,PROCUREMENT CARD,39.54,INDEPENDENT LIVING SERVICES - MEALS SERVICE - HALE END COURT,PROVISIONS,G410,GROCERIES FOR KITCHENS,REBECCA STEVENS,CATERERS
http://statistics.data.gov.uk/id/local-authority/43UM,WOKING BOROUGH COUNCIL,12/06/2022,12/06/2022,GPC/00019417,FACEBK FNR4XD3Q72,PROCUREMENT CARD,5.83,CORPORATE STRATEGY - VOLUNTARY DEVELOPMENT,CHARITY DEVELOPMENT,G118,FACEBOOK BOOST FOR VOLUNTEERS WEEK,ELSPETH LEIGH ANDREWS,ADVERTISING SERVICES
http://statistics.data.gov.uk/id/local-authority/43UM,WOKING BOROUGH COUNCIL,12/06/2022,12/06/2022,GPC/00019415,HOME BARGAINS FLEET,PROCUREMENT CARD,28.58,INDEPENDENT LIVING SERVICES - HOME SUPPORT SERVICE,EQUIPMENT,G100,PURCHASED ITEMS FOR REQUIRE FOR SCHEMES,JEFFREY MEME,HARDWARE STORES
http://statistics.data.gov.uk/id/local-authority/43UM,WOKING BOROUGH COUNCIL,13/06/2022,13/06/2022,GPC/00019422,AMZNMKTPLACE,PROCUREMENT CARD,7.40,INFORMATION TECHNOLOGY - COMMUNICATIONS,MOBILE PHONE COSTS,G846,STICKY PADS FOR NEW PHONE CASE FOR NEW WORK PHONE,CLARE HADLEY,MISC SPECIALITY RETAIL
http://statistics.data.gov.uk/id/local-authority/43UM,WOKING BOROUGH COUNCIL,13/06/2022,13/06/2022,GPC/00019424,AMZNMKTPLACE,PROCUREMENT CARD,9.16,INDEPENDENT LIVING SERVICES - HALE END COURT,EVENTS EXPENSES,G418,TENANT BIRTHDAY CARDS,RIANNA MEME,MISC SPECIALITY RETAIL
http://statistics.data.gov.uk/id/local-authority/43UM,WOKING BOROUGH COUNCIL,13/06/2022,13/06/2022,GPC/00019426,AMZNMKTPLACE,PROCUREMENT CARD,7.47,INDEPENDENT LIVING SERVICES - HOME SUPPORT SERVICE,EQUIPMENT,G100,PH LITMUS PAPER STRIPS,JEFFREY MEME,MISC SPECIALITY RETAIL
http://statistics.data.gov.uk/id/local-authority/43UM,WOKING BOROUGH COUNCIL,13/06/2022,13/06/2022,GPC/00019431,ESSO BELLFIELDS SSTN,PROCUREMENT CARD,20.83,HOUSING SERVICES - HOUSING OPTIONS,REMOVAL EXPENSES,H775,DIESEL FOR ENTERPRISE VAN HIRE,PHILIP OGLESBY,SERVICE STATIONS
http://statistics.data.gov.uk/id/local-authority/43UM,WOKING BOROUGH COUNCIL,13/06/2022,13/06/2022,GPC/00019440,PREMIER INN 44537135,PROCUREMENT CARD,399.50,HOUSING SERVICES - HOUSING OPTIONS,BED & BREAKFAST EXPENDITURE,H786,B&B BOOKING,BETTINA GRESHAM,PREMIER INN
http://statistics.data.gov.uk/id/local-authority/43UM,WOKING BOROUGH COUNCIL,13/06/2022,13/06/2022,GPC/00019448,PREMIER INN44015905,PROCUREMENT CARD,433.00,HOUSING SERVICES - HOUSING OPTIONS,BED & BREAKFAST EXPENDITURE,H786,B&B BOOKING,BETTINA GRESHAM,PREMIER INN
http://statistics.data.gov.uk/id/local-authority/43UM,WOKING BOROUGH COUNCIL,13/06/2022,13/06/2022,GPC/00019421,SAINSBURYS S/MKTS,PROCUREMENT CARD,3.69,INDEPENDENT LIVING SERVICES - MEALS ON WHEELS,PROVISIONS,G410,BANANAS FOR MOW,FAYE MCCOMBE,GROCERY STORES
http://statistics.data.gov.uk/id/local-authority/43UM,WOKING BOROUGH COUNCIL,13/06/2022,13/06/2022,GPC/00019428,SAINSBURYS S/MKTS,PROCUREMENT CARD,51.26,NEIGHBOURHOOD SERVICES - SURREY HEATH ON STREET PARKING,PETROL,F200,FUEL FOR CEO VEHICLES,RICHARD TAYLOR,AUTOMATED FUEL DISPENSERS
http://statistics.data.gov.uk/id/local-authority/43UM,WOKING BOROUGH COUNCIL,13/06/2022,13/06/2022,GPC/00019423,WICKES WOKING,PROCUREMENT CARD,204.01,HOUSING SERVICES - HOME IMPS & BEN AGENCY,HANDYPERSON MATERIALS,G201,HANDYPERSON MATERIALS,JASON BALCHIN,HOME SUPPLY WAREHOUSE STORES
http://statistics.data.gov.uk/id/local-authority/43UM,WOKING BOROUGH COUNCIL,13/06/2022,13/06/2022,GPC/00019425,WWW.SCREWFIX.COM,PROCUREMENT CARD,18.32,ASSET MANAGEMENT - CIVIC OFFICES,CLOTHING/UNIFORMS,G510,UNIFORM,MR D JONES,LUMBER/BUILD SUPPLY STORES
http://statistics.data.gov.uk/id/local-authority/43UM,WOKING BOROUGH COUNCIL,14/06/2022,14/06/2022,GPC/00019434,AMZNBUSINESS,PROCUREMENT CARD,6.94,CORPORATE STRATEGY - WOMENS SUPPORT CENTRE SURREY,NOTICE BOARD / SIGNS,G140,SMOKING SIGN,LEANNE J SPILLER,MISC SPECIALITY RETAIL
http://statistics.data.gov.uk/id/local-authority/43UM,WOKING BOROUGH COUNCIL,14/06/2022,14/06/2022,GPC/00019456,AMZNBUSINESS,PROCUREMENT CARD,15.82,CORPORATE STRATEGY - WOMENS SUPPORT CENTRE SURREY,GROUP EXPENSES,H488,BRUSHO PAINTS - ART GROUP,LEANNE J SPILLER,MISC SPECIALITY RETAIL
http://statistics.data.gov.uk/id/local-authority/43UM,WOKING BOROUGH COUNCIL,14/06/2022,14/06/2022,GPC/00019445,AMZNMKTPLACE,PROCUREMENT CARD,4.99,INFORMATION TECHNOLOGY - COMMUNICATIONS,MOBILE PHONE COSTS,G846,PHONE CASE FOR NEW PHONE,CLARE HADLEY,MISC SPECIALITY RETAIL
http://statistics.data.gov.uk/id/local-authority/43UM,WOKING BOROUGH COUNCIL,14/06/2022,14/06/2022,GPC/00019437,AMZNMKTPLACE,PROCUREMENT CARD,9.66,ASSET MANAGEMENT - CIVIC OFFICES,STATIONERY,G620,LABELS FOR DYMO MACHINE,MOLLY DOYLE,MISC SPECIALITY RETAIL
http://statistics.data.gov.uk/id/local-authority/43UM,WOKING BOROUGH COUNCIL,14/06/2022,14/06/2022,GPC/00019430,AMZNMKTPLACE,PROCUREMENT CARD,25.83,INDEPENDENT LIVING SERVICES - MEALS MANAGEMENT,NEW EQUIPMENT,G105,MOP BUCKET FOR MW,REBECCA STEVENS,MISC SPECIALITY RETAIL
http://statistics.data.gov.uk/id/local-authority/43UM,WOKING BOROUGH COUNCIL,14/06/2022,14/06/2022,GPC/00019429,AMZNMKTPLACE,PROCUREMENT CARD,7.49,INDEPENDENT LIVING SERVICES - MEALS MANAGEMENT,NEW EQUIPMENT,G105,TIN OPENER FOR MW,REBECCA STEVENS,MISC SPECIALITY RETAIL
http://statistics.data.gov.uk/id/local-authority/43UM,WOKING BOROUGH COUNCIL,14/06/2022,14/06/2022,GPC/00019444,CURRYS ONLINE,PROCUREMENT CARD,108.32,ASSET MANAGEMENT - FACILITIES MANAGEMENT,FACILITIES MANAGEMENT REPAIRS,D908,FRIDGE FOR 4TH FLOOR CIVIC OFFICES,MOLLY DOYLE,ELECTRONICS SALES
http://statistics.data.gov.uk/id/local-authority/43UM,WOKING BOROUGH COUNCIL,14/06/2022,14/06/2022,GPC/00019433,CYBERMARKET ELECTRONIC SU,PROCUREMENT CARD,99.99,CORPORATE STRATEGY - COVID -19 PANDEMIC,MAIN CONTRACTOR,Q200,THROUGH WALL COMMUNICATION,MR R D SMITH,ELECTRONICS SALES
http://statistics.data.gov.uk/id/local-authority/43UM,WOKING BOROUGH COUNCIL,14/06/2022,14/06/2022,GPC/00019447,EARTH-SYSTEMS.CO.UK,PROCUREMENT CARD,34.66,ASSET MANAGEMENT - FACILITIES MANAGEMENT,FACILITIES MANAGEMENT REPAIRS,D908,IRRIGATION PARTS,MR R D SMITH,LAWN/GARDEN SUPPLY/NURSERY
http://statistics.data.gov.uk/id/local-authority/43UM,WOKING BOROUGH COUNCIL,14/06/2022,14/06/2022,GPC/00019441,HORACE SMITH LOCKSMITH,PROCUREMENT CARD,8.67,HOUSING SERVICES - NVH VOIDS (REVENUE),SCHED 1B VOIDS,D166,KEYS CUT,GIUSEPPE AMICO,HARDWARE STORES
http://statistics.data.gov.uk/id/local-authority/43UM,WOKING BOROUGH COUNCIL,14/06/2022,14/06/2022,GPC/00019443,HORIZON PARKING LTD,PROCUREMENT CARD,2.50,HOUSING SERVICES - HOMELINK,TRAVEL EXPENSES-OFFICERS,F600,RUNNYMEDED BC MEETIN - PARKING,GARY CORDERY,AUTO PARKING LOTS/GARAGES
http://statistics.data.gov.uk/id/local-authority/43UM,WOKING BOROUGH COUNCIL,14/06/2022,14/06/2022,GPC/00019446,HYDROSURE GLOBAL LIMIT,PROCUREMENT CARD,56.26,ASSET MANAGEMENT - FACILITIES MANAGEMENT,FACILITIES MANAGEMENT REPAIRS,D908,IRRIGATION MIDAS,MR R D SMITH,MISC SPECIALITY RETAIL
http://statistics.data.gov.uk/id/local-authority/43UM,WOKING BOROUGH COUNCIL,14/06/2022,14/06/2022,GPC/00019436,NEC PARKING,PROCUREMENT CARD,14.13,NEIGHBOURHOOD SERVICES - CPZ WBC FROM 25/7/05,PARKING COSTS,F510,PARKING,RICHARD TAYLOR,AUTO PARKING LOTS/GARAGES
http://statistics.data.gov.uk/id/local-authority/43UM,WOKING BOROUGH COUNCIL,14/06/2022,14/06/2022,GPC/00019438,SAINSBURYS S/MKTS,PROCUREMENT CARD,2.25,INDEPENDENT LIVING SERVICES - MEALS ON WHEELS,PROVISIONS,G410,BANANAS FOR MOW,FAYE MCCOMBE,GROCERY STORES
http://statistics.data.gov.uk/id/local-authority/43UM,WOKING BOROUGH COUNCIL,14/06/2022,14/06/2022,GPC/00019439,SUMUP  *WOKING TOWN CARS,PROCUREMENT CARD,25.00,HOUSING SERVICES - AFGHAN REFUGEE,TRAVEL & SUBSISTANCE,Q657,TAXI FOR AFGHAN FAMILY,HINA ASHRAF,TAXICABS/LIMOUSINES
http://statistics.data.gov.uk/id/local-authority/43UM,WOKING BOROUGH COUNCIL,14/06/2022,14/06/2022,GPC/00019435,UNBEATABLE BLINDS LTD,PROCUREMENT CARD,55.86,INDEPENDENT LIVING SERVICES - MOORCROFT,REFURBISHMENTS,D104,REPLACEMENT BLIND,RICHARD BUCKENHAM,FURNITURE/EQUIP STORES
http://statistics.data.gov.uk/id/local-authority/43UM,WOKING BOROUGH COUNCIL,14/06/2022,14/06/2022,GPC/00019442,WWW.SCREWFIX.COM,PROCUREMENT CARD,27.49,NEIGHBOURHOOD SERVICES - MUSLIM BURIAL GRND PEACE GARDE,MAINTENANCE/MINOR WORKS,D211,HOSE AND REEL FOR PEACE GARDEN,MR D JONES,LUMBER/BUILD SUPPLY STORES
http://statistics.data.gov.uk/id/local-authority/43UM,WOKING BOROUGH COUNCIL,15/03/2022,15/06/2022,0000478512/001,1ST DEFENSE FIRE & RESCUE SERVICES LTD,40249500,46.10,ASSET MANAGEMENT - FACILITIES MANAGEMENT,FACILITIES MANAGEMENT REPAIRS,D908,FACILITIES MANAGEMENT REPAIRS,ASSET MANAGEMENT,HUMAN RESOURCES
http://statistics.data.gov.uk/id/local-authority/43UM,WOKING BOROUGH COUNCIL,15/06/2022,15/06/2022,GPC/00019499,3C_*WOKING BOROUGH COUNC,PROCUREMENT CARD,2.67,INDEPENDENT LIVING SERVICES - COMMUNITY ALARMS-GF,PARKING COSTS,F510,PICKING UP PRINTER PART FROM CIVIC,RIANNA MEME,AUTO PARKING LOTS/GARAGES
http://statistics.data.gov.uk/id/local-authority/43UM,WOKING BOROUGH COUNCIL,06/06/2022,15/06/2022,0000478487/001,ABC UMBRELLA LTD,41031700,"1,000.00",REVENUES AND BENEFITS - COUNCIL TAX,TEMPORARY STAFF,A110,TEMPORARY STAFF,REVENUES AND BENEFITS,HUMAN RESOURCES
http://statistics.data.gov.uk/id/local-authority/43UM,WOKING BOROUGH COUNCIL,06/06/2022,15/06/2022,0000478550/001,ADVANCED TREE SERVICES LIMITED,41032900,560.00,ASSET MANAGEMENT - SAUNDERS LANE FIELD,GROUNDS MAINT-CONTRACTORS,D200,GROUNDS MAINT-CONTRACTORS,ASSET MANAGEMENT,FACILITIES & MANAGEMENT SERVICES
http://statistics.data.gov.uk/id/local-authority/43UM,WOKING BOROUGH COUNCIL,02/06/2022,15/06/2022,0000478661/002,AFFINITY WATER,01095900,131.84,INDEPENDENT LIVING SERVICES - MEALS SERVICE - BROCKHILL,WATER,D700,WATER,INDEPENDENT LIVING SERVICES,UTILITIES
http://statistics.data.gov.uk/id/local-authority/43UM,WOKING BOROUGH COUNCIL,07/04/2022,15/06/2022,0000476833/001,AFFINITY WATER,01095900,419.91,HOUSING SERVICES - LANDLORDS EXPENSES,WATER,D700,WATER,HOUSING SERVICES,UTILITIES
http://statistics.data.gov.uk/id/local-authority/43UM,WOKING BOROUGH COUNCIL,02/06/2022,15/06/2022,0000478661/001,AFFINITY WATER,01095900,527.38,HOUSING SERVICES - LANDLORDS EXPENSES,WATER,D700,WATER,HOUSING SERVICES,UTILITIES
http://statistics.data.gov.uk/id/local-authority/43UM,WOKING BOROUGH COUNCIL,05/05/2022,15/06/2022,0000477998/001,AFFINITY WATER,01095900,"34,419.06",ASSET MANAGEMENT - VICTORIA ARCH SOUTH,MAIN CONTRACTOR,Q200,MAIN CONTRACTOR,ASSET MANAGEMENT,UTILITIES
http://statistics.data.gov.uk/id/local-authority/43UM,WOKING BOROUGH COUNCIL,05/05/2022,15/06/2022,0000477999/001,AFFINITY WATER,01095900,"19,508.13",ASSET MANAGEMENT - VICTORIA ARCH SOUTH,MAIN CONTRACTOR,Q200,MAIN CONTRACTOR,ASSET MANAGEMENT,UTILITIES
http://statistics.data.gov.uk/id/local-authority/43UM,WOKING BOROUGH COUNCIL,13/06/2022,15/06/2022,0000478732/001,ALLSOP & FRANCIS LTD,00963800,230.73,HOUSING SERVICES - STATUTORU HRA,HRA STATUTORY,D116,HRA STATUTORY,HOUSING SERVICES,DOMESTIC GOODS
http://statistics.data.gov.uk/id/local-authority/43UM,WOKING BOROUGH COUNCIL,13/06/2022,15/06/2022,0000478734/001,ALLSOP & FRANCIS LTD,00963800,84.21,HOUSING SERVICES - STATUTORU HRA,HRA STATUTORY,D116,HRA STATUTORY,HOUSING SERVICES,DOMESTIC GOODS
http://statistics.data.gov.uk/id/local-authority/43UM,WOKING BOROUGH COUNCIL,14/06/2022,15/06/2022,0000478748/001,ALLSOP & FRANCIS LTD,00963800,96.09,HOUSING SERVICES - STATUTORU HRA,HRA STATUTORY,D116,HRA STATUTORY,HOUSING SERVICES,DOMESTIC GOODS
http://statistics.data.gov.uk/id/local-authority/43UM,WOKING BOROUGH COUNCIL,30/05/2022,15/06/2022,0000478396/001,ALPHABET (GB) LIMITED,00015200,-488.22,CORPORATE MANAGEMENT GROUP - LEASED CAR DEDUCTIONS,RECOVERABLE COSTS,T162,RECOVERABLE COSTS,CORPORATE MANAGEMENT GROUP,VEHICLE MANAGEMENT
http://statistics.data.gov.uk/id/local-authority/43UM,WOKING BOROUGH COUNCIL,30/05/2022,15/06/2022,0000478396/003,ALPHABET (GB) LIMITED,00015200,-48.82,CORPORATE MANAGEMENT GROUP - LEASED CAR DEDUCTIONS,RECOVERABLE COSTS,T162,RECOVERABLE COSTS,CORPORATE MANAGEMENT GROUP,VEHICLE MANAGEMENT
http://statistics.data.gov.uk/id/local-authority/43UM,WOKING BOROUGH COUNCIL,31/05/2022,15/06/2022,0000478658/001,ALPHABET (GB) LIMITED,00015200,643.00,CORPORATE MANAGEMENT GROUP - LEASED CAR DEDUCTIONS,RECOVERABLE COSTS,T162,RECOVERABLE COSTS,CORPORATE MANAGEMENT GROUP,VEHICLE MANAGEMENT
http://statistics.data.gov.uk/id/local-authority/43UM,WOKING BOROUGH COUNCIL,06/06/2022,15/06/2022,0000478578/001,ALPHABET (GB) LIMITED,00015200,"1,246.25",CORPORATE MANAGEMENT GROUP - LEASED CAR PAYMENTS,PAYMENT TO LESSORS,T170,PAYMENT TO LESSORS,CORPORATE MANAGEMENT GROUP,VEHICLE MANAGEMENT
http://statistics.data.gov.uk/id/local-authority/43UM,WOKING BOROUGH COUNCIL,01/06/2022,15/06/2022,0000478655/002,ALPHABET (GB) LIMITED,00015200,"3,012.17",CORPORATE MANAGEMENT GROUP - LEASED CAR PAYMENTS,PAYMENT TO LESSORS,T170,PAYMENT TO LESSORS,CORPORATE MANAGEMENT GROUP,VEHICLE MANAGEMENT
http://statistics.data.gov.uk/id/local-authority/43UM,WOKING BOROUGH COUNCIL,01/06/2022,15/06/2022,0000478655/004,ALPHABET (GB) LIMITED,00015200,24.00,CORPORATE MANAGEMENT GROUP - LEASED CAR PAYMENTS,PAYMENT TO LESSORS,T170,PAYMENT TO LESSORS,CORPORATE MANAGEMENT GROUP,VEHICLE MANAGEMENT
http://statistics.data.gov.uk/id/local-authority/43UM,WOKING BOROUGH COUNCIL,01/06/2022,15/06/2022,0000478655/006,ALPHABET (GB) LIMITED,00015200,271.26,CORPORATE MANAGEMENT GROUP - LEASED CAR PAYMENTS,PAYMENT TO LESSORS,T170,PAYMENT TO LESSORS,CORPORATE MANAGEMENT GROUP,VEHICLE MANAGEMENT
http://statistics.data.gov.uk/id/local-authority/43UM,WOKING BOROUGH COUNCIL,31/05/2022,15/06/2022,0000478659/002,ALPHABET (GB) LIMITED,00015200,24.70,CORPORATE MANAGEMENT GROUP - LEASED CAR PAYMENTS,PAYMENT TO LESSORS,T170,PAYMENT TO LESSORS,CORPORATE MANAGEMENT GROUP,VEHICLE MANAGEMENT
http://statistics.data.gov.uk/id/local-authority/43UM,WOKING BOROUGH COUNCIL,31/05/2022,15/06/2022,0000478660/001,ALPHABET (GB) LIMITED,00015200,"3,315.56",CORPORATE MANAGEMENT GROUP - LEASED CAR PAYMENTS,PAYMENT TO LESSORS,T170,PAYMENT TO LESSORS,CORPORATE MANAGEMENT GROUP,VEHICLE MANAGEMENT
http://statistics.data.gov.uk/id/local-authority/43UM,WOKING BOROUGH COUNCIL,31/05/2022,15/06/2022,0000478660/003,ALPHABET (GB) LIMITED,00015200,25.00,CORPORATE MANAGEMENT GROUP - LEASED CAR PAYMENTS,PAYMENT TO LESSORS,T170,PAYMENT TO LESSORS,CORPORATE MANAGEMENT GROUP,VEHICLE MANAGEMENT
http://statistics.data.gov.uk/id/local-authority/43UM,WOKING BOROUGH COUNCIL,31/05/2022,15/06/2022,0000478660/005,ALPHABET (GB) LIMITED,00015200,323.23,CORPORATE MANAGEMENT GROUP - LEASED CAR PAYMENTS,PAYMENT TO LESSORS,T170,PAYMENT TO LESSORS,CORPORATE MANAGEMENT GROUP,VEHICLE MANAGEMENT
http://statistics.data.gov.uk/id/local-authority/43UM,WOKING BOROUGH COUNCIL,31/05/2022,15/06/2022,0000478656/001,ALPHABET (GB) LIMITED,00015200,207.36,CORPORATE MANAGEMENT GROUP - LEASED CAR RELIEF,EXPEND FROM FUND,T750,EXPEND FROM FUND,CORPORATE MANAGEMENT GROUP,VEHICLE MANAGEMENT
http://statistics.data.gov.uk/id/local-authority/43UM,WOKING BOROUGH COUNCIL,01/06/2022,15/06/2022,0000478655/003,ALPHABET (GB) LIMITED,00015200,-24.00,CORPORATE MANAGEMENT GROUP - LEASED CAR RELIEF,REVENUE CONTRIBUTIONS,T775,REVENUE CONTRIBUTIONS,CORPORATE MANAGEMENT GROUP,VEHICLE MANAGEMENT
http://statistics.data.gov.uk/id/local-authority/43UM,WOKING BOROUGH COUNCIL,31/05/2022,15/06/2022,0000478660/002,ALPHABET (GB) LIMITED,00015200,-25.00,CORPORATE MANAGEMENT GROUP - LEASED CAR RELIEF,REVENUE CONTRIBUTIONS,T775,REVENUE CONTRIBUTIONS,CORPORATE MANAGEMENT GROUP,VEHICLE MANAGEMENT
http://statistics.data.gov.uk/id/local-authority/43UM,WOKING BOROUGH COUNCIL,31/05/2022,15/06/2022,0000478660/009,ALPHABET (GB) LIMITED,00015200,315.27,ASSET MANAGEMENT - BUILDING SERVICES,VEHICLE LEASING COSTS,F400,VEHICLE LEASING COSTS,ASSET MANAGEMENT,VEHICLE MANAGEMENT
http://statistics.data.gov.uk/id/local-authority/43UM,WOKING BOROUGH COUNCIL,31/05/2022,15/06/2022,0000478657/001,ALPHABET (GB) LIMITED,00015200,508.48,HOUSING SERVICES - HOME IMPS & BEN AGENCY,VEHICLE LEASING COSTS,F400,VEHICLE LEASING COSTS,HOUSING SERVICES,VEHICLE MANAGEMENT
http://statistics.data.gov.uk/id/local-authority/43UM,WOKING BOROUGH COUNCIL,31/05/2022,15/06/2022,0000478660/008,ALPHABET (GB) LIMITED,00015200,160.58,INDEPENDENT LIVING SERVICES - MEALS ON WHEELS,VEHICLE LEASING COSTS,F400,VEHICLE LEASING COSTS,INDEPENDENT LIVING SERVICES,VEHICLE MANAGEMENT
http://statistics.data.gov.uk/id/local-authority/43UM,WOKING BOROUGH COUNCIL,01/06/2022,15/06/2022,0000478655/001,ALPHABET (GB) LIMITED,00015200,"3,101.49",NEIGHBOURHOOD SERVICES - PARKING SERVICES,VEHICLE LEASING COSTS,F400,VEHICLE LEASING COSTS,NEIGHBOURHOOD SERVICES,VEHICLE MANAGEMENT
http://statistics.data.gov.uk/id/local-authority/43UM,WOKING BOROUGH COUNCIL,31/05/2022,15/06/2022,0000478659/001,ALPHABET (GB) LIMITED,00015200,249.70,NEIGHBOURHOOD SERVICES - PARKING SERVICES,VEHICLE LEASING COSTS,F400,VEHICLE LEASING COSTS,NEIGHBOURHOOD SERVICES,VEHICLE MANAGEMENT
http://statistics.data.gov.uk/id/local-authority/43UM,WOKING BOROUGH COUNCIL,31/05/2022,15/06/2022,0000478660/010,ALPHABET (GB) LIMITED,00015200,198.40,NEIGHBOURHOOD SERVICES - PARKING SERVICES,VEHICLE LEASING COSTS,F400,VEHICLE LEASING COSTS,NEIGHBOURHOOD SERVICES,VEHICLE MANAGEMENT
http://statistics.data.gov.uk/id/local-authority/43UM,WOKING BOROUGH COUNCIL,06/06/2022,15/06/2022,0000478578/002,ALPHABET (GB) LIMITED,00015200,-356.07,CORPORATE MANAGEMENT GROUP - CORPORATE MANAGEMENT GROUP,REDUNDANCY PAYMENTS,A700,REDUNDANCY PAYMENTS,CORPORATE MANAGEMENT GROUP,VEHICLE MANAGEMENT
http://statistics.data.gov.uk/id/local-authority/43UM,WOKING BOROUGH COUNCIL,31/05/2022,15/06/2022,0000478660/007,ALPHABET (GB) LIMITED,00015200,304.11,CORPORATE STRATEGY - MAYORS CAR AND DRIVER,VEHICLE LEASING COSTS,F400,VEHICLE LEASING COSTS,CORPORATE STRATEGY,VEHICLE MANAGEMENT
http://statistics.data.gov.uk/id/local-authority/43UM,WOKING BOROUGH COUNCIL,31/05/2022,15/06/2022,0000478660/006,ALPHABET (GB) LIMITED,00015200,237.77,ASSET MANAGEMENT - BROOKWOOD CEMETERY TEMP COSTS,MAIN CONTRACTOR,Q200,MAIN CONTRACTOR,ASSET MANAGEMENT,VEHICLE MANAGEMENT
http://statistics.data.gov.uk/id/local-authority/43UM,WOKING BOROUGH COUNCIL,15/06/2022,15/06/2022,GPC/00019458,AMZNBUSINESS,PROCUREMENT CARD,12.35,INDEPENDENT LIVING SERVICES - MEALS MANAGEMENT,NEW EQUIPMENT,G105,CLIPBOARDS FOR MW,REBECCA STEVENS,MISC SPECIALITY RETAIL
http://statistics.data.gov.uk/id/local-authority/43UM,WOKING BOROUGH COUNCIL,15/06/2022,15/06/2022,GPC/00019477,AMZNBUSINESS,PROCUREMENT CARD,18.60,INDEPENDENT LIVING SERVICES - MEALS MANAGEMENT,NEW EQUIPMENT,G105,MOP HANDLE MW,REBECCA STEVENS,MISC SPECIALITY RETAIL
http://statistics.data.gov.uk/id/local-authority/43UM,WOKING BOROUGH COUNCIL,15/06/2022,15/06/2022,GPC/00019465,AMZNBUSINESS,PROCUREMENT CARD,14.50,INDEPENDENT LIVING SERVICES - MEALS MANAGEMENT,NEW EQUIPMENT,G105,MOP HEADS FOR MW,REBECCA STEVENS,MISC SPECIALITY RETAIL
http://statistics.data.gov.uk/id/local-authority/43UM,WOKING BOROUGH COUNCIL,15/06/2022,15/06/2022,GPC/00019476,AMZNMKTPLACE,PROCUREMENT CARD,15.82,CORPORATE STRATEGY - WOMENS SUPPORT CENTRE SURREY,EQUIPMENT,G100,BUTT BIN,LEANNE J SPILLER,MISC SPECIALITY RETAIL
http://statistics.data.gov.uk/id/local-authority/43UM,WOKING BOROUGH COUNCIL,15/06/2022,15/06/2022,GPC/00019452,AMZNMKTPLACE,PROCUREMENT CARD,48.32,CORPORATE STRATEGY - WOMENS SUPPORT CENTRE SURREY,STATIONERY,G620,LEAFLET HOLDERS FOR WALLS IN CLIENT AREAS,LEANNE J SPILLER,MISC SPECIALITY RETAIL
http://statistics.data.gov.uk/id/local-authority/43UM,WOKING BOROUGH COUNCIL,15/06/2022,15/06/2022,GPC/00019472,AMZNMKTPLACE,PROCUREMENT CARD,20.41,CORPORATE STRATEGY - WOMENS SUPPORT CENTRE SURREY,STATIONERY,G620,STATIONERY - PENS,LEANNE J SPILLER,MISC SPECIALITY RETAIL
http://statistics.data.gov.uk/id/local-authority/43UM,WOKING BOROUGH COUNCIL,15/06/2022,15/06/2022,GPC/00019469,AMZNMKTPLACE,PROCUREMENT CARD,14.67,CORPORATE STRATEGY - WOMENS SUPPORT CENTRE SURREY,STATIONERY,G620,STATIONERY - STICKY NOTES,LEANNE J SPILLER,MISC SPECIALITY RETAIL
http://statistics.data.gov.uk/id/local-authority/43UM,WOKING BOROUGH COUNCIL,15/06/2022,15/06/2022,GPC/00019468,AMZNMKTPLACE,PROCUREMENT CARD,9.98,CORPORATE STRATEGY - WOMENS SUPPORT CENTRE SURREY,STATIONERY,G620,STATIONERY - WHITE BOARD MAGNETS,LEANNE J SPILLER,MISC SPECIALITY RETAIL
http://statistics.data.gov.uk/id/local-authority/43UM,WOKING BOROUGH COUNCIL,15/06/2022,15/06/2022,GPC/00019461,AMZNMKTPLACE,PROCUREMENT CARD,19.98,CORPORATE STRATEGY - WOMENS SUPPORT CENTRE SURREY,GROUP EXPENSES,H488,ART SUPPLIES - MOUNT BOARD,LEANNE J SPILLER,MISC SPECIALITY RETAIL
http://statistics.data.gov.uk/id/local-authority/43UM,WOKING BOROUGH COUNCIL,15/06/2022,15/06/2022,GPC/00019455,AMZNMKTPLACE,PROCUREMENT CARD,6.66,CORPORATE STRATEGY - WOMENS SUPPORT CENTRE SURREY,GROUP EXPENSES,H488,CUTTING MAT,LEANNE J SPILLER,MISC SPECIALITY RETAIL
http://statistics.data.gov.uk/id/local-authority/43UM,WOKING BOROUGH COUNCIL,15/06/2022,15/06/2022,GPC/00019449,AMZNMKTPLACE,PROCUREMENT CARD,23.01,CORPORATE STRATEGY - WOMENS SUPPORT CENTRE SURREY,MISC GRANTS,P410,POST-IT NOTES BOUGHT AND RETRUNED,LEANNE J SPILLER,MISC SPECIALITY RETAIL
http://statistics.data.gov.uk/id/local-authority/43UM,WOKING BOROUGH COUNCIL,15/06/2022,15/06/2022,GPC/00019432,AMZNMKTPLACE,PROCUREMENT CARD,8.78,INDEPENDENT LIVING SERVICES - MEALS MANAGEMENT,NEW EQUIPMENT,G105,PELICAN PUMPS FOR MW,REBECCA STEVENS,MISC SPECIALITY RETAIL
http://statistics.data.gov.uk/id/local-authority/43UM,WOKING BOROUGH COUNCIL,15/06/2022,15/06/2022,GPC/00019460,AMZNMKTPLACE,PROCUREMENT CARD,8.32,INDEPENDENT LIVING SERVICES - FAMILY CENTRES,PROVISIONS,G410,MILK SYTH BUNGALOW,KESARA CHEENA,MISC SPECIALITY RETAIL
http://statistics.data.gov.uk/id/local-authority/43UM,WOKING BOROUGH COUNCIL,09/06/2022,15/06/2022,0000478643/001,ANDREW HILL,01986900,848.00,PLANNING SERVICES - TOWN PLANNING GENERAL,CONSULTANTS,H670,CONSULTANTS,PLANNING SERVICES,CONSULTANCY
http://statistics.data.gov.uk/id/local-authority/43UM,WOKING BOROUGH COUNCIL,07/06/2022,15/06/2022,0000478554/001,ANTHONY GURR PHOTOGRAPHY,40859700,475.00,CORPORATE STRATEGY - CELEBRATE WOKING - MARKETING/PROMO 14,MAIN CONTRACTOR,Q200,MAIN CONTRACTOR,CORPORATE STRATEGY,ARTS & LEISURE SERVICES
http://statistics.data.gov.uk/id/local-authority/43UM,WOKING BOROUGH COUNCIL,31/05/2022,15/06/2022,0000478375/001,ARK WORKPLACE RISK LTD,40737700,310.00,ASSET MANAGEMENT - LITTLEWICK IND.EST CARTHOUSE L,R&M BUILDINGS - CONTRACTORS,D100,R&M BUILDINGS - CONTRACTORS,ASSET MANAGEMENT,CONSULTANCY
http://statistics.data.gov.uk/id/local-authority/43UM,WOKING BOROUGH COUNCIL,01/06/2022,15/06/2022,0000478351/001,ARK WORKPLACE RISK LTD,40737700,310.00,ASSET MANAGEMENT - 21 HIGH STREET WOKING,R&M BUILDINGS - CONTRACTORS,D100,R&M BUILDINGS - CONTRACTORS,ASSET MANAGEMENT,CONSULTANCY
http://statistics.data.gov.uk/id/local-authority/43UM,WOKING BOROUGH COUNCIL,31/05/2022,15/06/2022,0000478374/001,ARK WORKPLACE RISK LTD,40737700,310.00,ASSET MANAGEMENT - ANCHOR PUBLIC HOUSE,R&M BUILDINGS - CONTRACTORS,D100,R&M BUILDINGS - CONTRACTORS,ASSET MANAGEMENT,CONSULTANCY
http://statistics.data.gov.uk/id/local-authority/43UM,WOKING BOROUGH COUNCIL,31/05/2022,15/06/2022,0000478373/001,ARK WORKPLACE RISK LTD,40737700,310.00,ASSET MANAGEMENT - WOKING OLD PALACE MAIN,GROUNDS MAINT-CONTRACTORS,D200,GROUNDS MAINT-CONTRACTORS,ASSET MANAGEMENT,CONSULTANCY
http://statistics.data.gov.uk/id/local-authority/43UM,WOKING BOROUGH COUNCIL,20/05/2022,15/06/2022,0000478555/001,ARTON MONOSEAL LTD,40470800,"1,075.00",HOUSING SERVICES - DISABLED FACILITIES GRANTS,MANDATORY GRANTS,Q712,MANDATORY GRANTS,HOUSING SERVICES,WORKS (CONSTRUCTION REPAIR MAINTENANCE)
http://statistics.data.gov.uk/id/local-authority/43UM,WOKING BOROUGH COUNCIL,15/06/2022,15/06/2022,GPC/00019467,ASDA  STORES 4775,PROCUREMENT CARD,6.25,INDEPENDENT LIVING SERVICES - HALE END COURT,EVENTS EXPENSES,G418,HOI PRIZES,RIANNA MEME,GROCERY STORES
